Workbook

Sheet Cash-Flow-DATA
B1: (бюджетна организация, предприятие по чл. 165, ал. 1 от ЗПФ, поделение) | F1: ЕИК/БУЛСТАТ | G1: код по ЕБК | I1: Web-адрес | L1: e-mail | P1: финансово-правна форма
B2: =+OTCHET!B9 -> ОУ Г.С.РАКОВСКИ-С.ГЪЛЪБЕЦ | F2: =+OTCHET!H9 -> 0 | G2: =+OTCHET!F12 -> 5207 | I2: =+OTCHET!H607 -> 0 | L2: =OTCHET!H605 -> ruskova_72@abv.bg | P2: =OTCHET!E15 -> 0 | Q2: =OTCHET!F15 -> БЮДЖЕТ | S2: код от регистъра на бюджетните организации в СЕБРА | T2: =+OTCHET!I9 -> 0
B4: ИНФОРМАЦИЯ ЗА ИЗГОТВЯНЕ НА ОТЧЕТ ЗА КАСОВОТО ИЗПЪЛНЕНИЕ | J4: ГОДИНА | L4: =+Q4 -> 2020 | P4: ГОДИНА | Q4: =+OTCHET!C3 -> 2020 | S4: ОТЧЕТ ЗА КАСОВОТО ИЗПЪЛНЕНИЕ НА БЮДЖЕТА, СМЕТКИТЕ ЗА СЕС И ЧУЖДИТЕ СРЕДСТВА
B6: НА БЮДЖЕТА, СМЕТКИТЕ ЗА СРЕДСТВАТА ОТ ЕВРОПЕЙСКИЯ СЪЮЗ И СМЕТКИТЕ ЗА ЧУЖДИ СРЕДСТВА КЪМ | L6: =OTCHET!F9 -> 2020-03-31 | N6: (В ЛЕВОВЕ) | P6: =OTCHET!F9 -> 2020-03-31 | Q6: (В ЛЕВОВЕ) | S6: =+Q4 -> 2020
F8: БЮДЖЕТ Годишен уточнен план | G8: БЮДЖЕТ -ОТЧЕТ | I8: Сметки за сред-ства от Европей-ския съюз-инди-кативни разчети | J8: Сметки за сред-ства от Евро-пейския съюз - ОТЧЕТ | L8: Сметки за чуж-ди средства - ОТЧЕТ | N8: ОБЩО КАСОВ ОТЧЕТ | P8: таблица 'OTCHET' Год. уточнен план | Q8: таблица 'OTCHET' ОТЧЕТ | S8: §§ от ЕБК, които се включват в съответния показател
B9: П О К А З А Т Е Л И | F9: =+L4 -> 2020 | G9: =+L6 -> 2020-03-31 | I9: =+L4 -> 2020 | J9: =+L6 -> 2020-03-31 | L9: =+L6 -> 2020-03-31 | N9: =+L6 -> 2020-03-31 | P9: =+L4 -> 2020 | Q9: =+L6 -> 2020-03-31 | S9: П О К А З А Т Е Л И
B10: (а) | F10: (1) | G10: (2) | I10: (3) | J10: (4) | L10: (5) | N10: (6)=(2)+(4)+(5) | P10: (1) | Q10: (2)
B11: А. ПРИХОДИ, ПОМОЩИ И ДАРЕНИЯ | S11: А. ПРИХОДИ, ПОМОЩИ И ДАРЕНИЯ
B12: I. Постъпления от текущи приходи | S12: I. Постъпления от текущи приходи
B13: 1. Приходи от данъци и осигурителни вноски | F13: =+IF($P$2=0,$P13,0) -> 0 | G13: =+IF($P$2=0,$Q13,0) -> 0 | I13: =+IF(OR($P$2=98,$P$2=42,$P$2=96,$P$2=97),$P13,0) -> 0 | J13: =+IF(OR($P$2=98,$P$2=42,$P$2=96,$P$2=97),$Q13,0) -> 0 | L13: =+IF($P$2=33,$Q13,0) -> 0 | N13: =+ROUND(+G13+J13+L13,0) -> 0 | P13: =+ROUND(OTCHET!E22+OTCHET!E28+OTCHET!E33+OTCHET!E39+OTCHET!E47+OTCHET!E52+OTCHET!E58+OTCHET!E61+OTCHET!E64+OTCHET!E65+OTCHET!E72+OTCHET!E73,0) -> 0 | Q13: =+ROUND(OTCHET!L22+OTCHET!L28+OTCHET!L33+OTCHET!L39+OTCHET!L47+OTCHET!L52+OTCHET!L58+OTCHET!L61+OTCHET!L64+OTCHET!L65+OTCHET!L72+OTCHET!L73,0) -> 0 | S13: приходни §§ 01-00 ÷ 20-00
B14: 2. Приходи от такси и вноски | F14: =+IF($P$2=0,$P14,0) -> 0 | G14: =+IF($P$2=0,$Q14,0) -> 0 | I14: =+IF(OR($P$2=98,$P$2=42,$P$2=96,$P$2=97),$P14,0) -> 0 | J14: =+IF(OR($P$2=98,$P$2=42,$P$2=96,$P$2=97),$Q14,0) -> 0 | L14: =+IF($P$2=33,$Q14,0) -> 0 | N14: =+ROUND(+G14+J14+L14,0) -> 0 | P14: =+ROUND(+OTCHET!E90+OTCHET!E93+OTCHET!E94+OTCHET!E115+OTCHET!E116,0) -> 0 | Q14: =+ROUND(+OTCHET!L90+OTCHET!L93+OTCHET!L94+OTCHET!L115+OTCHET!L116,0) -> 0 | S14: приходни §§ 25-00, 26-00, 27-00, 36-08 и 36-10
B15: в т.ч. приходи от вноски | F15: =+IF($P$2=0,$P15,0) -> 0 | G15: =+IF($P$2=0,$Q15,0) -> 0 | I15: =+IF(OR($P$2=98,$P$2=42,$P$2=96,$P$2=97),$P15,0) -> 0 | J15: =+IF(OR($P$2=98,$P$2=42,$P$2=96,$P$2=97),$Q15,0) -> 0 | L15: =+IF($P$2=33,$Q15,0) -> 0 | N15: =+ROUND(+G15+J15+L15,0) -> 0 | P15: =+ROUND(+OTCHET!E115+OTCHET!E116,0) -> 0 | Q15: =+OTCHET!L115+OTCHET!L116 -> 0 | S15: приходни §§ 36-08 и 36-10
B16: 3. Приходи от административни глоби, санкции и наказателни лихви | F16: 0 | G16: 0 | I16: 0 | J16: 0 | L16: 0 | N16: 0 | P16: =+ROUND(+OTCHET!E110+OTCHET!E111,0) -> 0 | Q16: =+ROUND(+OTCHET!L110+OTCHET!L111,0) -> 0 | S16: приходни §§ 28-02 и 28-09
B17: 4. Нетни приходи от продажби на услуги, стоки и продукция | F17: 0 | G17: 0 | I17: 0 | J17: 0 | L17: 0 | N17: 0 | P17: =+ROUND(OTCHET!E77,0) -> 0 | Q17: =+ROUND(OTCHET!L77,0) -> 0 | S17: приходeн § 24-04
B18: 5. Приходи от наеми | F18: 0 | G18: 0 | I18: 0 | J18: 0 | L18: 0 | N18: 0 | P18: =+ROUND(OTCHET!E78+OTCHET!E79,0) -> 0 | Q18: =+ROUND(OTCHET!L78+OTCHET!L79,0) -> 0 | S18: приходни §§ 24-05 и 24-06
B19: 6. Приходи от концесии и лицензии за ползване на публични активи | F19: 0 | G19: 0 | I19: 0 | J19: 0 | L19: 0 | N19: 0 | P19: =+ROUND(OTCHET!E137++OTCHET!E138,0) -> 0 | Q19: =+ROUND(OTCHET!L137++OTCHET!L138,0) -> 0 | S19: приходни §§ 41-00 и 42-00
B20: 7. Приходи от лихви | F20: 0 | G20: 0 | I20: 0 | J20: 0 | L20: 0 | N20: 0 | P20: =+ROUND(+SUM(OTCHET!E81:E89),0) -> 0 | Q20: =+ROUND(+SUM(OTCHET!L81:L89),0) -> 0 | S20: приходни §§ 24-08 ÷ 24-19
B21: 8. Приходи от дивиденти и дялово участие | F21: 0 | G21: 0 | I21: 0 | J21: 0 | L21: 0 | N21: 0 | P21: =+ROUND(OTCHET!E75+OTCHET!E76+OTCHET!E80,0) -> 0 | Q21: =+ROUND(OTCHET!L75+OTCHET!L76+OTCHET!L80,0) -> 0 | S21: приходни §§ 24-01, 24-03 и 24-07
B22: 9. Други текущи приходи и реализирани курсови разлики | F22: 0 | G22: 0 | I22: 0 | J22: 0 | L22: 0 | N22: 0 | P22: =+ROUND(OTCHET!E113+OTCHET!E114+OTCHET!E120,0) -> 0 | Q22: =+ROUND(OTCHET!L113+OTCHET!L114+OTCHET!L120,0) -> 0 | S22: приходни §§ 36-01, 36-05 и 36-19
B23: Общо за група І. Постъпления от текущи приходи | F23: =+ROUND(+SUM(F13,F14,F16,F17,F18,F19,F20,F21,F22),0) -> 0 | G23: =+ROUND(+SUM(G13,G14,G16,G17,G18,G19,G20,G21,G22),0) -> 0 | I23: =+ROUND(+SUM(I13,I14,I16,I17,I18,I19,I20,I21,I22),0) -> 0 | J23: =+ROUND(+SUM(J13,J14,J16,J17,J18,J19,J20,J21,J22),0) -> 0 | L23: =+ROUND(+SUM(L13,L14,L16,L17,L18,L19,L20,L21,L22),0) -> 0 | N23: =+ROUND(+SUM(N13,N14,N16,N17,N18,N19,N20,N21,N22),0) -> 0 | P23: =+ROUND(+SUM(P13,P14,P16,P17,P18,P19,P20,P21,P22),0) -> 0 | Q23: =+ROUND(+SUM(Q13,Q14,Q16,Q17,Q18,Q19,Q20,Q21,Q22),0) -> 0 | S23: сборен ред за група І. Постъпления от текущи приходи
B24: IІ. Реализация на нефинансови активи и конфискувани средства | S24: IІ. Реализация на нефинансови активи и конфискувани средства
B25: 1. Продажба на земя | F25: =+IF($P$2=0,$P25,0) -> 0 | G25: =+IF($P$2=0,$Q25,0) -> 0 | I25: =+IF(OR($P$2=98,$P$2=42,$P$2=96,$P$2=97),$P25,0) -> 0 | J25: =+IF(OR($P$2=98,$P$2=42,$P$2=96,$P$2=97),$Q25,0) -> 0 | L25: =+IF($P$2=33,$Q25,0) -> 0 | N25: =+ROUND(+G25+J25+L25,0) -> 0 | P25: =+ROUND(OTCHET!E135,0) -> 0 | Q25: =+ROUND(OTCHET!L135,0) -> 0 | S25: приходeн § 40-40
B26: 2. Продажба на други нефинансови дълготрайни активи | F26: =+IF($P$2=0,$P26,0) -> 0 | G26: =+IF($P$2=0,$Q26,0) -> 0 | I26: =+IF(OR($P$2=98,$P$2=42,$P$2=96,$P$2=97),$P26,0) -> 0 | J26: =+IF(OR($P$2=98,$P$2=42,$P$2=96,$P$2=97),$Q26,0) -> 0 | L26: =+IF($P$2=33,$Q26,0) -> 0 | N26: =+ROUND(+G26+J26+L26,0) -> 0 | P26: =+ROUND(+SUM(OTCHET!E126:E134)+OTCHET!E136,0) -> 0 | Q26: =+ROUND(+SUM(OTCHET!L126:L134)+OTCHET!L136,0) -> 0 | S26: приходeн § 40-00 без §§ 40-40 и 40-71
B27: 3. Конфиск. средства и продажби на конфискувани и от залог нефин. активи | F27: =+IF($P$2=0,$P27,0) -> 0 | G27: =+IF($P$2=0,$Q27,0) -> 0 | I27: =+IF(OR($P$2=98,$P$2=42,$P$2=96,$P$2=97),$P27,0) -> 0 | J27: =+IF(OR($P$2=98,$P$2=42,$P$2=96,$P$2=97),$Q27,0) -> 0 | L27: =+IF($P$2=33,$Q27,0) -> 0 | N27: =+ROUND(+G27+J27+L27,0) -> 0 | P27: =+ROUND(+OTCHET!E109,0) -> 0 | Q27: =+ROUND(+OTCHET!L109,0) -> 0 | S27: приходeн § 28-01
B28: Общо за група ІІ. Постъпления от продажби на нефинансови активи | F28: =+ROUND(+SUM(F25:F27),0) -> 0 | G28: =+ROUND(+SUM(G25:G27),0) -> 0 | I28: =+ROUND(+SUM(I25:I27),0) -> 0 | J28: =+ROUND(+SUM(J25:J27),0) -> 0 | L28: =+ROUND(+SUM(L25:L27),0) -> 0 | N28: =+ROUND(+SUM(N25:N27),0) -> 0 | P28: =+ROUND(+SUM(P25:P27),0) -> 0 | Q28: =+ROUND(+SUM(Q25:Q27),0) -> 0 | S28: сборен ред за група ІІ. Постъпления от продажби на нефинансови активи
B30: IІI. Внесен ДДС, др. данъци в/у продажбите и коректив за постъпления
B31: 1. Внесен ДДС
B32: 2. Внесен данък върху приходите от стопанска дейност
B33: 3. Внесени други данъци върху продажбите
B34: 4. Коректив за касови постъпления
B35: ІІІ. Внесен ДДС и др. данъци в/у продажбите и коректив за постъпления | F35: =+IF($P$2=0,$P35,0) -> 0 | G35: =+IF($P$2=0,$Q35,0) -> 0 | I35: =+IF(OR($P$2=98,$P$2=42,$P$2=96,$P$2=97),$P35,0) -> 0 | J35: =+IF(OR($P$2=98,$P$2=42,$P$2=96,$P$2=97),$Q35,0) -> 0 | L35: =+IF($P$2=33,$Q35,0) -> 0 | N35: =+ROUND(+G35+J35+L35,0) -> 0 | P35: =+ROUND(+OTCHET!E121+OTCHET!E119,0) -> 0 | Q35: =+ROUND(+OTCHET!L121+OTCHET!L119,0) -> 0 | S35: ІІІ. Внесен ДДС и др. д-ци в/у продажбите и коректив - приходни § 36-18 и 37-00
B36: в т. ч. внесен ДДС | F36: =+IF($P$2=0,$P36,0) -> 0 | G36: =+IF($P$2=0,$Q36,0) -> 0 | I36: =+IF(OR($P$2=98,$P$2=42,$P$2=96,$P$2=97),$P36,0) -> 0 | J36: =+IF(OR($P$2=98,$P$2=42,$P$2=96,$P$2=97),$Q36,0) -> 0 | L36: =+IF($P$2=33,$Q36,0) -> 0 | N36: 0 | P36: =+ROUND(OTCHET!E122,0) -> 0 | Q36: =+ROUND(OTCHET!L122,0) -> 0 | S36: приходен § 37-01
B37: внесен данък в/у приходите от стопанска дейност | F37: =+IF($P$2=0,$P37,0) -> 0 | G37: =+IF($P$2=0,$Q37,0) -> 0 | I37: =+IF(OR($P$2=98,$P$2=42,$P$2=96,$P$2=97),$P37,0) -> 0 | J37: =+IF(OR($P$2=98,$P$2=42,$P$2=96,$P$2=97),$Q37,0) -> 0 | L37: =+IF($P$2=33,$Q37,0) -> 0 | N37: 0 | P37: =+ROUND(OTCHET!E123,0) -> 0 | Q37: =+ROUND(OTCHET!L123,0) -> 0 | S37: приходен § 37-02
B38: внесени други данъци, такси и вноски в/у продажбите | F38: =+IF($P$2=0,$P38,0) -> 0 | G38: =+IF($P$2=0,$Q38,0) -> 0 | I38: =+IF(OR($P$2=98,$P$2=42,$P$2=96,$P$2=97),$P38,0) -> 0 | J38: =+IF(OR($P$2=98,$P$2=42,$P$2=96,$P$2=97),$Q38,0) -> 0 | L38: =+IF($P$2=33,$Q38,0) -> 0 | N38: 0 | P38: =+ROUND(OTCHET!E124,0) -> 0 | Q38: =+ROUND(OTCHET!L124,0) -> 0 | S38: приходен § 37-09
B40: IV. Постъпления от застрахователни обезщетения | F40: =+IF($P$2=0,$P40,0) -> 0 | G40: =+IF($P$2=0,$Q40,0) -> 0 | I40: =+IF(OR($P$2=98,$P$2=42,$P$2=96,$P$2=97),$P40,0) -> 0 | J40: =+IF(OR($P$2=98,$P$2=42,$P$2=96,$P$2=97),$Q40,0) -> 0 | L40: =+IF($P$2=33,$Q40,0) -> 0 | N40: 0 | P40: =+ROUND(OTCHET!E117+OTCHET!E118,0) -> 0 | Q40: =+ROUND(OTCHET!L117+OTCHET!L118,0) -> 0 | S40: IV. Постъпления от застрахователни обезщетения - приходни § 36-11 и 36-12
B41: V. Приходи от помощи и дарения | S41: V. Приходи от помощи и дарения
B42: 1. Помощи и дарения от Европейския съюз | F42: =+IF($P$2=0,$P42,0) -> 0 | G42: =+IF($P$2=0,$Q42,0) -> 0 | I42: =+IF(OR($P$2=98,$P$2=42,$P$2=96,$P$2=97),$P42,0) -> 0 | J42: =+IF(OR($P$2=98,$P$2=42,$P$2=96,$P$2=97),$Q42,0) -> 0 | L42: =+IF($P$2=33,$Q42,0) -> 0 | N42: =+ROUND(+G42+J42+L42,0) -> 0 | P42: =+ROUND(OTCHET!E143+OTCHET!E144+OTCHET!E161+OTCHET!E162,0) -> 0 | Q42: =+ROUND(OTCHET!L143+OTCHET!L144+OTCHET!L161+OTCHET!L162,0) -> 0 | S42: приходни §§ 46-10, 46-20, 48-10 и 48-20
B43: 2. Други помощи и дарения от чужбина | F43: =+IF($P$2=0,$P43,0) -> 0 | G43: =+IF($P$2=0,$Q43,0) -> 0 | I43: =+IF(OR($P$2=98,$P$2=42,$P$2=96,$P$2=97),$P43,0) -> 0 | J43: =+IF(OR($P$2=98,$P$2=42,$P$2=96,$P$2=97),$Q43,0) -> 0 | L43: =+IF($P$2=33,$Q43,0) -> 0 | N43: =+ROUND(+G43+J43+L43,0) -> 0 | P43: =+ROUND(+SUM(OTCHET!E145:E150)+SUM(OTCHET!E163:E168),0) -> 0 | Q43: =+ROUND(+SUM(OTCHET!L145:L150)+SUM(OTCHET!L163:L168),0) -> 0 | S43: приходни §§ 46-30 ÷ 46-80 и §§ 48-30 ÷ 48-80
B44: 3. Други безвъзмездно получени средства по международни и други програми | F44: =+IF($P$2=0,$P44,0) -> 0 | G44: =+IF($P$2=0,$Q44,0) -> 0 | I44: =+IF(OR($P$2=98,$P$2=42,$P$2=96,$P$2=97),$P44,0) -> 0 | J44: =+IF(OR($P$2=98,$P$2=42,$P$2=96,$P$2=97),$Q44,0) -> 0 | L44: =+IF($P$2=33,$Q44,0) -> 0 | N44: =+ROUND(+G44+J44+L44,0) -> 0 | P44: =+ROUND(OTCHET!E151,0) -> 0 | Q44: =+ROUND(OTCHET!L151,0) -> 0 | S44: приходeн § 47-00
B45: 4. Помощи и дарения от страната | F45: =+IF($P$2=0,$P45,0) -> 0 | G45: =+IF($P$2=0,$Q45,0) -> 0 | I45: =+IF(OR($P$2=98,$P$2=42,$P$2=96,$P$2=97),$P45,0) -> 0 | J45: =+IF(OR($P$2=98,$P$2=42,$P$2=96,$P$2=97),$Q45,0) -> 0 | L45: =+IF($P$2=33,$Q45,0) -> 0 | N45: =+ROUND(+G45+J45+L45,0) -> 0 | P45: =+ROUND(OTCHET!E139,0) -> 0 | Q45: =+ROUND(OTCHET!L139,0) -> 0 | S45: приходeн § 45-00
B46: Общо за група V. Приходи от помощи и дарения | F46: =+ROUND(+SUM(F42:F45),0) -> 0 | G46: =+ROUND(+SUM(G42:G45),0) -> 0 | I46: =+ROUND(+SUM(I42:I45),0) -> 0 | J46: =+ROUND(+SUM(J42:J45),0) -> 0 | L46: =+ROUND(+SUM(L42:L45),0) -> 0 | N46: =+ROUND(+SUM(N42:N45),0) -> 0 | P46: =+ROUND(+SUM(P42:P45),0) -> 0 | Q46: =+ROUND(+SUM(Q42:Q45),0) -> 0 | S46: сборен ред за група V. Приходи от помощи и дарения
B48: А. ОБЩО ПРИХОДИ, ПОМОЩИ И ДАРЕНИЯ | F48: =+ROUND(F23+F28+F35+F40+F46,0) -> 0 | G48: =+ROUND(G23+G28+G35+G40+G46,0) -> 0 | I48: =+ROUND(I23+I28+I35+I40+I46,0) -> 0 | J48: =+ROUND(J23+J28+J35+J40+J46,0) -> 0 | L48: =+ROUND(L23+L28+L35+L40+L46,0) -> 0 | N48: =+ROUND(N23+N28+N35+N40+N46,0) -> 0 | P48: =+ROUND(P23+P28+P35+P40+P46,0) -> 0 | Q48: =+ROUND(Q23+Q28+Q35+Q40+Q46,0) -> 0 | S48: сборен ред за А. ОБЩО ПРИХОДИ, ПОМОЩИ И ДАРЕНИЯ
B49: Б. РАЗХОДИ И ПРИДОБИВАНЕ НА НЕФИНАНСОВИ АКТИВИ | S49: Б. РАЗХОДИ И ПРИДОБИВАНЕ НА НЕФИНАНСОВИ АКТИВИ
B50: I. Плащания за текущи нелихвени разходи | S50: I. Плащания за текущи нелихвени разходи
B51: 1. Разходи за издръжка - нефинансови позиции | F51: =+IF($P$2=0,$P51,0) -> 53089 | G51: =+IF($P$2=0,$Q51,0) -> 11828 | I51: =+IF(OR($P$2=98,$P$2=42,$P$2=96,$P$2=97),$P51,0) -> 0 | J51: =+IF(OR($P$2=98,$P$2=42,$P$2=96,$P$2=97),$Q51,0) -> 0 | L51: =+IF($P$2=33,$Q51,0) -> 0 | N51: =+ROUND(+G51+J51+L51,0) -> 11828 | P51: =+ROUND(OTCHET!E205-SUM(OTCHET!E217:E219)+OTCHET!E271+IF(+OR(OTCHET!$F$12=5500,OTCHET!$F$12=5600),0,+OTCHET!E297),0) -> 53089 | Q51: =+ROUND(OTCHET!L205-SUM(OTCHET!L217:L219)+OTCHET!L271+IF(+OR(OTCHET!$F$12=5500,OTCHET!$F$12=5600),0,+OTCHET!L297),0) -> 11828 | S51: разходни §§ 10-00 (без §§ 10-62, 10-63 и 10-69), 46-00 и § 00-98 (без НОИ и НЗОК)
B52: 2. Разходи за застраховане и други финансови услуги | F52: =+IF($P$2=0,$P52,0) -> 0 | G52: =+IF($P$2=0,$Q52,0) -> 0 | I52: =+IF(OR($P$2=98,$P$2=42,$P$2=96,$P$2=97),$P52,0) -> 0 | J52: =+IF(OR($P$2=98,$P$2=42,$P$2=96,$P$2=97),$Q52,0) -> 0 | L52: =+IF($P$2=33,$Q52,0) -> 0 | N52: =+ROUND(+G52+J52+L52,0) -> 0 | P52: =+ROUND(+SUM(OTCHET!E217:E219),0) -> 0 | Q52: =+ROUND(+SUM(OTCHET!L217:L219),0) -> 0 | S52: разходни §§ 10-62, 10-63 и 10-69
B53: 3. Платени данъци, такси и административни санкции | F53: =+IF($P$2=0,$P53,0) -> 0 | G53: =+IF($P$2=0,$Q53,0) -> 0 | I53: =+IF(OR($P$2=98,$P$2=42,$P$2=96,$P$2=97),$P53,0) -> 0 | J53: =+IF(OR($P$2=98,$P$2=42,$P$2=96,$P$2=97),$Q53,0) -> 0 | L53: =+IF($P$2=33,$Q53,0) -> 0 | N53: =+ROUND(+G53+J53+L53,0) -> 0 | P53: =+ROUND(OTCHET!E223,0) -> 0 | Q53: =+ROUND(OTCHET!L223,0) -> 0 | S53: разходен § 19-00
B54: 4. Разходи за възнаграждения на персонал | F54: =+IF($P$2=0,$P54,0) -> 308989 | G54: =+IF($P$2=0,$Q54,0) -> 67333 | I54: =+IF(OR($P$2=98,$P$2=42,$P$2=96,$P$2=97),$P54,0) -> 0 | J54: =+IF(OR($P$2=98,$P$2=42,$P$2=96,$P$2=97),$Q54,0) -> 0 | L54: =+IF($P$2=33,$Q54,0) -> 0 | N54: =+ROUND(+G54+J54+L54,0) -> 67333 | P54: =+ROUND(OTCHET!E187+OTCHET!E190,0) -> 308989 | Q54: =+ROUND(OTCHET!L187+OTCHET!L190,0) -> 67333 | S54: разходни §§ 01-00 и 02-00
B55: 5. Разходи за осигурителни вноски | F55: =+IF($P$2=0,$P55,0) -> 68000 | G55: =+IF($P$2=0,$Q55,0) -> 14985 | I55: =+IF(OR($P$2=98,$P$2=42,$P$2=96,$P$2=97),$P55,0) -> 0 | J55: =+IF(OR($P$2=98,$P$2=42,$P$2=96,$P$2=97),$Q55,0) -> 0 | L55: =+IF($P$2=33,$Q55,0) -> 0 | N55: =+ROUND(+G55+J55+L55,0) -> 14985 | P55: =+ROUND(OTCHET!E196+OTCHET!E204,0) -> 68000 | Q55: =+ROUND(OTCHET!L196+OTCHET!L204,0) -> 14985 | S55: разходни §§ 05-00 и 08-00
B56: Общо за група І. Плащания за текущи нелихвени разходи | F56: =+ROUND(+SUM(F51:F55),0) -> 430078 | G56: =+ROUND(+SUM(G51:G55),0) -> 94146 | I56: =+ROUND(+SUM(I51:I55),0) -> 0 | J56: =+ROUND(+SUM(J51:J55),0) -> 0 | L56: =+ROUND(+SUM(L51:L55),0) -> 0 | N56: =+ROUND(+SUM(N51:N55),0) -> 94146 | P56: =+ROUND(+SUM(P51:P55),0) -> 430078 | Q56: =+ROUND(+SUM(Q51:Q55),0) -> 94146 | S56: сборен ред за група І. Плащания за текущи нелихвени разходи
B57: IІ. Плащания за придобиване на нефинансови дълготрайни активи | S57: IІ. Плащания за придобиване на нефинансови дълготрайни активи
B58: 1. Придобиване на земя | F58: =+IF($P$2=0,$P58,0) -> 0 | G58: =+IF($P$2=0,$Q58,0) -> 0 | I58: =+IF(OR($P$2=98,$P$2=42,$P$2=96,$P$2=97),$P58,0) -> 0 | J58: =+IF(OR($P$2=98,$P$2=42,$P$2=96,$P$2=97),$Q58,0) -> 0 | L58: =+IF($P$2=33,$Q58,0) -> 0 | N58: =+ROUND(+G58+J58+L58,0) -> 0 | P58: =+ROUND(OTCHET!E287,0) -> 0 | Q58: =+ROUND(OTCHET!L287,0) -> 0 | S58: разходен § 54-00
B59: 2. Придобиване на други дълготрайни материални активи | F59: =+IF($P$2=0,$P59,0) -> 0 | G59: =+IF($P$2=0,$Q59,0) -> 0 | I59: =+IF(OR($P$2=98,$P$2=42,$P$2=96,$P$2=97),$P59,0) -> 0 | J59: =+IF(OR($P$2=98,$P$2=42,$P$2=96,$P$2=97),$Q59,0) -> 0 | L59: =+IF($P$2=33,$Q59,0) -> 0 | N59: =+ROUND(+G59+J59+L59,0) -> 0 | P59: =+ROUND(+OTCHET!E275+OTCHET!E276,0) -> 0 | Q59: =+ROUND(+OTCHET!L275+OTCHET!L276,0) -> 0 | S59: разходни §§ 51-00 и 52-00
B60: 3. Придобиване на нематериални дълготрайни активи | F60: =+IF($P$2=0,$P60,0) -> 0 | G60: =+IF($P$2=0,$Q60,0) -> 0 | I60: =+IF(OR($P$2=98,$P$2=42,$P$2=96,$P$2=97),$P60,0) -> 0 | J60: =+IF(OR($P$2=98,$P$2=42,$P$2=96,$P$2=97),$Q60,0) -> 0 | L60: =+IF($P$2=33,$Q60,0) -> 0 | N60: =+ROUND(+G60+J60+L60,0) -> 0 | P60: =+ROUND(OTCHET!E284,0) -> 0 | Q60: =+ROUND(OTCHET!L284,0) -> 0 | S60: разходен § 53-00
B61: 4. Нето-прираст на държавния резерв и изкупуване на земеделска продукция | F61: =+IF($P$2=0,$P61,0) -> 0 | G61: =+IF($P$2=0,$Q61,0) -> 0 | I61: =+IF(OR($P$2=98,$P$2=42,$P$2=96,$P$2=97),$P61,0) -> 0 | J61: =+IF(OR($P$2=98,$P$2=42,$P$2=96,$P$2=97),$Q61,0) -> 0 | L61: =+IF($P$2=33,$Q61,0) -> 0 | N61: =+ROUND(+G61+J61+L61,0) -> 0 | P61: =+ROUND(OTCHET!E293,0) -> 0 | Q61: =+ROUND(OTCHET!L293,0) -> 0 | S61: разходен § 57-00 и приходeн § 40-71 (-)
B62: в т. ч. постъпления от реализация на държавния резерв (-) | F62: =+IF($P$2=0,$P62,0) -> 0 | G62: =+IF($P$2=0,$Q62,0) -> 0 | I62: =+IF(OR($P$2=98,$P$2=42,$P$2=96,$P$2=97),$P62,0) -> 0 | J62: =+IF(OR($P$2=98,$P$2=42,$P$2=96,$P$2=97),$Q62,0) -> 0 | L62: =+IF($P$2=33,$Q62,0) -> 0 | N62: =+ROUND(+G62+J62+L62,0) -> 0 | P62: =+ROUND(OTCHET!E296,0) -> 0 | Q62: =+ROUND(OTCHET!L296,0) -> 0 | S62: приходeн § 40-71 (-)
B63: Общо за група ІІ. Плащания за на нефинансови дълготрайни активи | F63: =+ROUND(+SUM(F58:F61),0) -> 0 | G63: =+ROUND(+SUM(G58:G61),0) -> 0 | I63: =+ROUND(+SUM(I58:I61),0) -> 0 | J63: =+ROUND(+SUM(J58:J61),0) -> 0 | L63: =+ROUND(+SUM(L58:L61),0) -> 0 | N63: =+ROUND(+SUM(N58:N61),0) -> 0 | P63: =+ROUND(+SUM(P58:P61),0) -> 0 | Q63: =+ROUND(+SUM(Q58:Q61),0) -> 0 | S63: сборен ред за група ІІ. Плащания за на нефинансови дълготрайни активи
B64: III. Плащания за разходи за лихви | S64: III. Плащания за разходи за лихви
B65: 1. Разходи за лихви по банкови заеми и държавни (общински) ценни книжа | F65: =+IF($P$2=0,$P65,0) -> 0 | G65: =+IF($P$2=0,$Q65,0) -> 0 | I65: =+IF(OR($P$2=98,$P$2=42,$P$2=96,$P$2=97),$P65,0) -> 0 | J65: =+IF(OR($P$2=98,$P$2=42,$P$2=96,$P$2=97),$Q65,0) -> 0 | L65: =+IF($P$2=33,$Q65,0) -> 0 | N65: =+ROUND(+G65+J65+L65,0) -> 0 | P65: =+ROUND(OTCHET!E227+OTCHET!E233+SUM(OTCHET!E236:E239),0) -> 0 | Q65: =+ROUND(OTCHET!L227+OTCHET!L233+SUM(OTCHET!L236:L239),0) -> 0 | S65: разходни §§ 21-00 ÷ 28-00
B66: 2. Разходи за лихви по други заеми и дългове | F66: =+IF($P$2=0,$P66,0) -> 0 | G66: =+IF($P$2=0,$Q66,0) -> 0 | I66: =+IF(OR($P$2=98,$P$2=42,$P$2=96,$P$2=97),$P66,0) -> 0 | J66: =+IF(OR($P$2=98,$P$2=42,$P$2=96,$P$2=97),$Q66,0) -> 0 | L66: =+IF($P$2=33,$Q66,0) -> 0 | N66: =+ROUND(+G66+J66+L66,0) -> 0 | P66: =+ROUND(OTCHET!E240,0) -> 0 | Q66: =+ROUND(OTCHET!L240,0) -> 0 | S66: разходен § 29-00
B67: Общо за група ІІІ. Плащания за разходи за лихви | F67: =+ROUND(+SUM(F65:F66),0) -> 0 | G67: =+ROUND(+SUM(G65:G66),0) -> 0 | I67: =+ROUND(+SUM(I65:I66),0) -> 0 | J67: =+ROUND(+SUM(J65:J66),0) -> 0 | L67: =+ROUND(+SUM(L65:L66),0) -> 0 | N67: =+ROUND(+SUM(N65:N66),0) -> 0 | P67: =+ROUND(+SUM(P65:P66),0) -> 0 | Q67: =+ROUND(+SUM(Q65:Q66),0) -> 0 | S67: сборен ред за група ІІІ. Плащания за разходи за лихви
B68: IV. Трансфери към домакинства | S68: IV. Трансфери към домакинства
B69: 1. Осигурителни плащания и други текущи трансфери | F69: =+IF($P$2=0,$P69,0) -> 0 | G69: =+IF($P$2=0,$Q69,0) -> 0 | I69: =+IF(OR($P$2=98,$P$2=42,$P$2=96,$P$2=97),$P69,0) -> 0 | J69: =+IF(OR($P$2=98,$P$2=42,$P$2=96,$P$2=97),$Q69,0) -> 0 | L69: =+IF($P$2=33,$Q69,0) -> 0 | N69: =+ROUND(+G69+J69+L69,0) -> 0 | P69: =+ROUND(+SUM(OTCHET!E255:E258)+IF(+OR(OTCHET!$F$12=5500,OTCHET!$F$12=5600),+OTCHET!E297,0),0) -> 0 | Q69: =+ROUND(+SUM(OTCHET!L255:L258)+IF(+OR(OTCHET!$F$12=5500,OTCHET!$F$12=5600),+OTCHET!L297,0),0) -> 0 | S69: разходни §§ 39-00 ÷ 42-00 (за НОИ и НЗОК - и разходен § 00-98)
B70: 2. Капиталови трансфери към домакинства | F70: =+IF($P$2=0,$P70,0) -> 0 | G70: =+IF($P$2=0,$Q70,0) -> 0 | I70: =+IF(OR($P$2=98,$P$2=42,$P$2=96,$P$2=97),$P70,0) -> 0 | J70: =+IF(OR($P$2=98,$P$2=42,$P$2=96,$P$2=97),$Q70,0) -> 0 | L70: =+IF($P$2=33,$Q70,0) -> 0 | N70: =+ROUND(+G70+J70+L70,0) -> 0 | P70: =+ROUND(+OTCHET!E292,0) -> 0 | Q70: =+ROUND(+OTCHET!L292,0) -> 0 | S70: разходен § 55-04
B71: Общо за група ІV. Трансфери към домакинства | F71: =+ROUND(+SUM(F69:F70),0) -> 0 | G71: =+ROUND(+SUM(G69:G70),0) -> 0 | I71: =+ROUND(+SUM(I69:I70),0) -> 0 | J71: =+ROUND(+SUM(J69:J70),0) -> 0 | L71: =+ROUND(+SUM(L69:L70),0) -> 0 | N71: =+ROUND(+SUM(N69:N70),0) -> 0 | P71: =+ROUND(+SUM(P69:P70),0) -> 0 | Q71: =+ROUND(+SUM(Q69:Q70),0) -> 0 | S71: сборен ред за група ІV. Трансфери към домакинства
B72: V. Субсидии и капиталови трансфери | S72: V. Субсидии и капиталови трансфери
B73: 1. Текущи субсидии и трансфери към други лица | F73: =+IF($P$2=0,$P73,0) -> 0 | G73: =+IF($P$2=0,$Q73,0) -> 0 | I73: =+IF(OR($P$2=98,$P$2=42,$P$2=96,$P$2=97),$P73,0) -> 0 | J73: =+IF(OR($P$2=98,$P$2=42,$P$2=96,$P$2=97),$Q73,0) -> 0 | L73: =+IF($P$2=33,$Q73,0) -> 0 | N73: =+ROUND(+G73+J73+L73,0) -> 0 | P73: =+ROUND(+OTCHET!E249+OTCHET!E265+OTCHET!E269+OTCHET!E270+OTCHET!E273,0) -> 0 | Q73: =+ROUND(+OTCHET!L249+OTCHET!L265+OTCHET!L269+OTCHET!L270+OTCHET!L273,0) -> 0 | S73: разходни §§ 33-00, 43-00, 44-00, 45-00 и 49-01
B74: 2. Капиталови трансфери към други лица | F74: =+IF($P$2=0,$P74,0) -> 0 | G74: =+IF($P$2=0,$Q74,0) -> 0 | I74: =+IF(OR($P$2=98,$P$2=42,$P$2=96,$P$2=97),$P74,0) -> 0 | J74: =+IF(OR($P$2=98,$P$2=42,$P$2=96,$P$2=97),$Q74,0) -> 0 | L74: =+IF($P$2=33,$Q74,0) -> 0 | N74: =+ROUND(+G74+J74+L74,0) -> 0 | P74: =+ROUND(OTCHET!E274+OTCHET!E288-OTCHET!E292,0) -> 0 | Q74: =+ROUND(OTCHET!L274+OTCHET!L288-OTCHET!L292,0) -> 0 | S74: разходни §§ 49-02 и 55-00 (без § 55-04)
B75: Общо за група V. Субсидии и капиталови трансфери | F75: =+ROUND(+SUM(F73:F74),0) -> 0 | G75: =+ROUND(+SUM(G73:G74),0) -> 0 | I75: =+ROUND(+SUM(I73:I74),0) -> 0 | J75: =+ROUND(+SUM(J73:J74),0) -> 0 | L75: =+ROUND(+SUM(L73:L74),0) -> 0 | N75: =+ROUND(+SUM(N73:N74),0) -> 0 | P75: =+ROUND(+SUM(P73:P74),0) -> 0 | Q75: =+ROUND(+SUM(Q73:Q74),0) -> 0 | S75: сборен ред за група V. Субсидии и капиталови трансфери
B77: Б. ОБЩО РАЗХОДИ И ПРИДОБИВАНЕ НА НЕФИНАНСОВИ АКТИВИ | F77: =+ROUND(F56+F63+F67+F71+F75,0) -> 430078 | G77: =+ROUND(G56+G63+G67+G71+G75,0) -> 94146 | I77: =+ROUND(I56+I63+I67+I71+I75,0) -> 0 | J77: =+ROUND(J56+J63+J67+J71+J75,0) -> 0 | L77: =+ROUND(L56+L63+L67+L71+L75,0) -> 0 | N77: =+ROUND(N56+N63+N67+N71+N75,0) -> 94146 | P77: =+ROUND(P56+P63+P67+P71+P75,0) -> 430078 | Q77: =+ROUND(Q56+Q63+Q67+Q71+Q75,0) -> 94146 | S77: сборен за ред Б. ОБЩО РАЗХОДИ И ПРИДОБИВАНЕ НА НЕФИН. АКТИВИ
B78: В. ТРАНСФЕРИ И БЕЗЛИХВЕНИ ЗАЕМИ М/У БЮДЖ. ОРГАНИЗАЦИИ | S78: В. ТРАНСФЕРИ И БЕЗЛИХВЕНИ ЗАЕМИ М/У БЮДЖ. ОРГАНИЗАЦИИ
B79: 1. Трансфери между бюджетни организации (нето) | F79: =+IF($P$2=0,$P79,0) -> 430078 | G79: =+IF($P$2=0,$Q79,0) -> 138839 | I79: =+IF(OR($P$2=98,$P$2=42,$P$2=96,$P$2=97),$P79,0) -> 0 | J79: =+IF(OR($P$2=98,$P$2=42,$P$2=96,$P$2=97),$Q79,0) -> 0 | L79: =+IF($P$2=33,$Q79,0) -> 0 | N79: =+ROUND(+G79+J79+L79,0) -> 138839 | P79: =+ROUND(OTCHET!E419,0) -> 430078 | Q79: =+ROUND(OTCHET!L419,0) -> 138839 | S79: трансферни параграфи §§ 30-00 ÷ 32-00 и 60-00 ÷ 69-00
B80: 2. Временни безлихвени заеми между бюджетни организации (нето) | F80: =+IF($P$2=0,$P80,0) -> 0 | G80: =+IF($P$2=0,$Q80,0) -> 0 | I80: =+IF(OR($P$2=98,$P$2=42,$P$2=96,$P$2=97),$P80,0) -> 0 | J80: =+IF(OR($P$2=98,$P$2=42,$P$2=96,$P$2=97),$Q80,0) -> 0 | L80: =+IF($P$2=33,$Q80,0) -> 0 | N80: =+ROUND(+G80+J80+L80,0) -> 0 | P80: =+ROUND(OTCHET!E429,0) -> 0 | Q80: =+ROUND(OTCHET!L429,0) -> 0 | S80: трансферни параграфи §§ 74-00 ÷ 78-00
B81: В. ОБЩО ТРАНСФЕРИ И ЗАЕМИ М/У БЮДЖЕТНИ ОРГАНИЗАЦИИ | F81: =+ROUND(F79+F80,0) -> 430078 | G81: =+ROUND(G79+G80,0) -> 138839 | I81: =+ROUND(I79+I80,0) -> 0 | J81: =+ROUND(J79+J80,0) -> 0 | L81: =+ROUND(L79+L80,0) -> 0 | N81: =+ROUND(N79+N80,0) -> 138839 | P81: =+ROUND(P79+P80,0) -> 430078 | Q81: =+ROUND(Q79+Q80,0) -> 138839 | S81: сборен ред за В. ОБЩО ТРАНСФЕРИ И ЗАЕМИ М/У БЮДЖ. ОРГАНИЗАЦИИ
B82: =+IF(+SUM(F82:N82)=0,0,"Контрола: дефицит/излишък = финансиране с обратен знак (Г. + Д. = 0)") -> Контрола: дефицит/излишък = финансиране с обратен знак (Г. + Д. = 0) | F82: =+ROUND(F83,0)+ROUND(F84,0) -> 0 | G82: =+ROUND(G83,0)+ROUND(G84,0) -> -1 | I82: =+ROUND(I83,0)+ROUND(I84,0) -> 0 | J82: =+ROUND(J83,0)+ROUND(J84,0) -> 0 | L82: =+ROUND(L83,0)+ROUND(L84,0) -> 0 | N82: =+ROUND(N83,0)+ROUND(N84,0) -> -1 | P82: =+ROUND(P83,0)+ROUND(P84,0) -> 0 | Q82: =+ROUND(Q83,0)+ROUND(Q84,0) -> -1
B83: Г. Бюджетно салдо: Дефицит (-) / излишък (+) = (А. - Б. + В. ) | F83: =+ROUND(F48,0)-ROUND(F77,0)+ROUND(F81,0) -> 0 | G83: =+ROUND(G48,0)-ROUND(G77,0)+ROUND(G81,0) -> 44693 | I83: =+ROUND(I48,0)-ROUND(I77,0)+ROUND(I81,0) -> 0 | J83: =+ROUND(J48,0)-ROUND(J77,0)+ROUND(J81,0) -> 0 | L83: =+ROUND(L48,0)-ROUND(L77,0)+ROUND(L81,0) -> 0 | N83: =+ROUND(N48,0)-ROUND(N77,0)+ROUND(N81,0) -> 44693 | P83: =+ROUND(P48,0)-ROUND(P77,0)+ROUND(P81,0) -> 0 | Q83: =+ROUND(Q48,0)-ROUND(Q77,0)+ROUND(Q81,0) -> 44693 | S83: Г. Бюджетно салдо: Дефицит (-) / излишък (+) = (А. - Б. + В. )
B84: Д. Финансиране на бюджетното салдо (Е. + Ж. + З. - И.) | F84: =+ROUND(F101,0)+ROUND(F120,0)+ROUND(F127,0)-ROUND(F132,0) -> 0 | G84: =+ROUND(G101,0)+ROUND(G120,0)+ROUND(G127,0)-ROUND(G132,0) -> -44694 | I84: =+ROUND(I101,0)+ROUND(I120,0)+ROUND(I127,0)-ROUND(I132,0) -> 0 | J84: =+ROUND(J101,0)+ROUND(J120,0)+ROUND(J127,0)-ROUND(J132,0) -> 0 | L84: =+ROUND(L101,0)+ROUND(L120,0)+ROUND(L127,0)-ROUND(L132,0) -> 0 | N84: =+ROUND(N101,0)+ROUND(N120,0)+ROUND(N127,0)-ROUND(N132,0) -> -44694 | P84: =+ROUND(P101,0)+ROUND(P120,0)+ROUND(P127,0)-ROUND(P132,0) -> 0 | Q84: =+ROUND(Q101,0)+ROUND(Q120,0)+ROUND(Q127,0)-ROUND(Q132,0) -> -44694 | S84: Д. Финансиране на бюджетното салдо (Е. + Ж. + З. - И.)
B85: Е. ОПЕРАЦИИ С ФИНАНСОВИ АКТИВИ | S85: Е. ОПЕРАЦИИ С ФИНАНСОВИ АКТИВИ
B86: I. Придобиване и реализиране на дялове, акции и участия | S86: I. Придобиване и реализиране на дялове, акции и участия
B87: 1. Придобиване на дялове, акции и участия в предприятия (-) | F87: =+IF($P$2=0,$P87,0) -> 0 | G87: =+IF($P$2=0,$Q87,0) -> 0 | I87: =+IF(OR($P$2=98,$P$2=42,$P$2=96,$P$2=97),$P87,0) -> 0 | J87: =+IF(OR($P$2=98,$P$2=42,$P$2=96,$P$2=97),$Q87,0) -> 0 | L87: =+IF($P$2=33,$Q87,0) -> 0 | N87: =+ROUND(+G87+J87+L87,0) -> 0 | P87: =+ROUND(+OTCHET!E462+OTCHET!E463,0) -> 0 | Q87: =+ROUND(+OTCHET!L462+OTCHET!L463,0) -> 0 | S87: финансиращи §§ 70-01 и 70-03
B88: 2. Постъпления от реализация и приватизация на дялове, акциии и участия | F88: =+IF($P$2=0,$P88,0) -> 0 | G88: =+IF($P$2=0,$Q88,0) -> 0 | I88: =+IF(OR($P$2=98,$P$2=42,$P$2=96,$P$2=97),$P88,0) -> 0 | J88: =+IF(OR($P$2=98,$P$2=42,$P$2=96,$P$2=97),$Q88,0) -> 0 | L88: =+IF($P$2=33,$Q88,0) -> 0 | N88: =+ROUND(+G88+J88+L88,0) -> 0 | P88: =+ROUND(OTCHET!E464+OTCHET!E535,0) -> 0 | Q88: =+ROUND(OTCHET!L464+OTCHET!L535,0) -> 0 | S88: финансиращи §§ 70-10 и 90-00
B89: Общо за група І. Придобиване и реализиране на дялове, акции и участия | F89: =+ROUND(+SUM(F87:F88),0) -> 0 | G89: =+ROUND(+SUM(G87:G88),0) -> 0 | I89: =+ROUND(+SUM(I87:I88),0) -> 0 | J89: =+ROUND(+SUM(J87:J88),0) -> 0 | L89: =+ROUND(+SUM(L87:L88),0) -> 0 | N89: =+ROUND(+SUM(N87:N88),0) -> 0 | P89: =+ROUND(+SUM(P87:P88),0) -> 0 | Q89: =+ROUND(+SUM(Q87:Q88),0) -> 0 | S89: Сборен ред за група І. Придобиване и реализиране на дялове, акции и участия
B90: IІ. Предоставени заеми, възмездна фин. помощ и активирани гаранции | S90: IІ. Предоставени заеми, възмездна фин. помощ и активирани гаранции
B91: 1. Предоставени заеми и възмездна финансова помощ (-) | F91: =+IF($P$2=0,$P91,0) -> 0 | G91: =+IF($P$2=0,$Q91,0) -> 0 | I91: =+IF(OR($P$2=98,$P$2=42,$P$2=96,$P$2=97),$P91,0) -> 0 | J91: =+IF(OR($P$2=98,$P$2=42,$P$2=96,$P$2=97),$Q91,0) -> 0 | L91: =+IF($P$2=33,$Q91,0) -> 0 | N91: =+ROUND(+G91+J91+L91,0) -> 0 | P91: =+ROUND(OTCHET!E466+OTCHET!E469+OTCHET!E479,0) -> 0 | Q91: =+ROUND(OTCHET!L466+OTCHET!L469+OTCHET!L479,0) -> 0 | S91: финансиращи §§ 71-01, 72-01 и 79-01
B92: 2. Получени погашения по предоставени заеми и възмездна фин. помощ (+) | F92: =+IF($P$2=0,$P92,0) -> 0 | G92: =+IF($P$2=0,$Q92,0) -> 0 | I92: =+IF(OR($P$2=98,$P$2=42,$P$2=96,$P$2=97),$P92,0) -> 0 | J92: =+IF(OR($P$2=98,$P$2=42,$P$2=96,$P$2=97),$Q92,0) -> 0 | L92: =+IF($P$2=33,$Q92,0) -> 0 | N92: =+ROUND(+G92+J92+L92,0) -> 0 | P92: =+ROUND(OTCHET!E467+OTCHET!E470+OTCHET!E480+OTCHET!E502+IF(+OTCHET!E494>0,+OTCHET!E494,0),0) -> 0 | Q92: =+ROUND(OTCHET!L467+OTCHET!L470+OTCHET!L480+OTCHET!L502+IF(+OTCHET!L494>0,+OTCHET!L494,0),0) -> 0 | S92: финансиращи §§ 71-02, 72-02, 79-02 и 82-00 и § 80-80 (ако е "плюс")
B93: 3. Плащания по активирани гаранции - главници по гарантирани заеми | F93: =+IF($P$2=0,$P93,0) -> 0 | G93: =+IF($P$2=0,$Q93,0) -> 0 | I93: =+IF(OR($P$2=98,$P$2=42,$P$2=96,$P$2=97),$P93,0) -> 0 | J93: =+IF(OR($P$2=98,$P$2=42,$P$2=96,$P$2=97),$Q93,0) -> 0 | L93: =+IF($P$2=33,$Q93,0) -> 0 | N93: =+ROUND(+G93+J93+L93,0) -> 0 | P93: =+ROUND(+SUM(OTCHET!E472:E474),0) -> 0 | Q93: =+ROUND(+SUM(OTCHET!L472:L474),0) -> 0 | S93: финансиращи §§ 73-20, 73-69 и 73-70
B94: 4. Възстановени суми по активирани гаранции - главници | F94: =+IF($P$2=0,$P94,0) -> 0 | G94: =+IF($P$2=0,$Q94,0) -> 0 | I94: =+IF(OR($P$2=98,$P$2=42,$P$2=96,$P$2=97),$P94,0) -> 0 | J94: =+IF(OR($P$2=98,$P$2=42,$P$2=96,$P$2=97),$Q94,0) -> 0 | L94: =+IF($P$2=33,$Q94,0) -> 0 | N94: =+ROUND(+G94+J94+L94,0) -> 0 | P94: =+ROUND(+SUM(OTCHET!E475:E476),0) -> 0 | Q94: =+ROUND(+SUM(OTCHET!L475:L476),0) -> 0 | S94: финансиращи §§ 73-91 и 73-92
B95: Общо за група ІІ. Предоставени заеми, възмездна фин. помощ и гаранции | F95: =+ROUND(+SUM(F91:F94),0) -> 0 | G95: =+ROUND(+SUM(G91:G94),0) -> 0 | I95: =+ROUND(+SUM(I91:I94),0) -> 0 | J95: =+ROUND(+SUM(J91:J94),0) -> 0 | L95: =+ROUND(+SUM(L91:L94),0) -> 0 | N95: =+ROUND(+SUM(N91:N94),0) -> 0 | P95: =+ROUND(+SUM(P91:P94),0) -> 0 | Q95: =+ROUND(+SUM(Q91:Q94),0) -> 0 | S95: Сборен ред за група ІІ. Предоставени заеми, възмездна фин. помощ и гаранции
B96: IІI. Други операции с финансови активи | S96: IІI. Други операции с финансови активи
B97: 1. Нето-операции с други ценни книжа и фин. активи (кеш-мениджмънт) | F97: =+IF($P$2=0,$P97,0) -> 0 | G97: =+IF($P$2=0,$Q97,0) -> 0 | I97: =+IF(OR($P$2=98,$P$2=42,$P$2=96,$P$2=97),$P97,0) -> 0 | J97: =+IF(OR($P$2=98,$P$2=42,$P$2=96,$P$2=97),$Q97,0) -> 0 | L97: =+IF($P$2=33,$Q97,0) -> 0 | N97: =+ROUND(+G97+J97+L97,0) -> 0 | P97: =+ROUND(OTCHET!E536+OTCHET!E541,0) -> 0 | Q97: =+ROUND(OTCHET!L536+OTCHET!L541,0) -> 0 | S97: финансиращи §§ 91-01 и 92-00
B98: 2. Други операции с финансови активи (нето) | F98: =+IF($P$2=0,$P98,0) -> 0 | G98: =+IF($P$2=0,$Q98,0) -> 0 | I98: =+IF(OR($P$2=98,$P$2=42,$P$2=96,$P$2=97),$P98,0) -> 0 | J98: =+IF(OR($P$2=98,$P$2=42,$P$2=96,$P$2=97),$Q98,0) -> 0 | L98: =+IF($P$2=33,$Q98,0) -> 0 | N98: =+ROUND(+G98+J98+L98,0) -> 0 | P98: =+ROUND(+OTCHET!E477+OTCHET!E558+OTCHET!E560,0) -> 0 | Q98: =+ROUND(+OTCHET!L477+OTCHET!L558+OTCHET!L560,0) -> 0 | S98: финансиращи §§ 73-93, 93-36, 93-38
B99: Общо за група ІІІ. Други операции с финансови активи | F99: =+ROUND(+SUM(F97:F98),0) -> 0 | G99: =+ROUND(+SUM(G97:G98),0) -> 0 | I99: =+ROUND(+SUM(I97:I98),0) -> 0 | J99: =+ROUND(+SUM(J97:J98),0) -> 0 | L99: =+ROUND(+SUM(L97:L98),0) -> 0 | N99: =+ROUND(+SUM(N97:N98),0) -> 0 | P99: =+ROUND(+SUM(P97:P98),0) -> 0 | Q99: =+ROUND(+SUM(Q97:Q98),0) -> 0 | S99: Сборен ред за група ІІІ. Други операции с финансови активи
B101: Е. ОБЩО ОПЕРАЦИИ С ФИНАНСОВИ АКТИВИ | F101: =+ROUND(F89+F95+F99,0) -> 0 | G101: =+ROUND(G89+G95+G99,0) -> 0 | I101: =+ROUND(I89+I95+I99,0) -> 0 | J101: =+ROUND(J89+J95+J99,0) -> 0 | L101: =+ROUND(L89+L95+L99,0) -> 0 | N101: =+ROUND(N89+N95+N99,0) -> 0 | P101: =+ROUND(P89+P95+P99,0) -> 0 | Q101: =+ROUND(Q89+Q95+Q99,0) -> 0 | S101: Сборен ред за Е. ОБЩО ОПЕРАЦИИ С ФИНАНСОВИ АКТИВИ
B102: Ж. ОПЕРАЦИИ С ФИНАНСОВИ ПАСИВИ | S102: Ж. ОПЕРАЦИИ С ФИНАНСОВИ ПАСИВИ
B103: I. Емитирани държавни (общински) ценни книжа | S103: I. Емитирани държавни (общински) ценни книжа
B104: 1. Постъпления от емисии на държавни (общински) ценни книжа (+) | F104: =+IF($P$2=0,$P104,0) -> 0 | G104: =+IF($P$2=0,$Q104,0) -> 0 | I104: =+IF(OR($P$2=98,$P$2=42,$P$2=96,$P$2=97),$P104,0) -> 0 | J104: =+IF(OR($P$2=98,$P$2=42,$P$2=96,$P$2=97),$Q104,0) -> 0 | L104: =+IF($P$2=33,$Q104,0) -> 0 | N104: =+ROUND(+G104+J104+L104,0) -> 0 | P104: =+ROUND(OTCHET!E498+OTCHET!E499+OTCHET!E512,0) -> 0 | Q104: =+ROUND(OTCHET!L498+OTCHET!L499+OTCHET!L512,0) -> 0 | S104: финансиращи §§ 81-11, 81-12 и 85-00
B105: 2. Погашения по емисии на държавни (общински) ценни книжа) (-) | F105: =+IF($P$2=0,$P105,0) -> 0 | G105: =+IF($P$2=0,$Q105,0) -> 0 | I105: =+IF(OR($P$2=98,$P$2=42,$P$2=96,$P$2=97),$P105,0) -> 0 | J105: =+IF(OR($P$2=98,$P$2=42,$P$2=96,$P$2=97),$Q105,0) -> 0 | L105: =+IF($P$2=33,$Q105,0) -> 0 | N105: =+ROUND(+G105+J105+L105,0) -> 0 | P105: =+ROUND(OTCHET!E500+OTCHET!E501+OTCHET!E516,0) -> 0 | Q105: =+ROUND(OTCHET!L500+OTCHET!L501+OTCHET!L516,0) -> 0 | S105: финансиращи §§ 81-21, 81-22 и 86-00
B106: Общо за група І. Емитирани държавни (общински) ценни книжа | F106: =+ROUND(+SUM(F104:F105),0) -> 0 | G106: =+ROUND(+SUM(G104:G105),0) -> 0 | I106: =+ROUND(+SUM(I104:I105),0) -> 0 | J106: =+ROUND(+SUM(J104:J105),0) -> 0 | L106: =+ROUND(+SUM(L104:L105),0) -> 0 | N106: =+ROUND(+SUM(N104:N105),0) -> 0 | P106: =+ROUND(+SUM(P104:P105),0) -> 0 | Q106: =+ROUND(+SUM(Q104:Q105),0) -> 0 | S106: Сборен ред за група І. Емитирани държавни (общински) ценни книжа
B107: IІ. Заеми от банки и други лица | S107: IІ. Заеми от банки и други лица
B108: 1. Получени банкови и други заеми (+) | F108: =+IF($P$2=0,$P108,0) -> 0 | G108: =+IF($P$2=0,$Q108,0) -> 0 | I108: =+IF(OR($P$2=98,$P$2=42,$P$2=96,$P$2=97),$P108,0) -> 0 | J108: =+IF(OR($P$2=98,$P$2=42,$P$2=96,$P$2=97),$Q108,0) -> 0 | L108: =+IF($P$2=33,$Q108,0) -> 0 | N108: =+ROUND(+G108+J108+L108,0) -> 0 | P108: =+ROUND(OTCHET!E482+OTCHET!E483+OTCHET!E486+OTCHET!E487+OTCHET!E490+OTCHET!E491+OTCHET!E495+OTCHET!E504+OTCHET!E505+OTCHET!E508+OTCHET!E509,0) -> 0 | Q108: =+ROUND(OTCHET!L482+OTCHET!L483+OTCHET!L486+OTCHET!L487+OTCHET!L490+OTCHET!L491+OTCHET!L495+OTCHET!L504+OTCHET!L505+OTCHET!L508+OTCHET!L509,0) -> 0 | S108: финансиращи §§ 80-11, 80-12, 80-31, 80-32, 80-51, 80-52, 80-97, 83-11, 83-12, 83-71, 83-72
B109: 2. Погашения по получени банкови и други заеми (-) | F109: =+IF($P$2=0,$P109,0) -> 0 | G109: =+IF($P$2=0,$Q109,0) -> 0 | I109: =+IF(OR($P$2=98,$P$2=42,$P$2=96,$P$2=97),$P109,0) -> 0 | J109: =+IF(OR($P$2=98,$P$2=42,$P$2=96,$P$2=97),$Q109,0) -> 0 | L109: =+IF($P$2=33,$Q109,0) -> 0 | N109: =+ROUND(+G109+J109+L109,0) -> 0 | P109: =+ROUND(OTCHET!E484+OTCHET!E485+OTCHET!E488+OTCHET!E489+OTCHET!E492+OTCHET!E493+OTCHET!E496+OTCHET!E506+OTCHET!E507+OTCHET!E510+OTCHET!E511+IF(+OTCHET!E494<0,+OTCHET!E494,0),0) -> 0 | Q109: =+ROUND(OTCHET!L484+OTCHET!L485+OTCHET!L488+OTCHET!L489+OTCHET!L492+OTCHET!L493+OTCHET!L496+OTCHET!L506+OTCHET!L507+OTCHET!L510+OTCHET!L511+IF(+OTCHET!L494<0,+OTCHET!L494,0),0) -> 0 | S109: §§ 80-17, 80-18, 80-37, 80-38, 80-57, 80-58, 80-98, 83-21, 83-22, 83-81, 83-82 и § 80-80 (ако е "минус")
B110: Общо за група ІІ. Заеми от банки и други лица | F110: =+ROUND(+SUM(F108:F109),0) -> 0 | G110: =+ROUND(+SUM(G108:G109),0) -> 0 | I110: =+ROUND(+SUM(I108:I109),0) -> 0 | J110: =+ROUND(+SUM(J108:J109),0) -> 0 | L110: =+ROUND(+SUM(L108:L109),0) -> 0 | N110: =+ROUND(+SUM(N108:N109),0) -> 0 | P110: =+ROUND(+SUM(P108:P109),0) -> 0 | Q110: =+ROUND(+SUM(Q108:Q109),0) -> 0 | S110: Сборен ред за група ІІ. Заеми от банки и други лица
B111: IІI. Финансиране чрез финансов лизинг и търговски кредит | S111: IІI. Финансиране чрез финансов лизинг и търговски кредит
B112: 1. Получено финансиране по финансов лизинг и търговски кредит (+) | F112: =+IF($P$2=0,$P112,0) -> 0 | G112: =+IF($P$2=0,$Q112,0) -> 0 | I112: =+IF(OR($P$2=98,$P$2=42,$P$2=96,$P$2=97),$P112,0) -> 0 | J112: =+IF(OR($P$2=98,$P$2=42,$P$2=96,$P$2=97),$Q112,0) -> 0 | L112: =+IF($P$2=33,$Q112,0) -> 0 | N112: =+ROUND(+G112+J112+L112,0) -> 0 | P112: =+ROUND(OTCHET!E547,0) -> 0 | Q112: =+ROUND(OTCHET!L547,0) -> 0 | S112: финансиращ § 93-17
B113: 2. Погашения по финансов лизинг и търговски кредит (-) | F113: =+IF($P$2=0,$P113,0) -> 0 | G113: =+IF($P$2=0,$Q113,0) -> 0 | I113: =+IF(OR($P$2=98,$P$2=42,$P$2=96,$P$2=97),$P113,0) -> 0 | J113: =+IF(OR($P$2=98,$P$2=42,$P$2=96,$P$2=97),$Q113,0) -> 0 | L113: =+IF($P$2=33,$Q113,0) -> 0 | N113: =+ROUND(+G113+J113+L113,0) -> 0 | P113: =+ROUND(OTCHET!E548,0) -> 0 | Q113: =+ROUND(OTCHET!L548,0) -> 0 | S113: финансиращ § 93-18
B114: Общо за група ІІІ. Финансиране чрез фин. лизинг и търговски кредит | F114: =+ROUND(+SUM(F112:F113),0) -> 0 | G114: =+ROUND(+SUM(G112:G113),0) -> 0 | I114: =+ROUND(+SUM(I112:I113),0) -> 0 | J114: =+ROUND(+SUM(J112:J113),0) -> 0 | L114: =+ROUND(+SUM(L112:L113),0) -> 0 | N114: =+ROUND(+SUM(N112:N113),0) -> 0 | P114: =+ROUND(+SUM(P112:P113),0) -> 0 | Q114: =+ROUND(+SUM(Q112:Q113),0) -> 0 | S114: Сборен ред за група ІІІ. Финансиране чрез фин. лизинг и търговски кредит
B115: ІV. Други операции с финансови пасиви | S115: ІV. Други операции с финансови пасиви
B116: 1. Операции с чужди средства (нето) | F116: =+IF($P$2=0,$P116,0) -> 0 | G116: =+IF($P$2=0,$Q116,0) -> 0 | I116: =+IF(OR($P$2=98,$P$2=42,$P$2=96,$P$2=97),$P116,0) -> 0 | J116: =+IF(OR($P$2=98,$P$2=42,$P$2=96,$P$2=97),$Q116,0) -> 0 | L116: =+IF($P$2=33,$Q116,0) -> 0 | N116: =+ROUND(+G116+J116+L116,0) -> 0 | P116: =+ROUND(OTCHET!E545+OTCHET!E546+OTCHET!E562+OTCHET!E563,0) -> 0 | Q116: =+ROUND(OTCHET!L545+OTCHET!L546+OTCHET!L562+OTCHET!L563,0) -> 0 | S116: финансиращи §§ 93-01, 93-10, 93-55 и 93-56
B117: 2. Друго финансиране - операции с пасиви (нето) | F117: =+IF($P$2=0,$P117,0) -> 0 | G117: =+IF($P$2=0,$Q117,0) -> 0 | I117: =+IF(OR($P$2=98,$P$2=42,$P$2=96,$P$2=97),$P117,0) -> 0 | J117: =+IF(OR($P$2=98,$P$2=42,$P$2=96,$P$2=97),$Q117,0) -> 0 | L117: =+IF($P$2=33,$Q117,0) -> 0 | N117: =+ROUND(+G117+J117+L117,0) -> 0 | P117: =+ROUND(OTCHET!E559+OTCHET!E561,0) -> 0 | Q117: =+ROUND(OTCHET!L559+OTCHET!L561,0) -> 0 | S117: финансиращи §§ 93-37 и 93-39
B118: Общо за група ІV. Други операции с финансови пасиви | F118: =+ROUND(+SUM(F116:F117),0) -> 0 | G118: =+ROUND(+SUM(G116:G117),0) -> 0 | I118: =+ROUND(+SUM(I116:I117),0) -> 0 | J118: =+ROUND(+SUM(J116:J117),0) -> 0 | L118: =+ROUND(+SUM(L116:L117),0) -> 0 | N118: =+ROUND(+SUM(N116:N117),0) -> 0 | P118: =+ROUND(+SUM(P116:P117),0) -> 0 | Q118: =+ROUND(+SUM(Q116:Q117),0) -> 0 | S118: Сборен ред за група ІV. Други операции с финансови пасиви
B120: Ж. ОБЩО ОПЕРАЦИИ С ФИНАНСОВИ ПАСИВИ | F120: =+ROUND(F106+F110+F114+F118,0) -> 0 | G120: =+ROUND(G106+G110+G114+G118,0) -> 0 | I120: =+ROUND(I106+I110+I114+I118,0) -> 0 | J120: =+ROUND(J106+J110+J114+J118,0) -> 0 | L120: =+ROUND(L106+L110+L114+L118,0) -> 0 | N120: =+ROUND(N106+N110+N114+N118,0) -> 0 | P120: =+ROUND(P106+P110+P114+P118,0) -> 0 | Q120: =+ROUND(Q106+Q110+Q114+Q118,0) -> 0 | S120: Сборен ред за Ж. ОБЩО ОПЕРАЦИИ С ФИНАНСОВИ ПАСИВИ
B121: З. НЕТО-РАЗЧЕТИ И ОПЕРАЦИИ | S121: З. НЕТО-РАЗЧЕТИ И ОПЕРАЦИИ
B122: 1. Нето-операции за сметка на средства от Европейския съюз | F122: =+IF($P$2=0,$P122,0) -> 0 | G122: =+IF($P$2=0,$Q122,0) -> 0 | I122: =+IF(OR($P$2=98,$P$2=42,$P$2=96,$P$2=97),$P122,0) -> 0 | J122: =+IF(OR($P$2=98,$P$2=42,$P$2=96,$P$2=97),$Q122,0) -> 0 | L122: =+IF($P$2=33,$Q122,0) -> 0 | N122: =+ROUND(+G122+J122+L122,0) -> 0 | P122: =+ROUND(+SUM(OTCHET!E549:E556),0) -> 0 | Q122: =+ROUND(+SUM(OTCHET!L549:L556),0) -> 0 | S122: финансиращи §§ 93-21 ÷ 93-28
B123: 2. Операции за сметка на други бюджети, сметки и фондове | F123: =+IF($P$2=0,$P123,0) -> 0 | G123: =+IF($P$2=0,$Q123,0) -> 2304 | I123: =+IF(OR($P$2=98,$P$2=42,$P$2=96,$P$2=97),$P123,0) -> 0 | J123: =+IF(OR($P$2=98,$P$2=42,$P$2=96,$P$2=97),$Q123,0) -> 0 | L123: =+IF($P$2=33,$Q123,0) -> 0 | N123: =+ROUND(+G123+J123+L123,0) -> 2304 | P123: =+ROUND(OTCHET!E524,0) -> 0 | Q123: =+ROUND(OTCHET!L524,0) -> 2304 | S123: финансиращ § 88-00
B124: 3. Други нето-разчети и операции на бюджетни организации | F124: =+IF($P$2=0,$P124,0) -> 0 | G124: =+IF($P$2=0,$Q124,0) -> 0 | I124: =+IF(OR($P$2=98,$P$2=42,$P$2=96,$P$2=97),$P124,0) -> 0 | J124: =+IF(OR($P$2=98,$P$2=42,$P$2=96,$P$2=97),$Q124,0) -> 0 | L124: =+IF($P$2=33,$Q124,0) -> 0 | N124: =+ROUND(+G124+J124+L124,0) -> 0 | P124: =+ROUND(+OTCHET!E521+OTCHET!E531+OTCHET!E557+OTCHET!E564+OTCHET!E565+OTCHET!E579+OTCHET!E591+IF(AND(OTCHET!$F$12=9900,+OTCHET!$E$15=0),+OTCHET!E586,0),0) -> 0 | Q124: =+ROUND(+OTCHET!L521+OTCHET!L531+OTCHET!L557+OTCHET!L564+OTCHET!L565+OTCHET!L579+OTCHET!L591+IF(AND(OTCHET!$F$12=9900,+OTCHET!$E$15=0),+OTCHET!L586,0),0) -> 0 | S124: финансиращи §§ 87-00, 89-00, 93-30, 93-95, 93-96, 95-13 и 98-00 (за ЦБ - и § 96-01 и 96-02)
B125: в т.ч. изменение на средства по сметки, включени в единната сметка | F125: =+IF($P$2=0,$P125,0) -> 0 | G125: =+IF($P$2=0,$Q125,0) -> 0 | N125: =+ROUND(+G125+J125+L125,0) -> 0 | P125: =+ROUND(+IF(AND(OTCHET!$F$12="9900",+OTCHET!$E$15=0,+(OTCHET!E589+OTCHET!E590)>0,+(OTCHET!E587+OTCHET!E588)<0),+OTCHET!E586,0),0) -> 0 | Q125: =+ROUND(+IF(AND(OTCHET!$F$12="9900",+OTCHET!$E$15=0,+(OTCHET!L589+OTCHET!L590)>=0,+(OTCHET!L587+OTCHET!L588)<=0),+OTCHET!L586,0),0) -> 0 | S125: финансиращ § 96-00
B126: 4. Разлики от закръгления в хил. лв. (+/-) | N126: =+ROUND(+G126+J126+L126,0) -> 0 | S126: прилага се само за отчета в хил. лв.
B127: З. ОБЩО НЕТО-РАЗЧЕТИ И ДРУГИ ОПЕРАЦИИ | F127: =+ROUND(+SUM(F122:F126),0) -> 0 | G127: =+ROUND(+SUM(G122:G126),0) -> 2304 | I127: =+ROUND(+SUM(I122:I126),0) -> 0 | J127: =+ROUND(+SUM(J122:J126),0) -> 0 | L127: =+ROUND(+SUM(L122:L126),0) -> 0 | N127: =+ROUND(+SUM(N122:N126),0) -> 2304 | P127: =+ROUND(+SUM(P122:P126),0) -> 0 | Q127: =+ROUND(+SUM(Q122:Q126),0) -> 2304 | S127: Сборен ред за З. ОБЩО НЕТО-РАЗЧЕТИ И ДРУГИ НЕТНИ ПОЗИЦИИ
B128: И. ИЗМЕНЕНИЕ НА ПАРИЧНИТЕ СРЕДСТВА | S128: И. ИЗМЕНЕНИЕ НА ПАРИЧНИТЕ СРЕДСТВА
B129: 1. Наличности на парични средства в началото на отчетния период | F129: =+IF($P$2=0,$P129,0) -> 0 | G129: =+IF($P$2=0,$Q129,0) -> 0 | I129: =+IF(OR($P$2=98,$P$2=42,$P$2=96,$P$2=97),$P129,0) -> 0 | J129: =+IF(OR($P$2=98,$P$2=42,$P$2=96,$P$2=97),$Q129,0) -> 0 | L129: =+IF($P$2=33,$Q129,0) -> 0 | N129: =+ROUND(+G129+J129+L129,0) -> 0 | P129: =+ROUND(+SUM(OTCHET!E567:E572)+SUM(OTCHET!E581:E582)+IF(AND(OTCHET!$F$12=9900,+OTCHET!$E$15=0),0,SUM(OTCHET!E587:E588)),0) -> 0 | Q129: =+ROUND(+SUM(OTCHET!L567:L572)+SUM(OTCHET!L581:L582)+IF(AND(OTCHET!$F$12=9900,+OTCHET!$E$15=0),0,SUM(OTCHET!L587:L588)),0) -> 0 | S129: финансиращи §§ 95-01 ÷ 95-06, 95-21, 95-22, 96-01 и 96-03 (за ЦБ - без § 96-01 и 96-03)
B130: 2. Преоценка на наличности в чудестранна валута в края на отчетния период | F130: =+IF($P$2=0,$P130,0) -> 0 | G130: =+IF($P$2=0,$Q130,0) -> 0 | I130: =+IF(OR($P$2=98,$P$2=42,$P$2=96,$P$2=97),$P130,0) -> 0 | J130: =+IF(OR($P$2=98,$P$2=42,$P$2=96,$P$2=97),$Q130,0) -> 0 | L130: =+IF($P$2=33,$Q130,0) -> 0 | N130: =+ROUND(+G130+J130+L130,0) -> 0 | P130: =+ROUND(OTCHET!E580+OTCHET!E585,0) -> 0 | Q130: =+ROUND(OTCHET!L580+OTCHET!L585,0) -> 0 | S130: финансиращи §§ 95-14 и 95-49
B131: 3. Наличности на парични средства в края на отчетния период | F131: =+IF($P$2=0,$P131,0) -> 0 | G131: =+IF($P$2=0,$Q131,0) -> 46998 | I131: =+IF(OR($P$2=98,$P$2=42,$P$2=96,$P$2=97),$P131,0) -> 0 | J131: =+IF(OR($P$2=98,$P$2=42,$P$2=96,$P$2=97),$Q131,0) -> 0 | L131: =+IF($P$2=33,$Q131,0) -> 0 | N131: =+ROUND(+G131+J131+L131,0) -> 46998 | P131: =+ROUND(-SUM(OTCHET!E573:E578)-SUM(OTCHET!E583:E584)-IF(AND(OTCHET!$F$12=9900,+OTCHET!$E$15=0),0,SUM(OTCHET!E589:E590)),0) -> 0 | Q131: =+ROUND(-SUM(OTCHET!L573:L578)-SUM(OTCHET!L583:L584)-IF(AND(OTCHET!$F$12=9900,+OTCHET!$E$15=0),0,SUM(OTCHET!L589:L590)),0) -> 46998 | S131: (-) §§ 95-07 ÷ 95-12, 95-28, 95-29, 96-07 и 96-09 (за ЦБ - § без 96-07 и 96-09)
B132: И. ИЗМЕНЕНИЕ НА ПАРИЧНИТЕ СРЕДСТВА (3. - 1. - 2.) | F132: =+ROUND(+F131-F129-F130,0) -> 0 | G132: =+ROUND(+G131-G129-G130,0) -> 46998 | I132: =+ROUND(+I131-I129-I130,0) -> 0 | J132: =+ROUND(+J131-J129-J130,0) -> 0 | L132: =+ROUND(+L131-L129-L130,0) -> 0 | N132: =+ROUND(+N131-N129-N130,0) -> 46998 | P132: =+ROUND(+P131-P129-P130,0) -> 0 | Q132: =+ROUND(+Q131-Q129-Q130,0) -> 46998 | S132: Сборен ред за И. ИЗМЕНЕНИЕ НА ПАРИЧНИТЕ СРЕДСТВА (3. - 1. - 2.)
B133: =+IF(+SUM(F133:N133)=0,0,"Контрола: дефицит/излишък = финансиране с обратен знак (Г. + Д. = 0)") -> Контрола: дефицит/излишък = финансиране с обратен знак (Г. + Д. = 0) | F133: =+ROUND(F83,0)+ROUND(F84,0) -> 0 | G133: =+ROUND(G83,0)+ROUND(G84,0) -> -1 | I133: =+ROUND(I83,0)+ROUND(I84,0) -> 0 | J133: =+ROUND(J83,0)+ROUND(J84,0) -> 0 | L133: =+ROUND(L83,0)+ROUND(L84,0) -> 0 | N133: =+ROUND(N83,0)+ROUND(N84,0) -> -1 | P133: =+ROUND(P83,0)+ROUND(P84,0) -> 0 | Q133: =+ROUND(Q83,0)+ROUND(Q84,0) -> -1
B134: Дата: | C134: =+OTCHET!B605 -> 43935 | D134: ГЛ. СЧЕТОВОДИТЕЛ: | I134: РЪКОВОДИТЕЛ:
B137: КОНТРОЛА - РАВНЕНИЕ МЕЖДУ БЮДЖЕТНО САЛДО И ФИНАНСИРАНЕ | F137: =+IF(+ROUND(F140,2)=0,"O K","НЕРАВНЕНИЕ!") -> O K | G137: =+IF(+ROUND(G140,2)=0,"O K","НЕРАВНЕНИЕ!") -> НЕРАВНЕНИЕ! | I137: =+IF(+ROUND(I140,2)=0,"O K","НЕРАВНЕНИЕ!") -> O K | J137: =+IF(+ROUND(J140,2)=0,"O K","НЕРАВНЕНИЕ!") -> O K | L137: =+IF(+ROUND(L140,2)=0,"O K","НЕРАВНЕНИЕ!") -> O K | N137: =+IF(+ROUND(N140,2)=0,"O K","НЕРАВНЕНИЕ!") -> НЕРАВНЕНИЕ! | P137: =+IF(+ROUND(P140,2)=0,"O K","НЕРАВНЕНИЕ!") -> O K | Q137: =+IF(+ROUND(Q140,2)=0,"O K","НЕРАВНЕНИЕ!") -> НЕРАВНЕНИЕ!
B138: КОНТРОЛА - РАВНЕНИЕ НА КАСОВИ ПОТОЦИ С НАЛИЧНОСТ | F138: =+IF(+ROUND(F141,0)=0,"O K","НЕРАВНЕНИЕ!") -> O K | G138: =+IF(+ROUND(G141,0)=0,"O K","НЕРАВНЕНИЕ!") -> НЕРАВНЕНИЕ! | I138: =+IF(+ROUND(I141,0)=0,"O K","НЕРАВНЕНИЕ!") -> O K | J138: =+IF(+ROUND(J141,0)=0,"O K","НЕРАВНЕНИЕ!") -> O K | L138: =+IF(+ROUND(L141,0)=0,"O K","НЕРАВНЕНИЕ!") -> O K | N138: =+IF(+ROUND(N141,0)=0,"O K","НЕРАВНЕНИЕ!") -> НЕРАВНЕНИЕ! | P138: =+IF(+ROUND(P141,0)=0,"O K","НЕРАВНЕНИЕ!") -> O K | Q138: =+IF(+ROUND(Q141,0)=0,"O K","НЕРАВНЕНИЕ!") -> НЕРАВНЕНИЕ!
B140: КОНТРОЛА - РАВНЕНИЕ НА БЮДЖ. САЛДО И ФИНАНСИРАНЕ - неравнение в левове | F140: =+ROUND(F83,0)+ROUND(F84,0) -> 0 | G140: =+ROUND(G83,0)+ROUND(G84,0) -> -1 | I140: =+ROUND(I83,0)+ROUND(I84,0) -> 0 | J140: =+ROUND(J83,0)+ROUND(J84,0) -> 0 | L140: =+ROUND(L83,0)+ROUND(L84,0) -> 0 | N140: =+ROUND(N83,0)+ROUND(N84,0) -> -1 | P140: =+ROUND(P83,0)+ROUND(P84,0) -> 0 | Q140: =+ROUND(Q83,0)+ROUND(Q84,0) -> -1
B141: КОНТРОЛА - РАВНЕНИЕ НА КАСОВИ ПОТОЦИ С НАЛИЧНОСТ - неравнение в левове | F141: =SUM(+ROUND(F83,0)+ROUND(F101,0)+ROUND(F120,0)+ROUND(F127,0)+ROUND(F129,0)+ROUND(F130,0))-ROUND(F131,0) -> 0 | G141: =SUM(+ROUND(G83,0)+ROUND(G101,0)+ROUND(G120,0)+ROUND(G127,0)+ROUND(G129,0)+ROUND(G130,0))-ROUND(G131,0) -> -1 | I141: =SUM(+ROUND(I83,0)+ROUND(I101,0)+ROUND(I120,0)+ROUND(I127,0)+ROUND(I129,0)+ROUND(I130,0))-ROUND(I131,0) -> 0 | J141: =SUM(+ROUND(J83,0)+ROUND(J101,0)+ROUND(J120,0)+ROUND(J127,0)+ROUND(J129,0)+ROUND(J130,0))-ROUND(J131,0) -> 0 | L141: =SUM(+ROUND(L83,0)+ROUND(L101,0)+ROUND(L120,0)+ROUND(L127,0)+ROUND(L129,0)+ROUND(L130,0))-ROUND(L131,0) -> 0 | N141: =SUM(+ROUND(N83,0)+ROUND(N101,0)+ROUND(N120,0)+ROUND(N127,0)+ROUND(N129,0)+ROUND(N130,0))-ROUND(N131,0) -> -1 | P141: =SUM(+ROUND(P83,0)+ROUND(P101,0)+ROUND(P120,0)+ROUND(P127,0)+ROUND(P129,0)+ROUND(P130,0))-ROUND(P131,0) -> 0 | Q141: =SUM(+ROUND(Q83,0)+ROUND(Q101,0)+ROUND(Q120,0)+ROUND(Q127,0)+ROUND(Q129,0)+ROUND(Q130,0))-ROUND(Q131,0) -> -1

Sheet OTCHET-agregirani pokazateli
B8: =VLOOKUP(E15,SMETKA,3,FALSE) -> ОТЧЕТ ЗА КАСОВОТО ИЗПЪЛНЕНИЕ НА БЮДЖЕТА
B11: =+OTCHET!B9 -> ОУ Г.С.РАКОВСКИ-С.ГЪЛЪБЕЦ | E11: към | F11: =OTCHET!F9 -> 2020-03-31 | G11: ЕИК/БУЛСТАТ | H11: =OTCHET!H9 -> 0 | I11: =OTCHET!I9 -> 0
B12: (наименование на разпоредителя с бюджет) | I12: код от регистъра на бюджетните организации в СЕБРА
B13: =+OTCHET!B12 -> Поморие | E13: =+OTCHET!E12 -> код по ЕБК: | F13: =+OTCHET!F12 -> 5207
B14: (наименование на първостепенния разпоредител с бюджет)
B15: финансово-правна форма | E15: =OTCHET!E15 -> 0 | F15: =OTCHET!F15 -> БЮДЖЕТ
C17: §§ | E17: Годишен уточнен план 2020 г. | F17: ОТЧЕТ 2020 г. | G17: ОТЧЕТНИ ДАННИ ЗА: | K17: §§ от ЕБК, които се включват в съответния показател
B18: П О К А З А Т Е Л И | G18: държавни дейности | H18: местни дейности | I18: дофинансиране
B20: (а) | E20: (1) | F20: (2) | G20: (3) | H20: (4) | I20: (5)
A22: 10 | B22: I. ПРИХОДИ, ПОМОЩИ И ДАРЕНИЯ | C22: §§ 01 - 48 | E22: =+E23+E25+E36+E37 -> 0 | F22: =+F23+F25+F36+F37 -> 0 | G22: =+G23+G25+G36+G37 -> 0 | H22: =+H23+H25+H36+H37 -> 0 | I22: =+I23+I25+I36+I37 -> 0 | K22: §§ 01 - 48
A23: 15 | B23: 1. Данъчни приходи | C23: §§ 01 - 20 | E23: =OTCHET!E22+OTCHET!E28+OTCHET!E33+OTCHET!E39+OTCHET!E47+OTCHET!E52+OTCHET!E58+OTCHET!E61+OTCHET!E64+OTCHET!E65+OTCHET!E72+OTCHET!E73 -> 0 | F23: =+G23+H23+I23 -> 0 | G23: =OTCHET!I22+OTCHET!I28+OTCHET!I33+OTCHET!I39+OTCHET!I47+OTCHET!I52+OTCHET!I58+OTCHET!I61+OTCHET!I64+OTCHET!I65+OTCHET!I72+OTCHET!I73 -> 0 | H23: =OTCHET!J22+OTCHET!J28+OTCHET!J33+OTCHET!J39+OTCHET!J47+OTCHET!J52+OTCHET!J58+OTCHET!J61+OTCHET!J64+OTCHET!J65+OTCHET!J72+OTCHET!J73 -> 0 | I23: =OTCHET!K22+OTCHET!K28+OTCHET!K33+OTCHET!K39+OTCHET!K47+OTCHET!K52+OTCHET!K58+OTCHET!K61+OTCHET!K64+OTCHET!K65+OTCHET!K72+OTCHET!K73 -> 0 | K23: §§ 01 - 20
B24: в т. ч. трансфери за отчислени приходи | C24: § 65 | F24: =+G24+H24+I24 -> 0 | K24: § 65
A25: 20 | B25: 2. Други приходи | C25: §§ 24 - 42 | E25: =+E26+E30+E31+E32+E33 -> 0 | F25: =+F26+F30+F31+F32+F33 -> 0 | G25: =+G26+G30+G31+G32+G33 -> 0 | H25: =+H26+H30+H31+H32+H33 -> 0 | I25: =+I26+I30+I31+I32+I33 -> 0 | K25: §§ 24 - 42
A26: 25 | B26: 2.1 Приходи и доходи от собственост | C26: §24 | E26: =OTCHET!E74 -> 0 | F26: =+G26+H26+I26 -> 0 | G26: =OTCHET!I74 -> 0 | H26: =OTCHET!J74 -> 0 | I26: =OTCHET!K74 -> 0 | K26: §24
A27: 26 | B27: в т. ч. вноски от приходи на държавни и общински предприятия и институции | C27: под.§ 24-01 | E27: =OTCHET!E75 -> 0 | F27: 0 | G27: =OTCHET!I75 -> 0 | H27: =OTCHET!J75 -> 0 | I27: =OTCHET!K75 -> 0 | K27: под.§ 24-01
A28: 30 | B28: нетни приходи от продажба на услуги, стоки и продукция | C28: под.§ 24-04 | E28: =OTCHET!E77 -> 0 | F28: 0 | G28: =OTCHET!I77 -> 0 | H28: =OTCHET!J77 -> 0 | I28: =OTCHET!K77 -> 0 | K28: под.§ 24-04
A29: 35 | B29: приходи от наеми на имущество и земя | C29: под.§§ 24-05 и 24-06 | E29: =+OTCHET!E78+OTCHET!E79 -> 0 | F29: 0 | G29: =+OTCHET!I78+OTCHET!I79 -> 0 | H29: =+OTCHET!J78+OTCHET!J79 -> 0 | I29: =+OTCHET!K78+OTCHET!K79 -> 0 | K29: под.§§ 24-05 и 24-06
A30: 40 | B30: 2.2 Приходи от такси | C30: §§ 25 - 27 | E30: =OTCHET!E90+OTCHET!E93+OTCHET!E94 -> 0 | F30: 0 | G30: =OTCHET!I90+OTCHET!I93+OTCHET!I94 -> 0 | H30: =OTCHET!J90+OTCHET!J93+OTCHET!J94 -> 0 | I30: =OTCHET!K90+OTCHET!K93+OTCHET!K94 -> 0 | K30: §§ 25 - 27
A31: 45 | B31: 2.3 Глоби, санкции и наказателни лихви | C31: §28 | E31: =OTCHET!E108 -> 0 | F31: 0 | G31: =OTCHET!I108 -> 0 | H31: =OTCHET!J108 -> 0 | I31: =OTCHET!K108 -> 0 | K31: §28
A32: 50 | B32: 2.4 Други неданъчни приходи | C32: §§ 36 - 37 и §§ 41 - 42 | E32: =OTCHET!E112+OTCHET!E121+OTCHET!E137+OTCHET!E138 -> 0 | F32: 0 | G32: =OTCHET!I112+OTCHET!I121+OTCHET!I137+OTCHET!I138 -> 0 | H32: =OTCHET!J112+OTCHET!J121+OTCHET!J137+OTCHET!J138 -> 0 | I32: =OTCHET!K112+OTCHET!K121+OTCHET!K137+OTCHET!K138 -> 0 | K32: §§ 36 - 37 и §§ 41 - 42
A33: 51 | B33: 2.5 Постъпления от продажба на нефинансови активи | C33: § 40 с изключение на под.§ 40-71 | E33: =OTCHET!E125 -> 0 | F33: 0 | G33: =OTCHET!I125 -> 0 | H33: =OTCHET!J125 -> 0 | I33: =OTCHET!K125 -> 0 | K33: § 40 с изключение на под.§ 40-71
A34: 52 | F34: 0
F35: 0
A36: 60 | B36: 3. Помощи и дарения от страната | C36: § 45 | E36: =+OTCHET!E139 -> 0 | F36: 0 | G36: =+OTCHET!I139 -> 0 | H36: =+OTCHET!J139 -> 0 | I36: =+OTCHET!K139 -> 0 | K36: § 45
A37: 65 | B37: 4. Помощи и дарения от чужбина | C37: §§ 46 - 48 | E37: =OTCHET!E142+OTCHET!E151+OTCHET!E160 -> 0 | F37: 0 | G37: =OTCHET!I142+OTCHET!I151+OTCHET!I160 -> 0 | H37: =OTCHET!J142+OTCHET!J151+OTCHET!J160 -> 0 | I37: =OTCHET!K142+OTCHET!K151+OTCHET!K160 -> 0 | K37: §§ 46 - 48
A38: 70 | B38: II. РАЗХОДИ | C38: §§ 01 - 57 | E38: =E39+E43+E44+E46+SUM(E48:E52)+E55 -> 430078 | F38: =F39+F43+F44+F46+SUM(F48:F52)+F55 -> 94145.69 | G38: =G39+G43+G44+G46+SUM(G48:G52)+G55 -> 94145.69 | H38: =H39+H43+H44+H46+SUM(H48:H52)+H55 -> 0 | I38: =I39+I43+I44+I46+SUM(I48:I52)+I55 -> 0 | K38: §§ 01 - 57
B39: 1. Персонал | E39: =SUM(E40:E42) -> 376989 | F39: =SUM(F40:F42) -> 82317.88 | G39: =SUM(G40:G42) -> 82317.88 | H39: =SUM(H40:H42) -> 0 | I39: =SUM(I40:I42) -> 0 | K39: §§ 1 - 8
A40: 75 | B40: 1.1. Заплати и възнаграждения за персонала, нает по трудови и служебни прав. | C40: § 01 | E40: =OTCHET!E187 -> 289769 | F40: =+G40+H40+I40 -> 59656.96 | G40: =OTCHET!I187 -> 59656.96 | H40: =OTCHET!J187 -> 0 | I40: =OTCHET!K187 -> 0 | K40: § 01
A41: 80 | B41: 1.2. Други възнаграждения и плащания за персонала | C41: § 02 | E41: =OTCHET!E190 -> 19220 | F41: 7675.77 | G41: =OTCHET!I190 -> 7675.77 | H41: =OTCHET!J190 -> 0 | I41: =OTCHET!K190 -> 0 | K41: § 02
A42: 85 | B42: 1.3. Осигурителни вноски | C42: §§ 05 и 08 | E42: =+OTCHET!E196+OTCHET!E204 -> 68000 | F42: 14985.15 | G42: =+OTCHET!I196+OTCHET!I204 -> 14985.15 | H42: =+OTCHET!J196+OTCHET!J204 -> 0 | I42: =+OTCHET!K196+OTCHET!K204 -> 0 | K42: §§ 05 и 08
A43: 90 | B43: 2. Издръжка | C43: §§ 10; 19; 46 | E43: =+OTCHET!E205+OTCHET!E223+OTCHET!E271 -> 53089 | F43: 11827.81 | G43: =+OTCHET!I205+OTCHET!I223+OTCHET!I271 -> 11827.81 | H43: =+OTCHET!J205+OTCHET!J223+OTCHET!J271 -> 0 | I43: =+OTCHET!K205+OTCHET!K223+OTCHET!K271 -> 0 | K43: §§ 10; 19; 46
A44: 95 | B44: 3. Лихви | C44: §§ 21 - 29 | E44: =+OTCHET!E227+OTCHET!E233+OTCHET!E236+OTCHET!E237+OTCHET!E238+OTCHET!E239+OTCHET!E240 -> 0 | F44: 0 | G44: =+OTCHET!I227+OTCHET!I233+OTCHET!I236+OTCHET!I237+OTCHET!I238+OTCHET!I239+OTCHET!I240 -> 0 | H44: =+OTCHET!J227+OTCHET!J233+OTCHET!J236+OTCHET!J237+OTCHET!J238+OTCHET!J239+OTCHET!J240 -> 0 | I44: =+OTCHET!K227+OTCHET!K233+OTCHET!K236+OTCHET!K237+OTCHET!K238+OTCHET!K239+OTCHET!K240 -> 0 | K44: §§ 21 - 29
A45: 100 | B45: в т. ч. външни | C45: §§ 25 - 28; 29-69/29-70 и 29-92 | E45: =+OTCHET!E236+OTCHET!E237+OTCHET!E238+OTCHET!E239+OTCHET!E243+OTCHET!E244+OTCHET!E248 -> 0 | F45: 0 | G45: =+OTCHET!I236+OTCHET!I237+OTCHET!I238+OTCHET!I239+OTCHET!I243+OTCHET!I244+OTCHET!I248 -> 0 | H45: =+OTCHET!J236+OTCHET!J237+OTCHET!J238+OTCHET!J239+OTCHET!J243+OTCHET!J244+OTCHET!J248 -> 0 | I45: =+OTCHET!K236+OTCHET!K237+OTCHET!K238+OTCHET!K239+OTCHET!K243+OTCHET!K244+OTCHET!K248 -> 0 | K45: §§ 25 - 28; 29-69/29-70 и 29-92
A46: 105 | B46: 4. Социални разходи, стипендии | C46: §§ 39 - 42 | E46: =+OTCHET!E255+OTCHET!E256+OTCHET!E257+OTCHET!E258 -> 0 | F46: 0 | G46: =+OTCHET!I255+OTCHET!I256+OTCHET!I257+OTCHET!I258 -> 0 | H46: =+OTCHET!J255+OTCHET!J256+OTCHET!J257+OTCHET!J258 -> 0 | I46: =+OTCHET!K255+OTCHET!K256+OTCHET!K257+OTCHET!K258 -> 0 | K46: §§ 39 - 42
A47: 106 | B47: в т. ч. стипендии | C47: § 40 | E47: =+OTCHET!E256 -> 0 | F47: 0 | G47: =+OTCHET!I256 -> 0 | H47: =+OTCHET!J256 -> 0 | I47: =+OTCHET!K256 -> 0 | K47: § 40
A48: 107 | B48: 5.Субсидии | C48: §§ 43 - 45; 49 | E48: =+OTCHET!E265+OTCHET!E269+OTCHET!E270 -> 0 | F48: 0 | G48: =+OTCHET!I265+OTCHET!I269+OTCHET!I270 -> 0 | H48: =+OTCHET!J265+OTCHET!J269+OTCHET!J270 -> 0 | I48: =+OTCHET!K265+OTCHET!K269+OTCHET!K270 -> 0 | K48: §§ 43 - 45
A49: 108 | B49: 6. Придобиване на нeфинансови актииви | C49: §§ 51 - 54 | E49: =OTCHET!E275+OTCHET!E276+OTCHET!E284+OTCHET!E287 -> 0 | F49: 0 | G49: =OTCHET!I275+OTCHET!I276+OTCHET!I284+OTCHET!I287 -> 0 | H49: =OTCHET!J275+OTCHET!J276+OTCHET!J284+OTCHET!J287 -> 0 | I49: =OTCHET!K275+OTCHET!K276+OTCHET!K284+OTCHET!K287 -> 0 | K49: §§ 51 - 54
A50: 110 | B50: 7. Капиталови трансфери | C50: § 55 | E50: =+OTCHET!E288 -> 0 | F50: 0 | G50: =+OTCHET!I288 -> 0 | H50: =+OTCHET!J288 -> 0 | I50: =+OTCHET!K288 -> 0 | K50: § 55
B51: 8. Предоставени текущи и капиталови трансфери за чужбина | E51: =+OTCHET!E272 -> 0 | F51: =+G51+H51+I51 -> 0 | G51: =+OTCHET!I272 -> 0 | H51: =+OTCHET!J272 -> 0 | I51: =+OTCHET!K272 -> 0 | K51: § 49
A52: 115 | B52: 9. Прираст на държавния резерв и изкупуване на земеделска продукция | C52: (+ § 57 - под.§ 40-71) | E52: =+OTCHET!E293 -> 0 | F52: 0 | G52: =+OTCHET!I293 -> 0 | H52: =+OTCHET!J293 -> 0 | I52: =+OTCHET!K293 -> 0 | K52: (+ § 57 - под.§ 40-71)
A53: 120 | B53: в т. ч. плащания за попълване на държавния резерв | C53: под.§;57-01 | E53: =OTCHET!E294 -> 0 | F53: 0 | G53: =OTCHET!I294 -> 0 | H53: =OTCHET!J294 -> 0 | I53: =OTCHET!K294 -> 0 | K53: под.§;57-01
A54: 125 | B54: постъпления от продажби на държавния резерв (-) | C54: (-)под.§ 40-71 | E54: =OTCHET!E296 -> 0 | F54: 0 | G54: =OTCHET!I296 -> 0 | H54: =OTCHET!J296 -> 0 | I54: =OTCHET!K296 -> 0 | K54: (-)под.§ 40-71
A55: 127 | B55: 10. Резерв за непредвидини и неотложни разходи | C55: §;00-98 | E55: =+OTCHET!E297 -> 0 | F55: 0 | G55: =+OTCHET!I297 -> 0 | H55: =+OTCHET!J297 -> 0 | I55: =+OTCHET!K297 -> 0 | K55: §;00-98
A56: 130 | B56: III. Трансфери | C56: §§ 30 - 31; 32; 60 - 67; 69; 74 - 78 | E56: =+E57+E58+E62 -> 430078 | F56: =+F57+F58+F62 -> 138838.89 | G56: =+G57+G58+G62 -> 138838.89 | H56: =+H57+H58+H62 -> 0 | I56: =+I57+I58+I62 -> 0 | K56: §§ 30 - 31; 32; 60 - 67; 69; 74 - 78
A57: 135 | B57: 1. Трансфери от/за ЦБ за/от други бюджети | C57: §§ 30 - 31; 60 | E57: =+OTCHET!E361+OTCHET!E375+OTCHET!E388 -> 0 | F57: =+G57+H57+I57 -> 0 | G57: =+OTCHET!I361+OTCHET!I375+OTCHET!I388 -> 0 | H57: =+OTCHET!J361+OTCHET!J375+OTCHET!J388 -> 0 | I57: =+OTCHET!K361+OTCHET!K375+OTCHET!K388 -> 0 | K57: §§ 30 - 31; 60
A58: 140 | B58: 2. Други трансфери | C58: §§ 32; 61- 67; 74 - 78 | E58: =+OTCHET!E383+OTCHET!E391+OTCHET!E396+OTCHET!E399+OTCHET!E402+OTCHET!E405+OTCHET!E406+OTCHET!E409+OTCHET!E422+OTCHET!E423+OTCHET!E424+OTCHET!E425+OTCHET!E426 -> 430078 | F58: 138838.89 | G58: =+OTCHET!I383+OTCHET!I391+OTCHET!I396+OTCHET!I399+OTCHET!I402+OTCHET!I405+OTCHET!I406+OTCHET!I409+OTCHET!I422+OTCHET!I423+OTCHET!I424+OTCHET!I425+OTCHET!I426 -> 138838.89 | H58: =+OTCHET!J383+OTCHET!J391+OTCHET!J396+OTCHET!J399+OTCHET!J402+OTCHET!J405+OTCHET!J406+OTCHET!J409+OTCHET!J422+OTCHET!J423+OTCHET!J424+OTCHET!J425+OTCHET!J426 -> 0 | I58: =+OTCHET!K383+OTCHET!K391+OTCHET!K396+OTCHET!K399+OTCHET!K402+OTCHET!K405+OTCHET!K406+OTCHET!K409+OTCHET!K422+OTCHET!K423+OTCHET!K424+OTCHET!K425+OTCHET!K426 -> 0 | K58: §§ 32; 61- 67; 74 - 78
A59: 145 | B59: в т. ч. временни безлихвени заеми | C59: §§ 74 - 78 | E59: =+OTCHET!E422+OTCHET!E423+OTCHET!E424+OTCHET!E425+OTCHET!E426 -> 0 | F59: 0 | G59: =+OTCHET!I422+OTCHET!I423+OTCHET!I424+OTCHET!I425+OTCHET!I426 -> 0 | H59: =+OTCHET!J422+OTCHET!J423+OTCHET!J424+OTCHET!J425+OTCHET!J426 -> 0 | I59: =+OTCHET!K422+OTCHET!K423+OTCHET!K424+OTCHET!K425+OTCHET!K426 -> 0 | K59: §§ 74 - 78
A60: 150 | B60: трансфери за отчислени постъпления | C60: § 65 | E60: =OTCHET!E405 -> 0 | F60: 0 | G60: =OTCHET!I405 -> 0 | H60: =OTCHET!J405 -> 0 | I60: =OTCHET!K405 -> 0 | K60: § 65
A61: 160 | F61: 0
A62: 162 | B62: 3. Трансфери за поети осигурителни вноски и данъци | C62: § 69 | E62: =OTCHET!E412 -> 0 | F62: 0 | G62: =OTCHET!I412 -> 0 | H62: =OTCHET!J412 -> 0 | I62: =OTCHET!K412 -> 0 | K62: § 69
A63: 165 | B63: IV. Вноска в общия бюджет на ЕС | C63: § 33 | E63: =+OTCHET!E249 -> 0 | F63: 0 | G63: =+OTCHET!I249 -> 0 | H63: =+OTCHET!J249 -> 0 | I63: =+OTCHET!K249 -> 0 | K63: § 33
A64: 175 | B64: V. Дефицит / излишък = I - II +III - IV | E64: =+E22-E38+E56-E63 -> 0 | F64: =+F22-F38+F56-F63 -> 44693.2 | G64: =+G22-G38+G56-G63 -> 44693.2 | H64: =+H22-H38+H56-H63 -> 0 | I64: =+I22-I38+I56-I63 -> 0
A65: 180 | B65: =+IF(+SUM(E$65:I$65)=0,0,"Контрола: дефицит/излишък = финансиране с обратен знак (V. + VІ. = 0)") -> 0 | E65: =+E$64+E$66 -> 0 | F65: =+F$64+F$66 -> 0 | G65: =+G$64+G$66 -> 0 | H65: =+H$64+H$66 -> 0 | I65: =+I$64+I$66 -> 0
A66: 185 | B66: VI. Финансиране | C66: §§ 70 - 98 | E66: =SUM(+E68+E76+E77+E84+E85+E86+E89+E90+E91+E92+E93+E94+E95) -> 0 | F66: =SUM(+F68+F76+F77+F84+F85+F86+F89+F90+F91+F92+F93+F94+F95) -> -44693.2 | G66: =SUM(+G68+G76+G77+G84+G85+G86+G89+G90+G91+G92+G93+G94+G95) -> -44693.2 | H66: =SUM(+H68+H76+H77+H84+H85+H86+H89+H90+H91+H92+H93+H94+H95) -> 0 | I66: =SUM(+I68+I76+I77+I84+I85+I86+I89+I90+I91+I92+I93+I94+I95) -> 0 | K66: §§ 70 - 98
A67: 190 | F67: =+G67+H67+I67 -> 0
A68: 195 | B68: 1. Външно финансиране | C68: §§ 80 - 82; 92-01; 95-21/95-22; 95-28/95-29 и 95-49 | E68: =SUM(E69:E75) -> 0 | F68: =SUM(F69:F75) -> 0 | G68: =SUM(G69:G75) -> 0 | H68: =SUM(H69:H75) -> 0 | I68: =SUM(I69:I75) -> 0 | K68: §§ 80 - 82; 92-01; 95-21/95-22; 95-28/95-29 и 95-49
A69: 200 | B69: получени външни заеми | C69: под.§§ 80-11/80-12; 80-31/80-32; 80-51/80-52 и 80-97 | E69: =+OTCHET!E482+OTCHET!E483+OTCHET!E486+OTCHET!E487+OTCHET!E490+OTCHET!E491+OTCHET!E495 -> 0 | F69: =+G69+H69+I69 -> 0 | G69: =+OTCHET!I482+OTCHET!I483+OTCHET!I486+OTCHET!I487+OTCHET!I490+OTCHET!I491+OTCHET!I495 -> 0 | H69: =+OTCHET!J482+OTCHET!J483+OTCHET!J486+OTCHET!J487+OTCHET!J490+OTCHET!J491+OTCHET!J495 -> 0 | I69: =+OTCHET!K482+OTCHET!K483+OTCHET!K486+OTCHET!K487+OTCHET!K490+OTCHET!K491+OTCHET!K495 -> 0 | K69: под.§§ 80-11/80-12; 80-31/80-32; 80-51/80-52 и 80-97
A70: 205 | B70: погашения по външни заеми | C70: под.§§ 80-17/80-18; 80-37/80-38; 80-57/80-58; 80-80 и 80-98; | E70: =+OTCHET!E484+OTCHET!E485+OTCHET!E488+OTCHET!E489+OTCHET!E492+OTCHET!E493+OTCHET!E494+OTCHET!E496 -> 0 | F70: 0 | G70: =+OTCHET!I484+OTCHET!I485+OTCHET!I488+OTCHET!I489+OTCHET!I492+OTCHET!I493+OTCHET!I494+OTCHET!I496 -> 0 | H70: =+OTCHET!J484+OTCHET!J485+OTCHET!J488+OTCHET!J489+OTCHET!J492+OTCHET!J493+OTCHET!J494+OTCHET!J496 -> 0 | I70: =+OTCHET!K484+OTCHET!K485+OTCHET!K488+OTCHET!K489+OTCHET!K492+OTCHET!K493+OTCHET!K494+OTCHET!K496 -> 0 | K70: под.§§ 80-17/80-18; 80-37/80-38; 80-57/80-58; 80-80 и 80-98;
A71: 210 | B71: държавни /общински/ ЦК емитирани на м/нар. капиталови пазари | C71: § 81 | E71: =+OTCHET!E497 -> 0 | F71: 0 | G71: =+OTCHET!I497 -> 0 | H71: =+OTCHET!J497 -> 0 | I71: =+OTCHET!K497 -> 0 | K71: § 81
A72: 215 | B72: получени погашения по предоставени кредити от други държави | C72: § 82 | E72: =+OTCHET!E502 -> 0 | F72: 0 | G72: =+OTCHET!I502 -> 0 | H72: =+OTCHET!J502 -> 0 | I72: =+OTCHET!K502 -> 0 | K72: § 82
A73: 220 | B73: операции с др. ЦК и финансови активи | C73: под. § 92-01 | E73: =+OTCHET!E542 -> 0 | F73: 0 | G73: =+OTCHET!I542 -> 0 | H73: =+OTCHET!J542 -> 0 | I73: =+OTCHET!K542 -> 0 | K73: под. § 92-01
A74: 230 | B74: остатък в лв.равн. по валутни сметки и каса в чужбина от предх. период | C74: под. §§ 95-21и 95-22 | E74: =+OTCHET!E581+OTCHET!E582 -> 0 | F74: 0 | G74: =+OTCHET!I581+OTCHET!I582 -> 0 | H74: =+OTCHET!J581+OTCHET!J582 -> 0 | I74: =+OTCHET!K581+OTCHET!K582 -> 0 | K74: под. §§ 95-21и 95-22
A75: 235 | B75: наличности в лв. равн.по валутни сметки и каса в чужб. в кр.на периода | C75: под. §§ 95-28/95-29 и 95-49 | E75: =+OTCHET!E583+OTCHET!E584+OTCHET!E585 -> 0 | F75: 0 | G75: =+OTCHET!I583+OTCHET!I584+OTCHET!I585 -> 0 | H75: =+OTCHET!J583+OTCHET!J584+OTCHET!J585 -> 0 | I75: =+OTCHET!K583+OTCHET!K584+OTCHET!K585 -> 0 | K75: под. §§ 95-28/95-29 и 95-49
A76: 240 | B76: 2. Придобиване на дялове, акции, съучастия и др, финансови активи | C76: § 70 | E76: =OTCHET!E461 -> 0 | F76: 0 | G76: =OTCHET!I461 -> 0 | H76: =OTCHET!J461 -> 0 | I76: =OTCHET!K461 -> 0 | K76: § 70
A77: 245 | B77: 3. Възмездни средства | C77: §§ 71 - 73 и 79 | E77: =SUM(E78:E83) -> 0 | F77: =SUM(F78:F83) -> 0 | G77: =SUM(G78:G83) -> 0 | H77: =SUM(H78:H83) -> 0 | I77: =SUM(I78:I83) -> 0 | K77: §§ 71 - 73 и 79
A78: 250 | B78: предоставени | C78: под. § 71-01 и § 72-01 | E78: =+OTCHET!E466+OTCHET!E469 -> 0 | F78: =+G78+H78+I78 -> 0 | G78: =+OTCHET!I466+OTCHET!I469 -> 0 | H78: =+OTCHET!J466+OTCHET!J469 -> 0 | I78: =+OTCHET!K466+OTCHET!K469 -> 0 | K78: под. § 71-01 и § 72-01
A79: 260 | B79: възстановени | C79: под. § 71-02 и § 72-02 | E79: =+OTCHET!E467+OTCHET!E470 -> 0 | F79: 0 | G79: =+OTCHET!I467+OTCHET!I470 -> 0 | H79: =+OTCHET!J467+OTCHET!J470 -> 0 | I79: =+OTCHET!K467+OTCHET!K470 -> 0 | K79: под. § 71-02 и § 72-02
A80: 265 | B80: нето плащания по активирани гаранции, поръчителства и преоформен дълг | C80: § 73 | E80: =OTCHET!E471 -> 0 | F80: 0 | G80: =OTCHET!I471 -> 0 | H80: =OTCHET!J471 -> 0 | I80: =OTCHET!K471 -> 0 | K80: § 73
F81: 0
A82: 270 | B82: предоставени заеми към крайни бенифициенти | C82: под. § 79-01 | E82: =+OTCHET!E479 -> 0 | F82: 0 | G82: =+OTCHET!I479 -> 0 | H82: =+OTCHET!J479 -> 0 | I82: =+OTCHET!K479 -> 0 | K82: под. § 79-01
A83: 275 | B83: възстановени суми по заеми от крайни бенифициенти | C83: под. § 79-02 | E83: =+OTCHET!E480 -> 0 | F83: 0 | G83: =+OTCHET!I480 -> 0 | H83: =+OTCHET!J480 -> 0 | I83: =+OTCHET!K480 -> 0 | K83: под. § 79-02
A84: 280 | B84: 4. Приватизация на дялове, акции и участия | C84: § 90 | E84: =OTCHET!E535 -> 0 | F84: 0 | G84: =OTCHET!I535 -> 0 | H84: =OTCHET!J535 -> 0 | I84: =OTCHET!K535 -> 0 | K84: § 90
A85: 285 | B85: 5. Покупко-продажба на държавни/общински/ ценни книжа от бюдж. предприятия | C85: § 91 | E85: =OTCHET!E536 -> 0 | F85: 0 | G85: =OTCHET!I536 -> 0 | H85: =OTCHET!J536 -> 0 | I85: =OTCHET!K536 -> 0 | K85: § 91
A86: 290 | B86: 6. Друго вътрешно финансиране | C86: §§ 83; 85 - 88; 92-02; 93 | E86: =+E87+E88 -> 0 | F86: =+F87+F88 -> 2304.41 | G86: =+G87+G88 -> 2304.41 | H86: =+H87+H88 -> 0 | I86: =+I87+I88 -> 0 | K86: §§ 83; 85 - 88; 92-02; 93
A87: 295 | B87: операции по вътрешен дълг и финан. активи- нето | C87: §§ 83; 85 - 86 и 92-02 | E87: =+OTCHET!E503+OTCHET!E512+OTCHET!E516+OTCHET!E543 -> 0 | F87: =+G87+H87+I87 -> 0 | G87: =+OTCHET!I503+OTCHET!I512+OTCHET!I516+OTCHET!I543 -> 0 | H87: =+OTCHET!J503+OTCHET!J512+OTCHET!J516+OTCHET!J543 -> 0 | I87: =+OTCHET!K503+OTCHET!K512+OTCHET!K516+OTCHET!K543 -> 0 | K87: §§ 83; 85 - 86 и 92-02
A88: 300 | B88: друго финансиране | C88: §§ 87; 88 и 93 | E88: =+OTCHET!E521+OTCHET!E524+OTCHET!E544 -> 0 | F88: 2304.41 | G88: =+OTCHET!I521+OTCHET!I524+OTCHET!I544 -> 2304.41 | H88: =+OTCHET!J521+OTCHET!J524+OTCHET!J544 -> 0 | I88: =+OTCHET!K521+OTCHET!K524+OTCHET!K544 -> 0 | K88: §§ 87; 88 и 93
A89: 310 | B89: 7.Суми по разчети за поети осигур, вноски и данъци | C89: §89 | E89: =OTCHET!E531 -> 0 | F89: 0 | G89: =OTCHET!I531 -> 0 | H89: =OTCHET!J531 -> 0 | I89: =OTCHET!K531 -> 0 | K89: §89
A90: 320 | B90: 8. Наличности в началото на периода | C90: под. §§ 95-01 до 95-06 | E90: =+OTCHET!E567+OTCHET!E568+OTCHET!E569+OTCHET!E570+OTCHET!E571+OTCHET!E572 -> 0 | F90: 0 | G90: =+OTCHET!I567+OTCHET!I568+OTCHET!I569+OTCHET!I570+OTCHET!I571+OTCHET!I572 -> 0 | H90: =+OTCHET!J567+OTCHET!J568+OTCHET!J569+OTCHET!J570+OTCHET!J571+OTCHET!J572 -> 0 | I90: =+OTCHET!K567+OTCHET!K568+OTCHET!K569+OTCHET!K570+OTCHET!K571+OTCHET!K572 -> 0 | K90: под. §§ 95-01 до 95-06
A91: 330 | B91: 9 Наличности в края на периода | C91: под. §§ 95-07 до 95-13 | E91: =+OTCHET!E573+OTCHET!E574+OTCHET!E575+OTCHET!E576+OTCHET!E577+OTCHET!E578+OTCHET!E579 -> 0 | F91: -46997.61 | G91: =+OTCHET!I573+OTCHET!I574+OTCHET!I575+OTCHET!I576+OTCHET!I577+OTCHET!I578+OTCHET!I579 -> -46997.61 | H91: =+OTCHET!J573+OTCHET!J574+OTCHET!J575+OTCHET!J576+OTCHET!J577+OTCHET!J578+OTCHET!J579 -> 0 | I91: =+OTCHET!K573+OTCHET!K574+OTCHET!K575+OTCHET!K576+OTCHET!K577+OTCHET!K578+OTCHET!K579 -> 0 | K91: под. §§ 95-07 до 95-13
A92: 335 | B92: 10. Преоценка на валутни наличности | C92: под. § 95-14 | E92: =+OTCHET!E580 -> 0 | F92: 0 | G92: =+OTCHET!I580 -> 0 | H92: =+OTCHET!J580 -> 0 | I92: =+OTCHET!K580 -> 0 | K92: под. § 95-14
A93: 340 | B93: 11. Депозити и сметки консолидирани в "Единната сметка" от предх. период | C93: под. §§ 96-01 до 96-03 | E93: =+OTCHET!E587+OTCHET!E588 -> 0 | F93: 0 | G93: =+OTCHET!I587+OTCHET!I588 -> 0 | H93: =+OTCHET!J587+OTCHET!J588 -> 0 | I93: =+OTCHET!K587+OTCHET!K588 -> 0 | K93: под. §§ 96-01 до 96-03
A94: 345 | B94: 12. Депозити и сметки консолидирани в "Единната сметка" в края на периода | C94: под. §§ 96-07 до 96-09 | E94: =+OTCHET!E589+OTCHET!E590 -> 0 | F94: 0 | G94: =+OTCHET!I589+OTCHET!I590 -> 0 | H94: =+OTCHET!J589+OTCHET!J590 -> 0 | I94: =+OTCHET!K589+OTCHET!K590 -> 0 | K94: под. §§ 96-07 до 96-09
A95: 350 | B95: 13. Касови операции, депозити, покупко-продажба на валута и сетълмент | C95: § 98 | E95: =OTCHET!E591 -> 0 | F95: 0 | G95: =OTCHET!I591 -> 0 | H95: =OTCHET!J591 -> 0 | I95: =OTCHET!K591 -> 0 | K95: § 98
A96: 355 | B96: в т. ч. покупко-продажба на валута (+/-) | C96: под. § 98-30 | E96: =+OTCHET!E594 -> 0 | F96: 0 | G96: =+OTCHET!I594 -> 0 | H96: =+OTCHET!J594 -> 0 | I96: =+OTCHET!K594 -> 0 | K96: под. § 98-30
B97: ЧИСЛЕНОСТ НА ПЕРСОНАЛА
B98: Щатни бройки
B99: по трудови правоотношения
B100: по служебни правоотношения
B102: Средногодишни щатни бройки
B103: по трудови правоотношения
B104: по служебни правоотношения
B105: =+IF(+SUM(E$65:I$65)=0,0,"Контрола: дефицит/излишък = финансиране с обратен знак (V. + VІ. = 0)") -> 0 | E105: =+E$64+E$66 -> 0 | F105: =+F$64+F$66 -> 0 | G105: =+G$64+G$66 -> 0 | H105: =+H$64+H$66 -> 0 | I105: =+I$64+I$66 -> 0
B107: =+OTCHET!H605 -> ruskova_72@abv.bg | G107: =+OTCHET!E605 -> 596 | H107: =+OTCHET!F605 -> 22077
B108: (e-mail) | G108: (служебни телефони)
B109: ИЗГОТВИЛ:
E110: =+OTCHET!D603 -> Десислава Дионисова
B113: ГЛ. СЧЕТОВОДИТЕЛ: | H113: РЪКОВОДИТЕЛ:
E114: =+OTCHET!G600 -> Дойка Рускова | I114: =+OTCHET!G603 -> Маргарита Цонева-Радева

Sheet OTCHET
A1: a | B1: b | C1: c | D1: d | E1: e | F1: f | G1: f | H1: f | I1: f | J1: f | K1: f | L1: f | M1: endprint
A2: 1 | M2: 1
B3: година | C3: 2020 | M3: 1
M4: 1
M5: 1
M6: 1
B7: =VLOOKUP(E15,SMETKA,2,FALSE) -> ОТЧЕТНИ ДАННИ ПО ЕБК ЗА ИЗПЪЛНЕНИЕТО НА БЮДЖЕТА | M7: 1
E8: за периода от | F8: до | M8: 1
B9: ОУ Г.С.РАКОВСКИ-С.ГЪЛЪБЕЦ | E9: 2020-01-01 | F9: 2020-03-31 | M9: 1
B10: (наименование на разпоредителя с бюджет) | F10: =VLOOKUP(F9,DateName,2,FALSE) -> март | I10: код от регистъра на бюджетните организации в СЕБРА | M10: 1
M11: 1
B12: =VLOOKUP(F12,PRBK,2,FALSE) -> Поморие | E12: код по ЕБК: | F12: 5207 | M12: 1
B13: (наименование на първостепенния разпоредител с бюджет) | M13: 1
M14: 1
D15: ФИНАНСОВО-ПРАВНА ФОРМА | E15: 0 | F15: =+IF(+E15=0,"БЮДЖЕТ",+IF(+E15=98,"СЕС - КСФ",+IF(+E15=42,"СЕС - РА",+IF(+E15=96,"СЕС - ДЕС",+IF(+E15=97,"СЕС - ДМП",+IF(+E15=33,"Чужди средства")))))) -> БЮДЖЕТ | M15: 1
B16: Бланка версия 1.01 от 2020г. | M16: 1
M17: 1
L18: (в лева) | M18: 1
D19: I. П Р И Х О Д И, П О М О Щ И И Д А Р Е Н И Я | E19: Уточнен план 2020 - ПРИХОДИ | I19: Отчет 2020 - ПРИХОДИ | M19: 1
B20: §§ | C20: под-§§ | D20: Н А И М Е Н О В А Н И Е | E20: Уточнен план Общо | F20: държавни дейности | G20: местни дейности | H20: дофинансиране | I20: държавни дейности -ОТЧЕТ | J20: местни дейности - ОТЧЕТ | K20: дофинансиране - ОТЧЕТ | L20: ОТЧЕТ ОБЩО | M20: 1
D21: 0 1 ¦ | E21: (1) | F21: (2) | G21: (3) | H21: (4) | I21: (5) | J21: (6) | K21: (7) | L21: (8) | M21: 1
A22: 5 | B22: 100 | C22: Данък върху доходите на физически лица: | E22: =SUM(E23:E25,E26:E27) -> 0 | F22: 0 | G22: 0 | H22: 0 | I22: 0 | J22: 0 | K22: 0 | L22: 0 | M22: =(IF($E22<>0,$M$2,IF($L22<>0,$M$2,""))) -> 
A23: 10 | C23: 101 | D23: от доходи по трудови, служебни и приравнени на тях правоотношения | E23: =F23+G23+H23 -> 0 | F23: 0 | G23: 0 | H23: 0 | I23: 0 | J23: 0 | K23: 0 | L23: =I23+J23+K23 -> 0 | M23: =(IF($E23<>0,$M$2,IF($L23<>0,$M$2,""))) -> 
A24: 15 | C24: 102 | D24: от еднолични търговци, свободни професии, извънтрудови правоотношения и др. | E24: =F24+G24+H24 -> 0 | F24: 0 | G24: 0 | H24: 0 | I24: 0 | J24: 0 | K24: 0 | L24: =I24+J24+K24 -> 0
A25: 20 | C25: 103 | D25: окончателен годишен (патентен) данък и данък върху таксиметров превоз на пътници | E25: =F25+G25+H25 -> 0 | F25: 0 | G25: 0 | H25: 0 | I25: 0 | J25: 0 | K25: 0 | L25: =I25+J25+K25 -> 0
A26: 20 | C26: 108 | D26: окончателен данък върху приходите от лихви по банкови сметки на физическите лица | E26: =F26+G26+H26 -> 0 | F26: 0 | G26: 0 | H26: 0 | I26: 0 | J26: 0 | K26: 0 | L26: =I26+J26+K26 -> 0
A27: 21 | C27: 109 | D27: окончателен данък на местни и чуждестранни физически лица по чл. 37 и 38 от ЗДДФЛ | E27: =F27+G27+H27 -> 0 | F27: 0 | G27: 0 | H27: 0 | I27: 0 | J27: 0 | K27: 0 | L27: =I27+J27+K27 -> 0
A28: 25 | B28: 200 | C28: Корпоративен данък: | E28: =SUM(E29:E32) -> 0 | F28: 0 | G28: 0 | H28: =SUM(H29:H32) -> 0 | I28: 0 | J28: 0 | K28: =SUM(K29:K32) -> 0 | L28: 0
A29: 30 | C29: 201 | D29: корпоративен данък от нефинансови предприятия | E29: =F29+G29+H29 -> 0 | F29: 0 | G29: 0 | H29: 0 | I29: 0 | J29: 0 | K29: 0 | L29: =I29+J29+K29 -> 0
A30: 35 | C30: 202 | D30: корпоративен данък от финансови институции | E30: 0 | F30: 0 | G30: 0 | H30: 0 | I30: 0 | J30: 0 | K30: 0 | L30: =I30+J30+K30 -> 0
A31: 40 | C31: 203 | D31: корпоративен данък от юридически лица с нестопанска цел | E31: 0 | F31: 0 | G31: 0 | H31: 0 | I31: 0 | J31: 0 | K31: 0 | L31: =I31+J31+K31 -> 0
A32: 45 | C32: 204 | D32: корпоративен данък от застрахователни дружества | E32: 0 | F32: 0 | G32: 0 | H32: 0 | I32: 0 | J32: 0 | K32: 0 | L32: =I32+J32+K32 -> 0
A33: 50 | B33: 400 | C33: Данъци върху дивидентите, ликвидационните дялове и доходите на местни и чуждестранни лица: | E33: =SUM(E34:E38) -> 0 | F33: 0 | G33: 0 | H33: =SUM(H34:H38) -> 0 | I33: 0 | J33: 0 | K33: =SUM(K34:K38) -> 0 | L33: 0
A34: 55 | C34: 401 | D34: данък върху дивидентите и ликвидационните дялове на местни юридически лица | E34: 0 | F34: 0 | G34: 0 | H34: 0 | I34: 0 | J34: 0 | K34: 0 | L34: =I34+J34+K34 -> 0
A35: 56 | C35: 402 | D35: данък върху дивидентите и ликвидационните дялове на бюджетни предприятия | E35: 0 | F35: 0 | G35: 0 | H35: 0 | I35: 0 | J35: 0 | K35: 0 | L35: =I35+J35+K35 -> 0
A36: 57 | C36: 403 | D36: данък върху дивидентите и ликвидационните дялове на чуждестрани юридически лица | E36: 0 | F36: 0 | G36: 0 | H36: 0 | I36: 0 | J36: 0 | K36: 0 | L36: =I36+J36+K36 -> 0
A37: 58 | C37: 404 | D37: данък върху доходите на чуждестранни юридически лица | E37: 0 | F37: 0 | G37: 0 | H37: 0 | I37: 0 | J37: 0 | K37: 0 | L37: =I37+J37+K37 -> 0
A38: 59 | C38: 411 | D38: данък върху дивидентите и ликвидационните дялове на физически лица | E38: 0 | F38: 0 | G38: 0 | H38: 0 | I38: 0 | J38: 0 | K38: 0 | L38: =I38+J38+K38 -> 0
A39: 65 | B39: 800 | C39: Осигурителни вноски | E39: =SUM(E40:E46) -> 0 | F39: 0 | G39: 0 | H39: =SUM(H40:H46) -> 0 | I39: 0 | J39: 0 | K39: =SUM(K40:K46) -> 0 | L39: 0
A40: 70 | C40: 801 | D40: вноски за работници и служители от работодатели | E40: 0 | F40: 0 | G40: 0 | H40: 0 | I40: 0 | J40: 0 | K40: 0 | L40: =I40+J40+K40 -> 0
A41: 75 | C41: 802 | D41: вноски от работници и служители (лична вноска) | E41: 0 | F41: 0 | G41: 0 | H41: 0 | I41: 0 | J41: 0 | K41: 0 | L41: 0
A42: 80 | C42: 804 | D42: вноски от самонаети лица (самоосигуряващи се лица) | E42: 0 | F42: 0 | G42: 0 | H42: 0 | I42: 0 | J42: 0 | K42: 0 | L42: 0
A43: 85 | C43: 809 | D43: вноски за други категории осигурени лица | E43: =F43+G43+H43 -> 0 | F43: 0 | G43: 0 | H43: 0 | I43: 0 | J43: 0 | K43: 0 | L43: 0
A44: 85 | C44: 811 | D44: вноски по чл. 4б и 4в от КСО за сметка на осигурителя | E44: =F44+G44+H44 -> 0 | F44: 0 | G44: 0 | H44: 0 | I44: 0 | J44: 0 | K44: 0 | L44: 0
A45: 85 | C45: 812 | D45: вноски по чл. 4б от КСО за сметка на осигурените лица | E45: =F45+G45+H45 -> 0 | F45: 0 | G45: 0 | H45: 0 | I45: 0 | J45: 0 | K45: 0 | L45: 0
A46: 85 | C46: 814 | D46: вноски по чл. 4б от КСО от самонаети лица (самоосигуряващи се лица) | E46: 0 | F46: 0 | G46: 0 | H46: 0 | I46: 0 | J46: 0 | K46: 0 | L46: 0
A47: 95 | B47: 1000 | C47: Здравно-осигурителни вноски | E47: =SUM(E48:E51) -> 0 | F47: 0 | G47: 0 | H47: =SUM(H48:H51) -> 0 | I47: 0 | J47: 0 | K47: =SUM(K48:K51) -> 0 | L47: 0
A48: 100 | C48: 1001 | D48: здравно-осигурителни вноски за работници и служители от работодатели | E48: 0 | F48: 0 | G48: 0 | H48: 0 | I48: 0 | J48: 0 | K48: 0 | L48: =I48+J48+K48 -> 0
A49: 105 | C49: 1002 | D49: здравно-осигурителни вноски от работници и служители (лична вноска) | E49: 0 | F49: 0 | G49: 0 | H49: 0 | I49: 0 | J49: 0 | K49: 0 | L49: =I49+J49+K49 -> 0
A50: 110 | C50: 1004 | D50: здравно-осигурителни вноски от самонаети (самоосигуряващи се лица) | E50: 0 | F50: 0 | G50: 0 | H50: 0 | I50: 0 | J50: 0 | K50: 0 | L50: =I50+J50+K50 -> 0
A51: 125 | C51: 1007 | D51: здравно-осигур.вноски за други категории осигурени лица | E51: 0 | F51: 0 | G51: 0 | H51: 0 | I51: 0 | J51: 0 | K51: 0 | L51: =I51+J51+K51 -> 0
A52: 130 | B52: 1300 | C52: Имуществени и други местни данъци : | E52: =SUM(E53:E57) -> 0 | F52: 0 | G52: 0 | H52: =SUM(H53:H57) -> 0 | I52: 0 | J52: 0 | K52: =SUM(K53:K57) -> 0 | L52: 0
A53: 135 | C53: 1301 | D53: данък върху недвижими имоти | E53: 0 | F53: 0 | G53: 0 | H53: 0 | I53: 0 | J53: 0 | K53: 0 | L53: =I53+J53+K53 -> 0
A54: 140 | C54: 1302 | D54: данък върху наследствата | E54: 0 | F54: 0 | G54: 0 | H54: 0 | I54: 0 | J54: 0 | K54: 0 | L54: =I54+J54+K54 -> 0
A55: 145 | C55: 1303 | D55: данък върху превозните средства | E55: 0 | F55: 0 | G55: 0 | H55: 0 | I55: 0 | J55: 0 | K55: 0 | L55: =I55+J55+K55 -> 0
C56: 1304 | D56: данък при придобиване на имущество по дарения и възмезден начин | E56: 0 | F56: 0 | G56: 0 | H56: 0 | I56: 0 | J56: 0 | K56: 0 | L56: =I56+J56+K56 -> 0
A57: 150 | C57: 1308 | D57: туристически данък | E57: 0 | F57: 0 | G57: 0 | H57: 0 | I57: 0 | J57: 0 | K57: 0 | L57: =I57+J57+K57 -> 0
A58: 160 | B58: 1400 | C58: Данък върху добавената стойност | E58: =SUM(E59:E60) -> 0 | F58: 0 | G58: 0 | H58: =SUM(H59:H60) -> 0 | I58: 0 | J58: 0 | K58: =SUM(K59:K60) -> 0 | L58: 0
A59: 165 | C59: 1401 | D59: данък върху добавената стойност при сделки в страната | E59: 0 | F59: 0 | G59: 0 | H59: 0 | I59: 0 | J59: 0 | K59: 0 | L59: =I59+J59+K59 -> 0
A60: 170 | C60: 1402 | D60: данък върху добавената стойност при внос | E60: 0 | F60: 0 | G60: 0 | H60: 0 | I60: 0 | J60: 0 | K60: 0 | L60: =I60+J60+K60 -> 0
A61: 175 | B61: 1500 | C61: Акцизи | E61: =SUM(E62:E63) -> 0 | F61: 0 | G61: 0 | H61: =SUM(H62:H63) -> 0 | I61: 0 | J61: 0 | K61: =SUM(K62:K63) -> 0 | L61: 0
A62: 180 | C62: 1501 | D62: акциз при сделки в страната | E62: 0 | F62: 0 | G62: 0 | H62: 0 | I62: 0 | J62: 0 | K62: 0 | L62: =I62+J62+K62 -> 0
A63: 185 | C63: 1502 | D63: акциз при внос | E63: 0 | F63: 0 | G63: 0 | H63: 0 | I63: 0 | J63: 0 | K63: 0 | L63: =I63+J63+K63 -> 0
B64: 1600 | C64: Данък върху застрахователните премии | E64: 0 | F64: 0 | G64: 0 | H64: 0 | I64: 0 | J64: 0 | K64: 0 | L64: =I64+J64+K64 -> 0
A65: 200 | B65: 1700 | C65: Други данъци по Закона за корпоративното подоходно облагане: | E65: =SUM(E66:E71) -> 0 | F65: 0 | G65: 0 | H65: =SUM(H66:H71) -> 0 | I65: 0 | J65: 0 | K65: =SUM(K66:K71) -> 0 | L65: 0
A66: 205 | C66: 1701 | D66: данък върху представителните разходи | E66: 0 | F66: 0 | G66: 0 | H66: 0 | I66: 0 | J66: 0 | K66: 0 | L66: =I66+J66+K66 -> 0
A67: 210 | C67: 1702 | D67: данък върху разходи, предоставяни в натура | E67: 0 | F67: 0 | G67: 0 | H67: 0 | I67: 0 | J67: 0 | K67: 0 | L67: 0
A68: 215 | C68: 1703 | D68: данък върху разходите за превозни средства | E68: 0 | F68: 0 | G68: 0 | H68: 0 | I68: 0 | J68: 0 | K68: 0 | L68: 0
A69: 225 | C69: 1706 | D69: окончателни данъци върху залози за хазартни игри и хазартни съоръжения | E69: 0 | F69: 0 | G69: 0 | H69: 0 | I69: 0 | J69: 0 | K69: 0 | L69: 0
A70: 226 | C70: 1707 | D70: данък върху дейността от опериране на кораби | E70: 0 | F70: 0 | G70: 0 | H70: 0 | I70: 0 | J70: 0 | K70: 0 | L70: 0
A71: 227 | C71: 1709 | D71: данък върху приходите на бюджетните предприятия | E71: 0 | F71: 0 | G71: 0 | H71: 0 | I71: 0 | J71: 0 | K71: 0 | L71: 0
A72: 235 | B72: 1900 | C72: Мита и митнически такси | E72: 0 | F72: 0 | G72: 0 | H72: 0 | I72: 0 | J72: 0 | K72: 0 | L72: 0
A73: 255 | B73: 2000 | C73: Други данъци | E73: 0 | F73: 0 | G73: 0 | H73: 0 | I73: 0 | J73: 0 | K73: 0 | L73: 0
A74: 265 | B74: 2400 | C74: Приходи и доходи от собственост | E74: =SUM(E75:E89) -> 0 | F74: 0 | G74: 0 | H74: =SUM(H75:H89) -> 0 | I74: 0 | J74: 0 | K74: =SUM(K75:K89) -> 0 | L74: 0
A75: 270 | C75: 2401 | D75: вноски от приходи на държавни (общински) предприятия и институции | E75: 0 | F75: 0 | H75: 0 | I75: 0 | K75: 0 | L75: =I75+J75+K75 -> 0
A76: 280 | C76: 2403 | D76: превишение на приходите над разходите на БНБ | E76: 0 | F76: 0 | G76: 0 | H76: 0 | I76: 0 | J76: 0 | K76: 0 | L76: =I76+J76+K76 -> 0
A77: 285 | C77: 2404 | D77: нетни приходи от продажби на услуги, стоки и продукция | E77: 0 | F77: 0 | G77: 0 | H77: 0 | I77: 0 | J77: 0 | K77: 0 | L77: 0
A78: 290 | C78: 2405 | D78: приходи от наеми на имущество | E78: 0 | F78: 0 | G78: 0 | H78: 0 | I78: 0 | J78: 0 | K78: 0 | L78: 0
A79: 295 | C79: 2406 | D79: приходи от наеми на земя | E79: 0 | F79: 0 | G79: 0 | H79: 0 | I79: 0 | J79: 0 | K79: 0 | L79: 0
A80: 300 | C80: 2407 | D80: приходи от дивиденти | E80: 0 | F80: 0 | G80: 0 | H80: 0 | I80: 0 | J80: 0 | K80: 0 | L80: 0
A81: 305 | C81: 2408 | D81: приходи от лихви по текущи банкови сметки | E81: 0 | F81: 0 | G81: 0 | H81: 0 | I81: 0 | J81: 0 | K81: 0 | L81: 0
A82: 310 | C82: 2409 | D82: приходи от лихви по срочни депозити | E82: 0 | F82: 0 | G82: 0 | H82: 0 | I82: 0 | J82: 0 | K82: 0 | L82: 0
A83: 315 | C83: 2410 | D83: приходи от лихви по предоставени заеми в страната и чужбина | E83: 0 | H83: 0 | K83: 0 | L83: 0
A84: 325 | C84: 2412 | D84: приходи от лихви от предприятия по преоформен държавен дълг | E84: 0 | F84: 0 | G84: 0 | H84: 0 | I84: 0 | J84: 0 | K84: 0 | L84: 0
A85: 330 | C85: 2413 | D85: приходи от лихви и отстъпки от държавни и общински ценни книжа | E85: 0 | F85: 0 | H85: 0 | I85: 0 | K85: 0 | L85: 0
A86: 335 | C86: 2415 | D86: приходи от лихви и отстъпки от дългови ценни книжа на местни и чуждестранни лица | E86: 0 | F86: 0 | H86: 0 | I86: 0 | K86: 0 | L86: 0
C87: 2417 | D87: приходи от лихви по заеми, предоставени на бюджетни организации | E87: 0 | F87: 0 | H87: 0 | I87: 0 | K87: 0 | L87: =I87+J87+K87 -> 0
A88: 340 | C88: 2418 | D88: лихви по срочни депозити за сметка на централния бюджет (+/-) | E88: 0 | F88: 0 | H88: 0 | I88: 0 | K88: 0 | L88: 0
A89: 345 | C89: 2419 | D89: приходи от други лихви | E89: 0 | F89: 0 | G89: 0 | H89: 0 | I89: 0 | J89: 0 | K89: 0 | L89: 0
A90: 350 | B90: 2500 | C90: Държавни такси | E90: =SUM(E91:E92) -> 0 | F90: 0 | G90: 0 | H90: =SUM(H91:H92) -> 0 | I90: 0 | J90: 0 | K90: =SUM(K91:K92) -> 0 | L90: 0 | M90: =(IF($E90<>0,$M$2,IF($L90<>0,$M$2,""))) -> 
A91: 355 | C91: 2501 | D91: такси за административни и други услуги и дейности | E91: 0 | H91: 0 | K91: 0 | L91: =I91+J91+K91 -> 0
A92: 356 | C92: 2502 | D92: такси и лицензии с данъчен характер | E92: 0 | G92: 0 | H92: 0 | J92: 0 | K92: 0 | L92: =I92+J92+K92 -> 0
A93: 360 | B93: 2600 | C93: Съдебни такси | E93: 0 | F93: 0 | G93: 0 | H93: 0 | I93: 0 | J93: 0 | K93: 0 | L93: =I93+J93+K93 -> 0
A94: 370 | B94: 2700 | C94: Общински такси | E94: =SUM(E95:E107) -> 0 | F94: 0 | G94: 0 | H94: =SUM(H95:H107) -> 0 | I94: 0 | J94: 0 | K94: =SUM(K95:K107) -> 0 | L94: 0
A95: 375 | C95: 2701 | D95: за ползване на детски градини | E95: 0 | F95: 0 | G95: 0 | H95: 0 | I95: 0 | J95: 0 | K95: 0 | L95: =I95+J95+K95 -> 0
A96: 380 | C96: 2702 | D96: за ползване на детски ясли и други по здравеопазването | E96: =F96+G96+H96 -> 0 | F96: 0 | G96: 0 | H96: 0 | I96: 0 | J96: 0 | K96: 0 | L96: 0
A97: 385 | C97: 2703 | D97: за ползване на лагери и други по социалния отдих | E97: 0 | F97: 0 | G97: 0 | H97: 0 | I97: 0 | J97: 0 | K97: 0 | L97: 0
A98: 390 | C98: 2704 | D98: за ползване на домашен социален патронаж и други общински социални услуги | E98: 0 | F98: 0 | G98: 0 | H98: 0 | I98: 0 | J98: 0 | K98: 0 | L98: 0
A99: 395 | C99: 2705 | D99: за ползване на пазари, тържища, панаири, тротоари, улични платна и др. | E99: 0 | F99: 0 | G99: 0 | H99: 0 | I99: 0 | J99: 0 | K99: 0 | L99: 0
A100: 400 | C100: 2706 | D100: за ползване на полудневни детски градини | E100: 0 | F100: 0 | G100: 0 | H100: 0 | I100: 0 | J100: 0 | K100: 0 | L100: 0
A101: 405 | C101: 2707 | D101: за битови отпадъци | E101: 0 | F101: 0 | G101: 0 | H101: 0 | I101: 0 | J101: 0 | K101: 0 | L101: 0
A102: 410 | C102: 2708 | D102: за ползване на общежития и други по образованието | E102: 0 | F102: 0 | G102: 0 | H102: 0 | I102: 0 | J102: 0 | K102: 0 | L102: 0
A103: 420 | C103: 2710 | D103: за технически услуги | E103: 0 | F103: 0 | G103: 0 | H103: 0 | I103: 0 | J103: 0 | K103: 0 | L103: 0
A104: 425 | C104: 2711 | D104: за административни услуги | E104: 0 | F104: 0 | G104: 0 | H104: 0 | I104: 0 | J104: 0 | K104: 0 | L104: 0
A105: 430 | C105: 2715 | D105: за откупуване на гробни места | E105: 0 | F105: 0 | G105: 0 | H105: 0 | I105: 0 | J105: 0 | K105: 0 | L105: 0
A106: 436 | C106: 2717 | D106: за притежаване на куче | E106: 0 | F106: 0 | G106: 0 | H106: 0 | I106: 0 | J106: 0 | K106: 0 | L106: 0
A107: 440 | C107: 2729 | D107: други общински такси | E107: 0 | F107: 0 | G107: 0 | H107: 0 | I107: 0 | J107: 0 | K107: 0 | L107: 0
A108: 445 | B108: 2800 | C108: Глоби, санкции и наказателни лихви | E108: =+E109+E110+E111 -> 0 | F108: 0 | G108: 0 | H108: =+H109+H110+H111 -> 0 | I108: 0 | J108: 0 | K108: =+K109+K110+K111 -> 0 | L108: =SUM(L109:L111) -> 0
A109: 450 | C109: 2801 | D109: конфискувани средства и приходи от продажби на конфискувани и придобити от залог вещи | E109: =F109+G109+H109 -> 0 | F109: 0 | G109: 0 | H109: 0 | I109: 0 | J109: 0 | K109: 0 | L109: =I109+J109+K109 -> 0
A110: 455 | C110: 2802 | D110: глоби, санкции, неустойки, наказателни лихви, обезщетения и начети | E110: =F110+G110+H110 -> 0 | F110: 0 | G110: 0 | H110: 0 | I110: 0 | J110: 0 | K110: 0 | L110: =I110+J110+K110 -> 0
A111: 455 | C111: 2809 | D111: наказателни лихви за данъци, мита и осигурителни вноски | E111: =F111+G111+H111 -> 0 | F111: 0 | G111: 0 | H111: 0 | I111: 0 | J111: 0 | K111: 0 | L111: =I111+J111+K111 -> 0
A112: 470 | B112: 3600 | C112: Други приходи | E112: =SUM(E113:E120) -> 0 | F112: 0 | G112: 0 | H112: =SUM(H113:H120) -> 0 | I112: 0 | J112: 0 | K112: =SUM(K113:K120) -> 0 | L112: 0
A113: 475 | C113: 3601 | D113: реализирани курсови разлики от валутни операции (нето) (+/-) | E113: =F113+G113+H113 -> 0 | F113: 0 | G113: 0 | H113: 0 | I113: 0 | J113: 0 | K113: 0 | L113: =I113+J113+K113 -> 0
C114: 3605 | D114: прехвърлени/възстановени акумулирани средства от осигурителни вноски | E114: =F114+G114+H114 -> 0 | F114: 0 | G114: 0 | H114: 0 | I114: 0 | J114: 0 | K114: 0 | L114: =I114+J114+K114 -> 0
C115: 3608 | D115: вноски за фонд "ИЕЯС" и фонд "РАО" | E115: =F115+G115+H115 -> 0 | F115: 0 | G115: 0 | H115: 0 | I115: 0 | J115: 0 | K115: 0 | L115: =I115+J115+K115 -> 0
C116: 3610 | D116: приходи от други вноски | E116: 0 | H116: 0 | K116: 0 | L116: 0
A117: 480 | C117: 3611 | D117: получени застрахователни обезщетения за ДМА | E117: 0 | F117: 0 | G117: 0 | H117: 0 | I117: 0 | J117: 0 | K117: 0 | L117: 0
A118: 485 | C118: 3612 | D118: получени други застрахователни обезщетения | E118: 0 | F118: 0 | G118: 0 | H118: 0 | I118: 0 | J118: 0 | K118: 0 | L118: 0
C119: 3618 | D119: коректив за касови постъпления (-/+) | E119: 0 | F119: 0 | G119: 0 | H119: 0 | I119: 0 | J119: 0 | K119: 0 | L119: 0
A120: 490 | C120: 3619 | D120: други неданъчни приходи | E120: 0 | F120: 0 | G120: 0 | H120: 0 | I120: 0 | J120: 0 | K120: 0 | L120: 0
A121: 495 | B121: 3700 | C121: Внесени ДДС и други данъци върху продажбите | E121: =SUM(E122:E124) -> 0 | F121: 0 | G121: 0 | H121: =SUM(H122:H124) -> 0 | I121: 0 | J121: 0 | K121: =SUM(K122:K124) -> 0 | L121: 0
A122: 500 | C122: 3701 | D122: внесен ДДС (-) | E122: =F122+G122+H122 -> 0 | F122: 0 | G122: 0 | H122: 0 | I122: 0 | J122: 0 | K122: 0 | L122: =I122+J122+K122 -> 0
A123: 505 | C123: 3702 | D123: внесен данък върху приходите от стопанска дейност на бюджетните предприятия (-) | E123: =F123+G123+H123 -> 0 | F123: 0 | G123: 0 | H123: 0 | I123: 0 | J123: 0 | K123: 0 | L123: =I123+J123+K123 -> 0
A124: 510 | C124: 3709 | D124: внесени други данъци,такси и вноски върху продажбите (-) | E124: =F124+G124+H124 -> 0 | F124: 0 | G124: 0 | H124: 0 | I124: 0 | J124: 0 | K124: 0 | L124: =I124+J124+K124 -> 0
A125: 515 | B125: 4000 | C125: Постъпления от продажба на нефинансови активи (без § 40-71) | E125: =SUM(E126:E136) -> 0 | F125: 0 | G125: 0 | H125: =SUM(H126:H136) -> 0 | I125: 0 | J125: 0 | K125: =SUM(K126:K136) -> 0 | L125: 0
A126: 516 | C126: 4021 | D126: постъпления от продажба на компютри и хардуер | E126: =F126+G126+H126 -> 0 | H126: 0 | K126: 0 | L126: =I126+J126+K126 -> 0
A127: 517 | C127: 4022 | D127: постъпления от продажба на сгради | E127: 0 | F127: 0 | G127: 0 | H127: 0 | I127: 0 | J127: 0 | K127: 0 | L127: 0
A128: 518 | C128: 4023 | D128: постъпления от продажба на друго оборудване, машини и съоръжения | E128: 0 | H128: 0 | K128: 0 | L128: 0
A129: 519 | C129: 4024 | D129: постъпления от продажба на транспортни средства | E129: 0 | F129: 0 | G129: 0 | H129: 0 | I129: 0 | J129: 0 | K129: 0 | L129: 0
A130: 520 | C130: 4025 | D130: постъпления от продажба на стопански инвентар | E130: 0 | H130: 0 | K130: 0 | L130: 0
A131: 521 | C131: 4026 | D131: постъпления от продажба на инфраструктурни обекти | E131: 0 | H131: 0 | K131: 0 | L131: 0
A132: 522 | C132: 4029 | D132: постъпления от продажба на други ДМА | E132: 0 | H132: 0 | K132: 0 | L132: 0
A133: 523 | C133: 4030 | D133: постъпления от продажба на нематериални дълготрайни активи | E133: 0 | F133: 0 | G133: 0 | H133: 0 | I133: 0 | J133: 0 | K133: 0 | L133: 0
A134: 523 | C134: 4039 | D134: постъпления от продажба на квоти за емисии на парникови газове | E134: 0 | H134: 0 | K134: 0 | L134: 0
A135: 524 | C135: 4040 | D135: постъпления от продажба на земя | E135: 0 | F135: 0 | G135: 0 | H135: 0 | I135: 0 | J135: 0 | K135: 0 | L135: 0
A136: 526 | C136: 4072 | D136: постъпления от продажба на земеделска продукция | E136: 0 | H136: 0 | K136: 0 | L136: 0
A137: 540 | B137: 4100 | C137: Приходи от концесии | E137: 0 | F137: 0 | G137: 0 | H137: 0 | I137: 0 | J137: 0 | K137: 0 | L137: 0
A138: 550 | B138: 4200 | C138: Приходи от лицензии за ползване на държавни/общински активи | E138: 0 | F138: 0 | G138: 0 | H138: 0 | I138: 0 | J138: 0 | K138: 0 | L138: 0
A139: 560 | B139: 4500 | C139: Помощи и дарения от страната | E139: =SUM(E140:E141) -> 0 | F139: 0 | G139: 0 | H139: =SUM(H140:H141) -> 0 | I139: 0 | J139: 0 | K139: =SUM(K140:K141) -> 0 | L139: 0
A140: 565 | C140: 4501 | D140: текущи помощи и дарения от страната | E140: =F140+G140+H140 -> 0 | F140: 0 | G140: 0 | H140: 0 | I140: 0 | J140: 0 | K140: 0 | L140: =I140+J140+K140 -> 0
A141: 570 | C141: 4503 | D141: капиталови помощи и дарения от страната | E141: =F141+G141+H141 -> 0 | H141: 0 | K141: 0 | L141: =I141+J141+K141 -> 0
A142: 575 | B142: 4600 | C142: Помощи и дарения от чужбина | E142: =SUM(E143:E150) -> 0 | F142: 0 | G142: 0 | H142: =SUM(H143:H150) -> 0 | I142: 0 | J142: 0 | K142: =SUM(K143:K150) -> 0 | L142: 0
A143: 580 | C143: 4610 | D143: текущи помощи и дарения от Европейския съюз | E143: =F143+G143+H143 -> 0 | H143: 0 | K143: 0 | L143: =I143+J143+K143 -> 0
A144: 585 | C144: 4620 | D144: капиталови помощи и дарения от Европейския съюз | E144: 0 | H144: 0 | K144: 0 | L144: 0
A145: 590 | C145: 4630 | D145: текущи помощи и дарения от други държави | E145: 0 | G145: 0 | H145: 0 | K145: 0 | L145: 0
A146: 595 | C146: 4640 | D146: капиталови помощи и дарения от други държави | E146: 0 | H146: 0 | K146: 0 | L146: 0
A147: 600 | C147: 4650 | D147: текущи помощи и дарения от други международни организации | E147: 0 | H147: 0 | K147: 0 | L147: 0
A148: 605 | C148: 4660 | D148: капиталови помощи и дарения от други международни организации | E148: 0 | H148: 0 | K148: 0 | L148: 0
A149: 610 | C149: 4670 | D149: други текущи помощи и дарения от чужбина | E149: 0 | H149: 0 | K149: 0 | L149: 0
A150: 615 | C150: 4680 | D150: други капиталови помощи и дарения от чужбина | E150: 0 | H150: 0 | K150: 0 | L150: 0
A151: 575 | B151: 4700 | C151: Получени чрез небюджетни предприятия средства от КФП по международни и други програми | E151: =SUM(E152:E159) -> 0 | F151: 0 | G151: 0 | H151: =SUM(H152:H159) -> 0 | I151: 0 | J151: 0 | K151: =SUM(K152:K159) -> 0 | L151: 0
A152: 580 | C152: 4743 | D152: получени чрез нефинансови предприятия текущи трансфери от КФП по международни и други програми | E152: =F152+G152+H152 -> 0 | H152: 0 | K152: 0 | L152: =I152+J152+K152 -> 0
A153: 585 | C153: 4744 | D153: получени чрез финансови институции текущи трансфери от КФП по международни и други програми | E153: 0 | H153: 0 | K153: 0 | L153: 0
A154: 590 | C154: 4745 | D154: получени чрез нестопански организации текущи трансфери от КФП по международни и други програми | E154: 0 | H154: 0 | K154: 0 | L154: 0
A155: 595 | C155: 4749 | D155: получени чрез предприятия от чужбина текущи трансфери от КФП по международни и други програми | E155: 0 | H155: 0 | K155: 0 | L155: 0
A156: 600 | C156: 4751 | D156: получени чрез нефинансови предприятия капиталови трансфери от КФП по международни и други програми | E156: 0 | H156: 0 | K156: 0 | L156: 0
A157: 605 | C157: 4752 | D157: получени чрез финансови институции капиталови трансфери от КФП по международни и други програми | E157: 0 | H157: 0 | K157: 0 | L157: 0 | M157: =(IF($E157<>0,$M$2,IF($L157<>0,$M$2,""))) -> 
A158: 610 | C158: 4753 | D158: получени чрез нестопански организации капиталови трансфери от КФП по международни и други програми | E158: 0 | H158: 0 | K158: 0 | L158: 0
A159: 615 | C159: 4759 | D159: получени чрез предприятия от чужбина капиталови трансфери от КФП по международни и други програми | E159: 0 | H159: 0 | K159: 0 | L159: 0
A160: 575 | B160: 4800 | C160: Разпределени към администратори от чужбина средства по международни програми и договори (-) | E160: =SUM(E161:E168) -> 0 | F160: 0 | G160: 0 | H160: =SUM(H161:H168) -> 0 | I160: 0 | J160: 0 | K160: =SUM(K161:K168) -> 0 | L160: 0
A161: 580 | C161: 4810 | D161: разпределени към чужбина текущи трансфери по програми на Европейския съюз (-) | E161: =F161+G161+H161 -> 0 | H161: 0 | K161: 0 | L161: =I161+J161+K161 -> 0
A162: 585 | C162: 4820 | D162: разпределени към чужбина капиталови трансфери по програми на Европейския съюз | E162: 0 | H162: 0 | K162: 0 | L162: 0
A163: 590 | C163: 4830 | D163: разпределени към чужбина текущи трансфери по програми на други държави (-) | E163: 0 | H163: 0 | K163: 0 | L163: 0
A164: 595 | C164: 4840 | D164: разпределени към чужбина капиталови трансфери по програми на други държави (-) | E164: 0 | H164: 0 | K164: 0 | L164: 0
A165: 600 | C165: 4850 | D165: разпределени към чужбина текущи трансфери по програми на други международни организации (-) | E165: 0 | H165: 0 | K165: 0 | L165: 0
A166: 605 | C166: 4860 | D166: разпределени към чужбина капиталови трансфери по програми на други международни организации (-) | E166: 0 | H166: 0 | K166: 0 | L166: 0
A167: 610 | C167: 4870 | D167: разпределени към чужбина текущи трансфери по други чуждестранни дарения и помощи (-) | E167: 0 | H167: 0 | K167: 0 | L167: 0
A168: 615 | C168: 4880 | D168: разпределени към чужбина капиталови трансфери по други чуждестранни дарения и помощи (-) | E168: 0 | H168: 0 | K168: 0 | L168: 0
A169: 620 | B169: ВСИЧКО | C169: 99-99 | D169: I. В С И Ч К О П Р И Х О Д И, П О М О Щ И И Д А Р Е Н И Я | E169: =SUM(E22,E28,E33,E39,E47,E52,E58,E61,E64,E65,E72,E73,E74,E90,E93,E94,E108,E112,E121,E125,E137,E138,E139,E142,E151,E160) -> 0 | F169: 0 | G169: 0 | H169: 0 | I169: 0 | J169: 0 | K169: 0 | L169: 0 | M169: 1
A170: 113 | D170: в т.ч. данък върху таксиметров превоз на пътници | E170: 0 | F170: 0 | H170: 0 | I170: 0 | K170: 0 | L170: 0 | M170: 1
M171: 1
M172: 1
M173: 1
B174: =$B$7 -> ОТЧЕТНИ ДАННИ ПО ЕБК ЗА ИЗПЪЛНЕНИЕТО НА БЮДЖЕТА | M174: 1
E175: за периода от | F175: до | M175: 1
B176: =$B$9 -> ОУ Г.С.РАКОВСКИ-С.ГЪЛЪБЕЦ | E176: =$E$9 -> 2020-01-01 | F176: =$F$9 -> 2020-03-31 | M176: 1
B177: =$B$10 -> (наименование на разпоредителя с бюджет) | M177: 1
M178: 1
B179: =$B$12 -> Поморие | E179: код по ЕБК: | F179: =$F$12 -> 5207 | M179: 1
B180: =$B$13 -> (наименование на първостепенния разпоредител с бюджет) | M180: 1
D181: ФИНАНСОВО-ПРАВНА ФОРМА | E181: =$E$15 -> 0 | F181: =$F$15 -> БЮДЖЕТ | M181: 1
H182: (в лева) | L182: (в лева) | M182: 1
D183: II. РАЗХОДИ - РЕКАПИТУЛАЦИЯ ПО ПАРАГРАФИ И ПОДПАРАГРАФИ | E183: Уточнен план 2020 - РАЗХОДИ - рекапитулация | I183: Отчет 2020 - РАЗХОДИ - рекапитулация | M183: 1
B184: §§ | C184: под-§§ | D184: НАИМЕНОВАНИЕ НА ПАРАГРАФИТЕ И ПОДПАРАГРАФИТЕ | E184: =E20 -> Уточнен план Общо | F184: държавни дейности | G184: местни дейности | H184: дофинансиране | I184: държавни дейности -ОТЧЕТ | J184: местни дейности - ОТЧЕТ | K184: дофинансиране - ОТЧЕТ | L184: ОТЧЕТ ОБЩО | M184: 1
D185: 02 ¦ | E185: (1) | F185: (2) | G185: (3) | H185: (4) | I185: (5) | J185: (6) | K185: (7) | L185: (8) | M185: 1
M186: 1
A187: 5 | B187: 100 | C187: Заплати и възнаграждения за персонала, нает по трудови и служебни правоотношения | E187: =SUMIF($B$607:$B$12313,$B187,E$607:E$12313) -> 289769 | F187: 289769 | G187: 0 | H187: 0 | I187: 59656.96 | J187: 0 | K187: 0 | L187: 59656.96 | M187: =(IF($E187<>0,$M$2,IF($L187<>0,$M$2,""))) -> 1
A188: 10 | C188: 101 | D188: заплати и възнаграждения на персонала нает по трудови правоотношения | E188: =SUMIF($C$607:$C$12313,$C188,E$607:E$12313) -> 289769 | F188: 289769 | G188: 0 | H188: 0 | I188: 59656.96 | J188: 0 | K188: 0 | L188: 59656.96 | M188: 1
A189: 15 | C189: 102 | D189: заплати и възнаграждения на персонала нает по служебни правоотношения | E189: 0 | F189: 0 | G189: 0 | H189: 0 | I189: 0 | J189: 0 | K189: 0 | L189: 0
A190: 35 | B190: 200 | C190: Други възнаграждения и плащания за персонала | E190: =SUMIF($B$607:$B$12313,$B190,E$607:E$12313) -> 19220 | F190: 19220 | G190: 0 | H190: 0 | I190: 7675.77 | J190: 0 | K190: 0 | L190: 7675.77 | M190: 1
A191: 40 | C191: 201 | D191: за нещатен персонал нает по трудови правоотношения | E191: =SUMIF($C$607:$C$12313,$C191,E$607:E$12313) -> 0 | F191: 0 | G191: 0 | H191: 0 | I191: 0 | J191: 0 | K191: 0 | L191: 0
A192: 45 | C192: 202 | D192: за персонала по извънтрудови правоотношения | E192: 9500 | F192: 9500 | G192: 0 | H192: 0 | I192: 0 | J192: 0 | K192: 0 | L192: 0 | M192: 1
A193: 50 | C193: 205 | D193: изплатени суми от СБКО за облекло и други на персонала, с характер на възнаграждение | E193: 9000 | F193: 9000 | G193: 0 | H193: 0 | I193: 7500 | J193: 0 | K193: 0 | L193: 7500 | M193: 1
A194: 55 | C194: 208 | D194: обезщетения за персонала, с характер на възнаграждение | E194: 0 | F194: 0 | G194: 0 | H194: 0 | I194: 0 | J194: 0 | K194: 0 | L194: 0
A195: 60 | C195: 209 | D195: другиплащания и възнаграждения | E195: 720 | F195: 720 | G195: 0 | H195: 0 | I195: 175.77 | J195: 0 | K195: 0 | L195: 175.77 | M195: 1
A196: 65 | B196: 500 | C196: Задължителни осигурителни вноски от работодатели | E196: =SUMIF($B$607:$B$12313,$B196,E$607:E$12313) -> 68000 | F196: 68000 | G196: 0 | H196: 0 | I196: 14985.15 | J196: 0 | K196: 0 | L196: 14985.15 | M196: 1
A197: 70 | C197: 551 | D197: осигурителни вноски от работодатели за Държавното обществено осигуряване (ДОО) | E197: =SUMIF($C$607:$C$12313,$C197,E$607:E$12313) -> 29000 | F197: 29000 | G197: 0 | H197: 0 | I197: 7750.95 | J197: 0 | K197: 0 | L197: 7750.95 | M197: 1
A198: 75 | C198: 552 | D198: осигурителни вноски от работодатели за Учителския пенсионен фонд (УчПФ) | E198: 14000 | F198: 14000 | G198: 0 | H198: 0 | I198: 2288.21 | J198: 0 | K198: 0 | L198: 2288.21 | M198: 1
A199: 80 | C199: 558 | D199: вноски по чл. 4б и 4в от КСО за сметка на осигурителя | E199: 0 | F199: 0 | G199: 0 | H199: 0 | I199: 0 | J199: 0 | K199: 0 | L199: 0
A200: 80 | C200: 560 | D200: здравно-осигурителни вноски от работодатели | E200: 17000 | F200: 17000 | G200: 0 | H200: 0 | I200: 3191.51 | J200: 0 | K200: 0 | L200: 3191.51 | M200: 1
... 4261 more rows

Sheet list (hidden)
A1: Name: | B1: SMETKA
A2: 0 | B2: ОТЧЕТНИ ДАННИ ПО ЕБК ЗА ИЗПЪЛНЕНИЕТО НА БЮДЖЕТА | C2: ОТЧЕТ ЗА КАСОВОТО ИЗПЪЛНЕНИЕ НА БЮДЖЕТА
A3: 33 | B3: ОТЧЕТНИ ДАННИ ПО ЕБК ЗА СМЕТКИТЕ ЗА ЧУЖДИ СРЕДСТВА | C3: ОТЧЕТ ЗА КАСОВОТО ИЗПЪЛНЕНИЕ НА СМЕТКИТЕ ЗА ЧУЖДИ СРЕДСТВА
A4: 42 | B4: ОТЧЕТНИ ДАННИ ПО ЕБК ЗА СМЕТКИТЕ ЗА СРЕДСТВАТА ОТ ЕВРОПЕЙСКИЯ СЪЮЗ - РА | C4: ОТЧЕТ ЗА КАСОВОТО ИЗПЪЛНЕНИЕ НА СМЕТКИТЕ ЗА СРЕДСТВАТА ОТ ЕВРОПЕЙСКИЯ СЪЮЗ - РА
A5: 96 | B5: ОТЧЕТНИ ДАННИ ПО ЕБК ЗА СМЕТКИТЕ ЗА СРЕДСТВАТА ОТ ЕВРОПЕЙСКИЯ СЪЮЗ - ДЕС | C5: ОТЧЕТ ЗА КАСОВОТО ИЗПЪЛНЕНИЕ НА СМЕТКИТЕ ЗА СРЕДСТВАТА ОТ ЕВРОПЕЙСКИЯ СЪЮЗ - ДЕС
A6: 97 | B6: ОТЧЕТНИ ДАННИ ПО ЕБК ЗА СМЕТКИТЕ ЗА СРЕДСТВАТА ОТ ЕВРОПЕЙСКИЯ СЪЮЗ - ДМП | C6: ОТЧЕТ ЗА КАСОВОТО ИЗПЪЛНЕНИЕ НА СМЕТКИТЕ ЗА СРЕДСТВАТА ОТ ЕВРОПЕЙСКИЯ СЪЮЗ - ДМП
A7: 98 | B7: ОТЧЕТНИ ДАННИ ПО ЕБК ЗА СМЕТКИТЕ ЗА СРЕДСТВАТА ОТ ЕВРОПЕЙСКИЯ СЪЮЗ - КСФ | C7: ОТЧЕТ ЗА КАСОВОТО ИЗПЪЛНЕНИЕ НА СМЕТКИТЕ ЗА СРЕДСТВАТА ОТ ЕВРОПЕЙСКИЯ СЪЮЗ - КСФ
A10: Name: | B10: "EBK_DEIN" и "EBK_DEIN2"
B11: ИЗБЕРЕТЕ ДЕЙНОСТ
A12: 1101 | B12: 101 Централни държавни органи | C12: 1101
A13: 1103 | B13: 103 Централни държавни органи по образованието | C13: 1103
A14: 1104 | B14: 104 Централни държавни органи по здравеопазването | C14: 1104
A15: 1105 | B15: 105 Централни държавни органи по социалното осигуряването | C15: 1105
A16: 1106 | B16: 106 Централни държавни органи по регионалното развитие и благоустройство | C16: 1106
A17: 1107 | B17: 107 Централни държавни органи по културата и спорта | C17: 1107
A18: 1108 | B18: 108 Централни държавни органи по икономическите дейности и услуги | C18: 1108
A19: 1111 | B19: 111 Контролни органи | C19: 1111
A20: 1115 | B20: 115 Управление, контрол и регулиране на външните работи | C20: 1115
A21: 1116 | B21: 116 Посолства, консулства, представителства и мисии в чужбина | C21: 1116
A22: 1117 | B22: 117 Държавни и общински служби и дейности по изборите | C22: 1117
A23: 1121 | B23: 121 Областни администрации | C23: 1121
A24: 1122 | B24: 122 Общинска администрация | C24: 1122
A25: 1123 | B25: 123 Общински съвети | C25: 1123
A26: 1125 | B26: 125 Членове на Европейския парламент от Република България | C26: 1125
A27: 1128 | B27: 128 Международни програми и споразумения, дарения и помощи от чужбина | C27: 1128
A28: 1139 | B28: 139 Други изпълнителни и законодателни органи | C28: 1139
A29: 1141 | B29: 141 Статистически институт,служби и дейности,социологически проучвания и анкети | C29: 1141
A30: 1142 | B30: 142 Общоикономическо и социално програмиране и прогнозиране | C30: 1142
A31: 1143 | B31: 143 Регистрация и контрол на чуждестранните инвестиции | C31: 1143
A32: 1144 | B32: 144 Служби и дейности за връзки с българите в чужбина | C32: 1144
A33: 1145 | B33: 145 Служби и дейности за подпомагане на бежанците | C33: 1145
A34: 1146 | B34: 146 Управление и администриране на получена чуждестранна помощ | C34: 1146
A35: 1147 | B35: 147 Управление на държавния резерв и военновременните запаси | C35: 1147
A36: 1148 | B36: 148 Управление на гражд.администрация и административнообслужване на населението | C36: 1148
A37: 1149 | B37: 149 Други общи служби | C37: 1149
A38: 1151 | B38: 151 Ликвидационна комисия за закрити бюджетни организации | C38: 1151
A39: 1158 | B39: 158 Международни програми и споразумения, дарения и помощи от чужбина | C39: 1158
A40: 1161 | B40: 161 Организация и управление на научните изследвания и дейности | C40: 1161
A41: 1162 | B41: 162 Научноизследователско дело | C41: 1162
A42: 1163 | B42: 163 Научноизследователски институти и центрове | C42: 1163
A43: 1168 | B43: 168 Международни програми и споразумения, дарения и помощи от чужбина | C43: 1168
A44: 1179 | B44: 179 Други дейности на науката | C44: 1179
A45: 2201 | B45: 201 Дейности по отбраната | C45: 2201
A46: 2205 | B46: 205 Участие на Република България в НАТО | C46: 2205
A47: 2206 | B47: 206 Мироопазващи мисии в чужбина | C47: 2206
A48: 2215 | B48: 215 Приложни научни изследвания в областта на отбраната | C48: 2215
A49: 2218 | B49: 218 Международни програми и споразумения, дарения и помощи от чужбина | C49: 2218
A50: 2219 | B50: 219 Други дейности по отбраната | C50: 2219
A51: 2221 | B51: 221 Полиция и вътрешен ред | C51: 2221
A52: 2222 | B52: 222 Национална служба за охрана | C52: 2222
A53: 2223 | B53: 223 Държавна агенция "Разузнаване" | C53: 2223
A54: 2224 | B54: 224 Противопожарна охрана | C54: 2224
A55: 2225 | B55: 225 Приложни научни изследвания в областта на вътрешния ред и сигурност | C55: 2225
A56: 2228 | B56: 228 Международни програми и споразумения, дарения и помощи от чужбина | C56: 2228
A57: 2239 | B57: 239 Други дейности по вътрешната сигурност | C57: 2239
A58: 2241 | B58: 241 Висш съдебен съвет | C58: 2241
A59: 2242 | B59: 242 Върховен административен съд | C59: 2242
A60: 2243 | B60: 243 Върховен касационен съд | C60: 2243
A61: 2244 | B61: 244 Прокуратура | C61: 2244
A62: 2245 | B62: 245 Национална следствена служба | C62: 2245
A63: 2246 | B63: 246 Съдилища | C63: 2246
A64: 2247 | B64: 247 Окръжни следствени служби | C64: 2247
A65: 2248 | B65: 248 Инспекторат към Висшия съдебен съвет | C65: 2248
A66: 2249 | B66: 249 Национален институт на правосъдието | C66: 2249
A67: 2258 | B67: 258 Международни програми и споразумения, дарения и помощи от чужбина | C67: 2258
A68: 2259 | B68: 259 Други дейности на съдебната власт | C68: 2259
A69: 2261 | B69: 261 Места за лишаване от свобода | C69: 2261
A70: 2268 | B70: 268 Международни програми и споразумения, дарения и помощи от чужбина | C70: 2268
A71: 2279 | B71: 279 Други дейности на администрацията на затворите | C71: 2279
A72: 2281 | B72: 281 Неотложна дейност по защита на населението и националното стопанство | C72: 2281
A73: 2282 | B73: 282 Отбранително-мобилизационна подготовка, поддържане на запаси и мощности | C73: 2282
A74: 2283 | B74: 283 Превантивна дейност за намаляване на вредните последствия от бедствия и аварии | C74: 2283
A75: 2284 | B75: 284 Ликвидиране на последици от стихийни бедствия и производствени аварии | C75: 2284
A76: 2285 | B76: 285 Доброволни формирования за защита при бедствия | C76: 2285
A77: 2288 | B77: 288 Международни програми и споразумения, дарения и помощи от чужбина | C77: 2288
A78: 2289 | B78: 289 Други дейности за защита на населението при стихийни бедствия и аварии | C78: 2289
A79: 3301 | B79: 301 Управление, контрол, регулиране и лицензиране на дейности по образованието | C79: 3301
A80: 3311 | B80: 311 Детски градини | C80: 3311
A81: 3312 | B81: 312 Специални групи в детски градини за деца със СОП | C81: 3312
A82: 3318 | B82: 318 Подготвителна група в училище | C82: 3318
A83: 3321 | B83: 321 Специални училища и центрове за специална образователна подкрепа | C83: 3321
A84: 3322 | B84: 322 Неспециализирани училища, без професионални гимназии | C84: 3322
A85: 3323 | B85: 323 Училища по културата и училища по изкуствата | C85: 3323
A86: 3324 | B86: 324 Спортни училища | C86: 3324
A87: 3325 | B87: 325 Български училища в чужбина | C87: 3325
A88: 3326 | B88: 326 Професионални гимназии и паралелки за професионална подготовка | C88: 3326
A89: 3327 | B89: 327 Училища в места за лишаване от свобода | C89: 3327
A90: 3332 | B90: 332 Общежития | C90: 3332
A91: 3333 | B91: 333 Ученически почивни лагери | C91: 3333
A92: 3334 | B92: 334 Повишаване на квалификацията | C92: 3334
A93: 3336 | B93: 336 Столове | C93: 3336
A94: 3337 | B94: 337 Център за подкрепа за личностно развитие | C94: 3337
A95: 3338 | B95: 338 Ресурсно подпомагане | C95: 3338
A96: 3341 | B96: 341 Академии, университети и висши училища | C96: 3341
A97: 3349 | B97: 349 Приложни научни изследвания в областта на образованието | C97: 3349
A98: 3359 | B98: 359 Други дейности за децата | C98: 3359
A99: 3369 | B99: 369 Други дейности за младежта | C99: 3369
A100: 3388 | B100: 388 Международни програми и споразумения, дарения и помощи от чужбина | C100: 3388
A101: 3389 | B101: 389 Други дейности по образованието | C101: 3389
A102: 4401 | B102: 401 Управление, контрол и регулиране на дейности по здравеопазването | C102: 4401
A103: 4412 | B103: 412 Многопрофилни болници за активно лечение | C103: 4412
A104: 4415 | B104: 415 Домове за медико-социални грижи | C104: 4415
A105: 4418 | B105: 418 Психиатрични болници | C105: 4418
A106: 4429 | B106: 429 Центрове за спешна медицинска помощ | C106: 4429
A107: 4431 | B107: 431 Детски ясли, детски кухни и яслени групи в детска градина | C107: 4431
A108: 4433 | B108: 433 Рехабилитация | C108: 4433
A109: 4436 | B109: 436 Национални центрове | C109: 4436
A110: 4437 | B110: 437 Здравен кабинет в детски градини и училища | C110: 4437
A111: 4448 | B111: 448 Центрове за комплексно обслужване на деца с увреждания и хронични заболявания | C111: 4448
A112: 4450 | B112: 450 Преобразувани лечебни заведения | C112: 4450
A113: 4451 | B113: 451 Плащания за първична извънболнична медицинска помощ | C113: 4451
A114: 4452 | B114: 452 Плащания за специализирана извънболнична медицинска помощ | C114: 4452
A115: 4453 | B115: 453 Плащания за дентална помощ | C115: 4453
A116: 4454 | B116: 454 Плащания за медико-диагностична дейност | C116: 4454
A117: 4455 | B117: 455 Плащания за лекарствени продукти, медицински изделия и диетични храни за специални медицински цели за домашно лечение на територията на страната | C117: 4455
A118: 4456 | B118: 456 Плащания за болнична медицинска помощ | C118: 4456
A119: 4457 | B119: 457 Плащания за медицински изделия прилагани в болничната медицинска помощ | C119: 4457
A120: 4458 | B120: 458 Плащания за лекарствени продукти в условия на болнична медицинска помощ | C120: 4458
A121: 4459 | B121: 459 Други здравноосигурителни плащания | C121: 4459
A122: 4465 | B122: 465 Приложни научни изследвания в областта на здравеопазването | C122: 4465
A123: 4467 | B123: 467 Национални програми | C123: 4467
A124: 4468 | B124: 468 Международни програми и споразумения, дарения и помощи от чужбина | C124: 4468
A125: 4469 | B125: 469 Други дейности по здравеопазването | C125: 4469
A126: 5501 | B126: 501 Пенсии | C126: 5501
A127: 5511 | B127: 511 Помощи по Закона за семейните помощи за деца | C127: 5511
A128: 5512 | B128: 512 Помощи по Закона за социално подпомагане | C128: 5512
A129: 5513 | B129: 513 Помощи по Закона за хората с увреждания | C129: 5513
A130: 5514 | B130: 514 Помощи за диагностика и лечение на социално слаби лица | C130: 5514
A131: 5515 | B131: 515 Помощи по Закона за закрила на детето | C131: 5515
A132: 5516 | B132: 516 Помощи по Закона за ветераните от войните на Република България | C132: 5516
A133: 5517 | B133: 517 Помощи по Закона за военноинвалидите и военнопострадалите | C133: 5517
A134: 5518 | B134: 518 Социални помощи и обезщетения по международни програми, помощи и дарения | C134: 5518
A135: 5519 | B135: 519 Други помощи и обезщетения | C135: 5519
A136: 5521 | B136: 521 Служби по социалното осигуряване (ДОО и др.) | C136: 5521
A137: 5522 | B137: 522 Дирекции за социално подпомагане | C137: 5522
A138: 5524 | B138: 524 Домашен социален патронаж | C138: 5524
A139: 5525 | B139: 525 Клубове на пенсионера, инвалида и др. | C139: 5525
A140: 5526 | B140: 526 Центрове за обществена подкрепа | C140: 5526
A141: 5527 | B141: 527 Звена "Майка и бебе" | C141: 5527
A142: 5528 | B142: 528 Център за работа с деца на улицата | C142: 5528
A143: 5529 | B143: 529 Кризисен център | C143: 5529
A144: 5530 | B144: 530 Център за настаняване от семеен тип | C144: 5530
A145: 5531 | B145: 531 Дейности за предотвратяване на трудови злополуки и професионални болести | C145: 5531
A146: 5532 | B146: 532 Програми за временна заетост | C146: 5532
A147: 5533 | B147: 533 Други програми и дейности за осигуряване на заетост | C147: 5533
A148: 5534 | B148: 534 Наблюдавани жилища | C148: 5534
A149: 5535 | B149: 535 Преходни жилища | C149: 5535
A150: 5538 | B150: 538 Програми за закрила на детето | C150: 5538
A151: 5540 | B151: 540 Домове за стари хора | C151: 5540
A152: 5541 | B152: 541 Домове за възрастни хора с увреждания | C152: 5541
A153: 5545 | B153: 545 Социален учебно-професионален център | C153: 5545
A154: 5546 | B154: 546 Домове за деца | C154: 5546
A155: 5547 | B155: 547 Център за временно настаняване | C155: 5547
A156: 5548 | B156: 548 Дневни центрове за стари хора | C156: 5548
A157: 5550 | B157: 550 Центрове за социална рехабилитация и интеграция | C157: 5550
A158: 5551 | B158: 551 Дневни центрове за лица с увреждания | C158: 5551
A159: 5553 | B159: 553 Приюти | C159: 5553
A160: 5554 | B160: 554 Защитени жилища | C160: 5554
A161: 5556 | B161: 556 Приложни научни изследвания в областта на социалното осигуряване и подпомагане | C161: 5556
A162: 5561 | B162: 561 Социални услуги в домашна среда | C162: 5561
A163: 5562 | B163: 562 Асистенти за лична помощ | C163: 5562
A164: 5588 | B164: 588 Международни програми и споразумения, дарения и помощи от чужбина | C164: 5588
A165: 5589 | B165: 589 Други служби и дейности по социалното осигуряване, подпомагане и заетостта | C165: 5589
A166: 6601 | B166: 601 Управление, контрол и регулиране на дейностите по жил. строителство и териториално развитие | C166: 6601
A167: 6602 | B167: 602 Служби по кадастър, геодезия и регистрация на недвижимата собственост | C167: 6602
A168: 6603 | B168: 603 Водоснабдяване и канализация | C168: 6603
A169: 6604 | B169: 604 Осветление на улици и площади | C169: 6604
A170: 6605 | B170: 605 Бани и перални | C170: 6605
A171: 6606 | B171: 606 Изграждане, ремонт и поддържане на уличната мрежа | C171: 6606
A172: 6618 | B172: 618 Международни програми и споразумения, дарения и помощи от чужбина | C172: 6618
A173: 6619 | B173: 619 Други дейности по жилищното строителство, благоустройството и регионалното развитие | C173: 6619
A174: 6621 | B174: 621 Управление, контрол и регулиране на дейностите по опазване на околната среда | C174: 6621
A175: 6622 | B175: 622 Озеленяване | C175: 6622
A176: 6623 | B176: 623 Чистота | C176: 6623
A177: 6624 | B177: 624 Геозащита | C177: 6624
A178: 6625 | B178: 625 Приложни и научни изследвания в областта на опазване на околната среда | C178: 6625
A179: 6626 | B179: 626 Пречистване на отпадъчните води от населените места | C179: 6626
A180: 6627 | B180: 627 Управление на дейностите по отпадъците | C180: 6627
A181: 6628 | B181: 628 Международни програми и споразумения, дарения и помощи от чужбина | C181: 6628
A182: 6629 | B182: 629 Други дейности по опазване на околната среда | C182: 6629
A183: 7701 | B183: 701 Дейности по почивното дело и социалния отдих | C183: 7701
A184: 7708 | B184: 708 Международни програми и споразумения, дарения и помощи от чужбина | C184: 7708
A185: 7711 | B185: 711 Управление, контрол и регулиране на дейностите по спорта | C185: 7711
A186: 7712 | B186: 712 Детски и специализирани спортни школи | C186: 7712
A187: 7713 | B187: 713 Спорт за всички | C187: 7713
A188: 7714 | B188: 714 Спортни бази за спорт за всички | C188: 7714
A189: 7718 | B189: 718 Международни програми и споразумения, дарения и помощи от чужбина | C189: 7718
A190: 7719 | B190: 719 Други дейности по спорта и физическата култура | C190: 7719
A191: 7731 | B191: 731 Управление, контрол и регулиране на дейностите по културата | C191: 7731
A192: 7732 | B192: 732 Културни дейности | C192: 7732
A193: 7733 | B193: 733 Български културни институти в чужбина | C193: 7733
A194: 7735 | B194: 735 Театри | C194: 7735
A195: 7736 | B195: 736 Оперно - филхармонични дружества и опери | C195: 7736
A196: 7737 | B196: 737 Оркестри и ансамбли | C196: 7737
A197: 7738 | B197: 738 Читалища | C197: 7738
A198: 7739 | B198: 739 Музеи, худ. галерии, паметници на културата и етногр. комплекси с национален и регионален харакер | C198: 7739
A199: 7740 | B199: 740 Музеи, художествени галерии, паметници на културата и етнографски комплекси с местен харакер | C199: 7740
A200: 7741 | B200: 741 Радиотранслационни възли | C200: 7741
A201: 7742 | B201: 742 Радио | C201: 7742
A202: 7743 | B202: 743 Телевизия | C202: 7743
... 516 more rows

Sheet INF (hidden)
A1: step | B1: 137
A2: gotocell | B2: c9551
A3: nextcell | B3: b9379
A4: INF copyrf | B4: i12:u149
A5: dejKN
B8: d9258
A11: Step:
A12: 1 | T12: =(IF($E145<>0,$M$2,IF($L145<>0,$M$2,""))) -> 
A13: 2 | T13: =(IF($E145<>0,$M$2,IF($L145<>0,$M$2,""))) -> 
A14: 3 | I14: =$B$7 -> 0 | T14: =(IF($E145<>0,$M$2,IF($L145<>0,$M$2,""))) -> 
A15: 4 | L15: за периода от | M15: до | O15: II.1. РАЗХОДИ ПО ДЕЙНОСТИ | T15: =(IF($E145<>0,$M$2,IF($L145<>0,$M$2,""))) -> 
A16: 5 | I16: =$B$9 -> 0 | L16: =$E$9 -> 00:00:00 | M16: =$F$9 -> 00:00:00 | T16: =(IF($E145<>0,$M$2,IF($L145<>0,$M$2,""))) -> 
A17: 6 | I17: =$B$10 -> 0 | T17: =(IF($E145<>0,$M$2,IF($L145<>0,$M$2,""))) -> 
A18: 7 | T18: =(IF($E145<>0,$M$2,IF($L145<>0,$M$2,""))) -> 
A19: 8 | I19: =$B$12 -> 0 | L19: код по ЕБК: | M19: =$F$12 -> 0 | T19: =(IF($E145<>0,$M$2,IF($L145<>0,$M$2,""))) -> 
A20: 9 | I20: =$B$13 -> 0 | T20: =(IF($E145<>0,$M$2,IF($L145<>0,$M$2,""))) -> 
A21: 10 | K21: ФИНАНСОВО-ПРАВНА ФОРМА | L21: =$E$15 -> 0 | M21: =$F$15 -> 0 | T21: =(IF($E145<>0,$M$2,IF($L145<>0,$M$2,""))) -> 
A22: 11 | S22: (в лева) | T22: =(IF($E145<>0,$M$2,IF($L145<>0,$M$2,""))) -> 
A23: 12 | K23: II.1. РАЗХОДИ ПО ДЕЙНОСТИ | L23: Уточнен план 2020 | P23: Отчет 2020 | T23: =(IF($E145<>0,$M$2,IF($L145<>0,$M$2,""))) -> 
A24: 13 | I24: §§ | J24: под-§§ | K24: НАИМЕНОВАНИЯ НА ПАРАГРАФИТЕ И ПОДПАРАГРАФИТЕ | L24: =$E$20 -> 0 | M24: =$F$20 -> 0 | N24: =$G$20 -> 0 | O24: =$H$20 -> 0 | P24: =$I$20 -> 0 | Q24: =$J$20 -> 0 | R24: =$K$20 -> 0 | S24: =$L$20 -> 0 | T24: =(IF($E145<>0,$M$2,IF($L145<>0,$M$2,""))) -> 
A25: 14 | K25: 02 ¦ | L25: =$E$21 -> 0 | M25: =$F$21 -> 0 | N25: =$G$21 -> 0 | O25: =$H$21 -> 0 | P25: =$I$21 -> 0 | Q25: =$J$21 -> 0 | R25: =$K$21 -> ФИНАНСОВО-ПРАВНА ФОРМА | S25: =$L$21 -> 0 | T25: =(IF($E145<>0,$M$2,IF($L145<>0,$M$2,""))) -> 
A26: 15 | J26: =VLOOKUP(K26,OP_LIST2,2,FALSE) ->  | T26: =(IF($E145<>0,$M$2,IF($L145<>0,$M$2,""))) -> 
A27: 16 | J27: =VLOOKUP(K28,EBK_DEIN2,2,FALSE) -> 0 | K27: <------ ДЕЙНОСТ - код по ЕБК | T27: =(IF($E145<>0,$M$2,IF($L145<>0,$M$2,""))) -> 
A28: 17 | J28: =+J27 -> 0 | K28: ИЗБЕРЕТЕ ДЕЙНОСТ | T28: =(IF($E145<>0,$M$2,IF($L145<>0,$M$2,""))) -> 
A29: 18 | K29: (наименование на дейността) | T29: =(IF($E145<>0,$M$2,IF($L145<>0,$M$2,""))) -> 
A30: 19 | I30: 100 | J30: Заплати и възнаграждения за персонала, нает по трудови и служебни правоотношения | L30: =SUM(L31:L32) -> 0 | M30: 0 | N30: 0 | O30: =SUM(O31:O32) -> 0 | P30: 0 | Q30: 0 | R30: 0 | S30: 0 | T30: =(IF($E30<>0,$M$2,IF($L30<>0,$M$2,""))) -> 
A31: 20 | J31: 101 | K31: заплати и възнаграждения на персонала нает по трудови правоотношения | L31: =M31+N31+O31 -> 0 | S31: =P31+Q31+R31 -> 0 | T31: =(IF($E31<>0,$M$2,IF($L31<>0,$M$2,""))) -> 
A32: 21 | J32: 102 | K32: заплати и възнаграждения на персонала нает по служебни правоотношения | L32: =M32+N32+O32 -> 0 | S32: =P32+Q32+R32 -> 0
A33: 22 | I33: 200 | J33: Други възнаграждения и плащания за персонала | L33: =SUM(L34:L38) -> 0 | M33: 0 | N33: 0 | O33: =SUM(O34:O38) -> 0 | P33: 0 | Q33: 0 | R33: 0 | S33: 0
A34: 23 | J34: 201 | K34: за нещатен персонал нает по трудови правоотношения | L34: =M34+N34+O34 -> 0 | S34: =P34+Q34+R34 -> 0
A35: 24 | J35: 202 | K35: за персонала по извънтрудови правоотношения | L35: =M35+N35+O35 -> 0 | S35: =P35+Q35+R35 -> 0
A36: 25 | J36: 205 | K36: изплатени суми от СБКО за облекло и други на персонала, с характер на възнаграждение | L36: =M36+N36+O36 -> 0 | S36: =P36+Q36+R36 -> 0
A37: 26 | J37: 208 | K37: обезщетения за персонала, с характер на възнаграждение | L37: =M37+N37+O37 -> 0 | S37: =P37+Q37+R37 -> 0
A38: 27 | J38: 209 | K38: другиплащания и възнаграждения | L38: =M38+N38+O38 -> 0 | S38: =P38+Q38+R38 -> 0
A39: 28 | I39: 500 | J39: Задължителни осигурителни вноски от работодатели | L39: =SUM(L40:L46) -> 0 | M39: 0 | N39: 0 | O39: =SUM(O40:O46) -> 0 | P39: 0 | Q39: 0 | R39: 0 | S39: 0
A40: 29 | J40: 551 | K40: осигурителни вноски от работодатели за Държавното обществено осигуряване (ДОО) | L40: =M40+N40+O40 -> 0 | S40: =P40+Q40+R40 -> 0
A41: 30 | J41: 552 | K41: осигурителни вноски от работодатели за Учителския пенсионен фонд (УчПФ) | L41: 0 | S41: 0
A42: 31 | J42: 558 | K42: вноски по чл. 4б и 4в от КСО за сметка на осигурителя | L42: =M42+N42+O42 -> 0 | M42: 0 | N42: 0 | O42: 0 | P42: 0 | Q42: 0 | R42: 0 | S42: =P42+Q42+R42 -> 0
A43: 31 | J43: 560 | K43: здравно-осигурителни вноски от работодатели | L43: 0 | S43: 0
A44: 32 | J44: 580 | K44: вноски за допълнително задължително осигуряване от работодатели | L44: 0 | S44: 0
A45: 33 | J45: 588 | K45: коректив на вноски за ДЗПО за сумите по чл. 4б и 4в от КСО за сметка на осигурителя | L45: =M45+N45+O45 -> 0 | M45: 0 | N45: 0 | O45: 0 | P45: 0 | Q45: 0 | R45: 0 | S45: =P45+Q45+R45 -> 0
A46: 33 | J46: 590 | K46: задължителни вноски за чуждестранни пенсионни фондове и схеми за сметка на осигурителя | L46: 0 | S46: 0
A47: 34 | I47: 800 | J47: Вноски за доброволно осигуряване | L47: 0 | S47: 0
A48: 35 | I48: 1000 | J48: Издръжка | L48: =SUM(L49:L65) -> 0 | M48: 0 | N48: 0 | O48: =SUM(O49:O65) -> 0 | P48: 0 | Q48: 0 | R48: 0 | S48: 0
A49: 36 | J49: 1011 | K49: Храна | L49: =M49+N49+O49 -> 0 | S49: =P49+Q49+R49 -> 0
A50: 37 | J50: 1012 | K50: Медикаменти | L50: 0 | S50: 0
A51: 38 | J51: 1013 | K51: Постелен инвентар и облекло | L51: 0 | S51: 0
A52: 39 | J52: 1014 | K52: Учебни и научно-изследователски разходи и книги за библиотеките | L52: 0 | S52: 0
A53: 40 | J53: 1015 | K53: материали | L53: 0 | S53: 0
A54: 41 | J54: 1016 | K54: вода, горива и енергия | L54: 0 | S54: 0
A55: 42 | J55: 1020 | K55: разходи за външни услуги | L55: 0 | S55: 0
A56: 43 | J56: 1030 | K56: Текущ ремонт | L56: 0 | S56: 0
A57: 44 | J57: 1051 | K57: командировки в страната | L57: 0 | S57: 0
A58: 45 | J58: 1052 | K58: краткосрочни командировки в чужбина | L58: 0 | S58: 0
A59: 46 | J59: 1053 | K59: дългосрочни командировки в чужбина | L59: 0 | S59: 0
A60: 47 | J60: 1062 | K60: разходи за застраховки | L60: 0 | S60: 0
A61: 48 | J61: 1063 | K61: такса ангажимент по заеми | L61: 0 | S61: 0
A62: 49 | J62: 1069 | K62: други финансови услуги | L62: 0 | S62: 0
A63: 50 | J63: 1091 | K63: други разходи за СБКО | L63: 0 | S63: 0
A64: 51 | J64: 1092 | K64: разходи за договорни санкции и неустойки, съдебни обезщетения и разноски | L64: 0 | S64: 0
A65: 52 | J65: 1098 | K65: други разходи, некласифицирани в другите параграфи и подпараграфи | L65: 0 | S65: 0
A66: 53 | I66: 1900 | J66: Платени данъци, такси и административни санкции | L66: =SUM(L67:L69) -> 0 | M66: 0 | N66: 0 | O66: =SUM(O67:O69) -> 0 | P66: 0 | Q66: 0 | R66: 0 | S66: 0
A67: 54 | J67: 1901 | K67: платени държавни данъци, такси, наказателни лихви и административни санкции | L67: =M67+N67+O67 -> 0 | S67: =P67+Q67+R67 -> 0
A68: 55 | J68: 1981 | K68: платени общински данъци, такси, наказателни лихви и административни санкции | L68: =M68+N68+O68 -> 0 | S68: =P68+Q68+R68 -> 0
A69: 56 | J69: 1991 | K69: платени данъци, такси, наказателни лихви и административни санкции в чужбина | L69: =M69+N69+O69 -> 0 | S69: =P69+Q69+R69 -> 0
A70: 57 | I70: 2100 | J70: Разходи за лихви по емисии на държавни (общински) ценни книжа | L70: =SUM(L71:L75) -> 0 | M70: 0 | N70: 0 | O70: =SUM(O71:O75) -> 0 | P70: 0 | Q70: 0 | R70: 0 | S70: 0
A71: 58 | J71: 2110 | K71: лихви по държавни (общински) ценни книжа | L71: =M71+N71+O71 -> 0 | S71: =P71+Q71+R71 -> 0
A72: 59 | J72: 2120 | K72: отстъпки по държавни (общински) ценни книжа | L72: =M72+N72+O72 -> 0 | S72: =P72+Q72+R72 -> 0
A73: 60 | J73: 2125 | K73: лихви и отстъпки по целеви емисии на държавни ценни книжа | L73: =M73+N73+O73 -> 0 | M73: 0 | N73: 0 | O73: 0 | P73: 0 | Q73: 0 | R73: 0 | S73: =P73+Q73+R73 -> 0
A74: 61 | J74: 2140 | K74: лихви по държавни ценни книжа, емитирани за структурната реформа | L74: =M74+N74+O74 -> 0 | M74: 0 | N74: 0 | O74: 0 | P74: 0 | Q74: 0 | R74: 0 | S74: =P74+Q74+R74 -> 0
A75: 62 | J75: 2190 | K75: премии над номинала от емисии на държавни (общински) ценни книжа (-) | L75: =M75+N75+O75 -> 0 | S75: =P75+Q75+R75 -> 0
A76: 63 | I76: 2200 | J76: Разходи за лихви по заеми от страната | L76: =SUM(L77:L78) -> 0 | M76: 0 | N76: 0 | O76: =SUM(O77:O78) -> 0 | P76: 0 | Q76: 0 | R76: 0 | S76: 0
A77: 64 | J77: 2221 | K77: Разходи за лихви по заеми от банки в страната | L77: =M77+N77+O77 -> 0 | S77: =P77+Q77+R77 -> 0
A78: 65 | J78: 2224 | K78: Разходи за лихви по други заеми от страната | L78: 0 | S78: 0
A79: 66 | I79: 2500 | J79: Разходи за лихви по заеми от други държави | L79: 0 | S79: 0
A80: 67 | I80: 2600 | J80: Разходи за лихви по заеми от международни организации и институции | L80: 0 | S80: 0
A81: 68 | I81: 2700 | J81: Разходи за лихви по заеми от банки и други финансови институции от чужбина | L81: 0 | S81: 0
A82: 69 | I82: 2800 | J82: Разходи за лихви и отстъпки по облигации, емитирани и търгувани на международните капиталови пазари | L82: 0 | S82: 0
A83: 70 | I83: 2900 | J83: Други разходи за лихви | L83: =SUM(L84:L91) -> 0 | M83: =SUM(M84:M91) -> 0 | N83: =SUM(N84:N91) -> 0 | O83: 0 | P83: 0 | Q83: 0 | R83: 0 | S83: 0
A84: 71 | J84: 2910 | K84: Платени лихви по финансов лизинг и търговски кредит | L84: =M84+N84+O84 -> 0 | S84: =P84+Q84+R84 -> 0
A85: 71 | J85: 2920 | K85: Платени лихви по активирани гаранции по заеми от банки в страната | L85: =M85+N85+O85 -> 0 | S85: =P85+Q85+R85 -> 0
A86: 72 | J86: 2969 | K86: Платени лихви по активирани гаранции по заеми от международни организации и институции | L86: 0 | S86: 0
A87: 73 | J87: 2970 | K87: Платени лихви по активирани гаранции по заеми от банки и финансови институции от чужбина | L87: 0 | S87: 0
A88: 74 | J88: 2989 | K88: Възстановени суми по платени лихви по активирани гаранции (-) | L88: 0 | S88: 0
A89: 75 | J89: 2990 | K89: Платени лихви по активирани гаранции по заеми от банки в страната | L89: =M89+N89+O89 -> 0 | S89: =P89+Q89+R89 -> 0
A90: 75 | J90: 2991 | K90: Други разходи за лихви към местни лица | L90: 0 | S90: 0
A91: 76 | J91: 2992 | K91: Други разходи за лихви към чуждестранни лица | L91: 0 | S91: 0
A92: 77 | I92: 3300 | J92: Вноска в общия бюджет на Европейския съюз | L92: =SUM(L93:L97) -> 0 | M92: 0 | N92: 0 | O92: 0 | P92: 0 | Q92: 0 | R92: 0 | S92: 0
A93: 78 | J93: 3301 | K93: ресурс на база брутен национален доход | L93: =M93+N93+O93 -> 0 | M93: 0 | N93: 0 | O93: 0 | P93: 0 | Q93: 0 | R93: 0 | S93: =P93+Q93+R93 -> 0
A94: 79 | J94: 3302 | K94: ресурс на база данък върху добавената стойност | L94: 0 | M94: 0 | N94: 0 | O94: 0 | P94: 0 | Q94: 0 | R94: 0 | S94: 0
A95: 80 | J95: 3303 | K95: корекция за Обединеното кралство | L95: 0 | M95: 0 | N95: 0 | O95: 0 | P95: 0 | Q95: 0 | R95: 0 | S95: 0
A96: 81 | J96: 3304 | K96: традиционни собствени ресурси - мита | L96: 0 | M96: 0 | N96: 0 | O96: 0 | P96: 0 | Q96: 0 | R96: 0 | S96: 0
A97: 83 | J97: 3306 | K97: участие във финансирането на брутното намаление за Нидерландия, Швеция, Дания и Австрия | L97: 0 | M97: 0 | N97: 0 | O97: 0 | P97: 0 | Q97: 0 | R97: 0 | S97: 0
A98: 84 | I98: 3900 | J98: Здравно-осигурителни плащания | L98: 0 | M98: 0 | N98: 0 | O98: 0 | P98: 0 | Q98: 0 | R98: 0 | S98: 0 | T98: =(IF($E98<>0,$M$2,IF($L98<>0,$M$2,""))) -> 
A99: 85 | I99: 4000 | J99: Стипендии | L99: 0 | S99: 0
A100: 86 | I100: 4100 | J100: Пенсии | L100: 0 | M100: 0 | N100: 0 | O100: 0 | P100: 0 | Q100: 0 | R100: 0 | S100: 0
A101: 87 | I101: 4200 | J101: Текущи трансфери, обезщетения и помощи за домакинствата | L101: =SUM(L102:L107) -> 0 | M101: 0 | N101: 0 | O101: =SUM(O102:O107) -> 0 | P101: 0 | Q101: 0 | R101: 0 | S101: 0
A102: 88 | J102: 4201 | K102: обезщетения и помощи по социалното осигуряване | L102: =M102+N102+O102 -> 0 | S102: =P102+Q102+R102 -> 0
A103: 89 | J103: 4202 | K103: обезщетения и помощи по социалното подпомагане | L103: 0 | S103: 0
A104: 90 | J104: 4214 | K104: обезщетения и помощи по решение на общинския съвет | L104: 0 | S104: 0
A105: 91 | J105: 4217 | K105: текущи трансфери за домакинства от средства на Европейския съюз | L105: 0 | S105: 0
A106: 92 | J106: 4218 | K106: текущи трансфери за домакинства по други международни програми и споразумения | L106: 0 | S106: 0
A107: 93 | J107: 4219 | K107: други текущи трансфери за домакинствата | L107: 0 | S107: 0
A108: 94 | I108: 4300 | J108: Субсидии и други текущи трансфери за нефинансови предприятия | L108: =SUM(L109:L111) -> 0 | M108: 0 | N108: 0 | O108: =SUM(O109:O111) -> 0 | P108: 0 | Q108: 0 | R108: 0 | S108: 0
A109: 95 | J109: 4301 | K109: за текуща дейност | L109: =M109+N109+O109 -> 0 | S109: =P109+Q109+R109 -> 0
A110: 96 | J110: 4302 | K110: за осъществяване на болнична помощ | L110: 0 | S110: 0
A111: 97 | J111: 4309 | K111: други субсидии и плащания | L111: 0 | S111: 0
A112: 98 | I112: 4400 | J112: Субсидии и други текущи трансфери за финансови институции | L112: 0 | S112: 0
A113: 99 | I113: 4500 | J113: Субсидии и други текущи трансфери за юридически лица с нестопанска цел | L113: 0 | S113: 0
A114: 100 | I114: 4600 | J114: Разходи за членски внос и участие в нетърговски организации и дейности | L114: 0 | S114: 0
A115: 101 | I115: 4900 | J115: Предоставени текущи и капиталови трансфери за чужбина | L115: =+L116+L117 -> 0 | M115: 0 | N115: 0 | O115: =+O116+O117 -> 0 | P115: 0 | Q115: 0 | R115: 0 | S115: 0
A116: 102 | J116: 4901 | K116: текущи трансфери за чужбина | L116: =M116+N116+O116 -> 0 | S116: =P116+Q116+R116 -> 0
A117: 103 | J117: 4902 | K117: капиталови трансфери за чужбина | L117: =M117+N117+O117 -> 0 | S117: =P117+Q117+R117 -> 0
A118: 104 | I118: 5100 | J118: Основен ремонт на дълготрайни материални активи | L118: =M118+N118+O118 -> 0 | S118: =P118+Q118+R118 -> 0
A119: 105 | I119: 5200 | J119: Придобиване на дълготрайни материални активи | L119: =SUM(L120:L126) -> 0 | M119: 0 | N119: 0 | O119: =SUM(O120:O126) -> 0 | P119: 0 | Q119: 0 | R119: 0 | S119: 0
A120: 106 | J120: 5201 | K120: придобиване на компютри и хардуер | L120: =M120+N120+O120 -> 0 | S120: =P120+Q120+R120 -> 0
A121: 107 | J121: 5202 | K121: придобиване на сгради | L121: 0 | S121: 0
A122: 108 | J122: 5203 | K122: придобиване на друго оборудване, машини и съоръжения | L122: 0 | S122: 0
A123: 109 | J123: 5204 | K123: придобиване на транспортни средства | L123: 0 | S123: 0
A124: 110 | J124: 5205 | K124: придобиване на стопански инвентар | L124: 0 | S124: 0
A125: 111 | J125: 5206 | K125: изграждане на инфраструктурни обекти | L125: 0 | S125: 0
A126: 112 | J126: 5219 | K126: придобиване на други ДМА | L126: 0 | S126: 0
A127: 113 | I127: 5300 | J127: Придобиване на нематериални дълготрайни активи | L127: =SUM(L128:L129) -> 0 | M127: 0 | N127: 0 | O127: =SUM(O128:O129) -> 0 | P127: 0 | Q127: 0 | R127: 0 | S127: 0
A128: 114 | J128: 5301 | K128: придобиване на програмни продукти и лицензи за програмни продукти | L128: =M128+N128+O128 -> 0 | S128: =P128+Q128+R128 -> 0
A129: 115 | J129: 5309 | K129: придобиване на други нематериални дълготрайни активи | L129: =M129+N129+O129 -> 0 | S129: =P129+Q129+R129 -> 0
A130: 116 | I130: 5400 | J130: Придобиване на земя | L130: =M130+N130+O130 -> 0 | S130: =P130+Q130+R130 -> 0
A131: 117 | I131: 5500 | J131: Капиталови трансфери | L131: =SUM(L132:L135) -> 0 | M131: 0 | N131: 0 | O131: =SUM(O132:O135) -> 0 | P131: 0 | Q131: 0 | R131: 0 | S131: 0
A132: 118 | J132: 5501 | K132: капиталови трансфери за нефинансови предприятия | L132: =M132+N132+O132 -> 0 | S132: =P132+Q132+R132 -> 0
A133: 119 | J133: 5502 | K133: капиталови трансфери за финансови институции | L133: =M133+N133+O133 -> 0 | S133: =P133+Q133+R133 -> 0
A134: 120 | J134: 5503 | K134: капиталови трансфери за организации с нестопанска цел | L134: =M134+N134+O134 -> 0 | S134: =P134+Q134+R134 -> 0
A135: 121 | J135: 5504 | K135: капиталови трансфери за домакинствата | L135: =M135+N135+O135 -> 0 | S135: =P135+Q135+R135 -> 0
A136: 122 | I136: 5700 | J136: Прираст на държавния резерв и изкупуване на земеделска продукция (включва и § 40-71) | L136: =SUM(L137:L139) -> 0 | M136: 0 | N136: 0 | O136: 0 | P136: 0 | Q136: 0 | R136: 0 | S136: =SUM(S137:S139) -> 0
A137: 123 | J137: 5701 | K137: плащания за попълване на държавния резерв | L137: =M137+N137+O137 -> 0 | M137: 0 | N137: 0 | O137: 0 | P137: 0 | Q137: 0 | R137: 0 | S137: =P137+Q137+R137 -> 0
A138: 124 | J138: 5702 | K138: плащания за изкупуване на земеделска продукция | L138: =M138+N138+O138 -> 0 | M138: 0 | N138: 0 | O138: 0 | P138: 0 | Q138: 0 | R138: 0 | S138: =P138+Q138+R138 -> 0
A139: 125 | J139: 4071 | K139: постъпления от продажба на държавния резерв (-) | L139: =M139+N139+O139 -> 0 | M139: 0 | N139: 0 | O139: 0 | P139: 0 | Q139: 0 | R139: 0 | S139: =P139+Q139+R139 -> 0
A140: 126 | J140: Резерв за непредвидени и неотложни разходи
A141: 127 | I141: 98 | J141: Резерв за непредвидени и неотложни разходи | L141: =M141+N141+O141 -> 0 | P141: 0 | Q141: 0 | R141: 0 | S141: =P141+Q141+R141 -> 0
A142: 128
A143: 129
A144: 130
A145: 131 | J145: 99-99 | K145: =+I145 -> 0 | L145: =SUM(L30,L33,L39,L47,L48,L66,L70,L76,L79,L80,L81,L82,L83,L92,L98,L99,L100,L101,L108,L112,L113,L114,L115,L118,L119,L127,L130,L131,L136)+L141 -> 0 | M145: 0 | N145: 0 | O145: 0 | P145: 0 | Q145: 0 | R145: 0 | S145: 0 | T145: =(IF($E145<>0,$M$2,IF($L145<>0,$M$2,""))) ->  | U145: =LEFT(J27,1) -> 0
A146: 132 | I146: край на дейност | T146: =(IF($E145<>0,$M$2,IF($L145<>0,$M$2,""))) -> 
A147: 169 | T147: =(IF($E145<>0,$M$2,IF($L145<>0,$M$2,""))) -> 
T148: =(IF(L143<>0,$G$2,IF(S143<>0,$G$2,""))) -> 
T149: =(IF(L144<>0,$G$2,IF(S144<>0,$G$2,""))) -> 
T150: =(IF(L145<>0,$G$2,IF(S145<>0,$G$2,""))) -> 
T151: =(IF(L145<>0,$G$2,IF(S145<>0,$G$2,""))) -> 
T152: =(IF(L145<>0,$G$2,IF(S145<>0,$G$2,""))) -> 
T153: =(IF(L145<>0,$G$2,IF(S145<>0,$G$2,""))) -> 
T154: =(IF(L145<>0,$G$2,IF(S145<>0,$G$2,""))) -> 
